Body Name,Body,Service Label,Service Code,CIPFA Detailed Expenditure Type,CIPFA Detailed Expenditure Code,Date,Transaction Number,Net Amount,Supplier Name
Nottinghamshire County Council,1111/1001,Surplus or Deficit from Trading Undertak,TRADING,Employee Related,AAA,01/03/2019,12-10001,995.67,Cash Flo Solution Ltd
Nottinghamshire County Council,1111/1001,Surplus or Deficit from Trading Undertak,TRADING,Premises Related,BJA,06/03/2019,12-10001,"1,990.00",Robert Scott & Sons Ltd
Nottinghamshire County Council,1111/1001,Surplus or Deficit from Trading Undertak,TRADING,Supplies & Services,DDA,06/03/2019,12-10001,533.2,Staedtler Uk Ltd
Nottinghamshire County Council,1111/1001,Surplus or Deficit from Trading Undertak,TRADING,Supplies & Services,DDA,06/03/2019,12-10001,760.48,Staedtler Uk Ltd
Nottinghamshire County Council,1111/1001,Surplus or Deficit from Trading Undertak,TRADING,Supplies & Services,DDA,06/03/2019,12-10001,"1,040.12",Staedtler Uk Ltd
Nottinghamshire County Council,1111/1001,Surplus or Deficit from Trading Undertak,TRADING,Supplies & Services,DDA,06/03/2019,12-10001,561.77,Allen Glenold Ltd
Nottinghamshire County Council,1111/1001,Surplus or Deficit from Trading Undertak,TRADING,Premises Related,BJA,06/03/2019,12-10001,870,Henkel Ltd
Nottinghamshire County Council,1111/1001,Surplus or Deficit from Trading Undertak,TRADING,Premises Related,BJA,06/03/2019,12-10001,806.8,Scot Young Research Ltd
Nottinghamshire County Council,1111/1001,Surplus or Deficit from Trading Undertak,TRADING,Premises Related,BJA,06/03/2019,12-10001,805.5,Midland Wiper Mfg Company Ltd
Nottinghamshire County Council,1111/1001,Surplus or Deficit from Trading Undertak,TRADING,Supplies & Services,DAA,06/03/2019,12-10001,"1,456.50",Vivid Laminating Technologies Ltd
Nottinghamshire County Council,1111/1001,Surplus or Deficit from Trading Undertak,TRADING,Supplies & Services,DAA,06/03/2019,12-10001,"1,276.00",Catering Supplies Wakefield Ltd
Nottinghamshire County Council,1111/1001,Surplus or Deficit from Trading Undertak,TRADING,Supplies & Services,DKA,06/03/2019,12-10001,"1,961.35",Essity Uk Ltd
Nottinghamshire County Council,1111/1001,Surplus or Deficit from Trading Undertak,TRADING,Supplies & Services,DKA,06/03/2019,12-10001,"5,991.68",Essity Uk Ltd
Nottinghamshire County Council,1111/1001,Surplus or Deficit from Trading Undertak,TRADING,Supplies & Services,DDA,06/03/2019,12-10001,"1,004.44",Hamelin Brands Ltd
Nottinghamshire County Council,1111/1001,Surplus or Deficit from Trading Undertak,TRADING,Supplies & Services,DDA,06/03/2019,12-10001,"1,006.83",Hamelin Brands Ltd
Nottinghamshire County Council,1111/1001,Surplus or Deficit from Trading Undertak,TRADING,Supplies & Services,DAA,06/03/2019,12-10001,"1,597.52",Morleys (Bicester) Ltd
Nottinghamshire County Council,1111/1001,Surplus or Deficit from Trading Undertak,TRADING,Supplies & Services,DAA,06/03/2019,12-10001,505.55,Morleys (Bicester) Ltd
Nottinghamshire County Council,1111/1001,Surplus or Deficit from Trading Undertak,TRADING,Supplies & Services,DDA,06/03/2019,12-10001,"2,350.16",Higher Kings Mill Ltd
Nottinghamshire County Council,1111/1001,Surplus or Deficit from Trading Undertak,TRADING,Premises Related,BJA,06/03/2019,12-10001,640.7,Creativity International Ltd
Nottinghamshire County Council,1111/1001,Surplus or Deficit from Trading Undertak,TRADING,Supplies & Services,DAA,06/03/2019,12-10001,640.98,Metroplan Ltd
Nottinghamshire County Council,1111/1001,Surplus or Deficit from Trading Undertak,TRADING,Supplies & Services,DDA,06/03/2019,12-10001,"1,149.12",Polystar Plastics Ltd
Nottinghamshire County Council,1111/1001,Surplus or Deficit from Trading Undertak,TRADING,Premises Related,BJA,06/03/2019,12-10001,"1,255.12",Bunzl Cleaning & Hygiene Supplies
Nottinghamshire County Council,1111/1001,Surplus or Deficit from Trading Undertak,TRADING,Premises Related,BJA,06/03/2019,12-10001,555.4,Bunzl Cleaning & Hygiene Supplies
Nottinghamshire County Council,1111/1001,Surplus or Deficit from Trading Undertak,TRADING,Premises Related,BJA,06/03/2019,12-10001,"4,776.46",Bunzl Cleaning & Hygiene Supplies
Nottinghamshire County Council,1111/1001,Surplus or Deficit from Trading Undertak,TRADING,Premises Related,BJA,06/03/2019,12-10001,"1,575.78",Bunzl Cleaning & Hygiene Supplies
Nottinghamshire County Council,1111/1001,Surplus or Deficit from Trading Undertak,TRADING,Premises Related,BJA,06/03/2019,12-10001,"1,264.84",Cromwell Polythene Ltd
Nottinghamshire County Council,1111/1001,Surplus or Deficit from Trading Undertak,TRADING,Premises Related,BJA,06/03/2019,12-10001,"1,666.30",Cromwell Polythene Ltd
Nottinghamshire County Council,1111/1001,Surplus or Deficit from Trading Undertak,TRADING,Supplies & Services,DKA,06/03/2019,12-10001,930.44,Kimberly Clark European Services Lt
Nottinghamshire County Council,1111/1001,Surplus or Deficit from Trading Undertak,TRADING,Supplies & Services,DAA,06/03/2019,12-10001,"1,128.20",Metalliform Holdings Ltd
Nottinghamshire County Council,1111/1001,Surplus or Deficit from Trading Undertak,TRADING,Supplies & Services,DAA,06/03/2019,12-10001,574.05,Metalliform Holdings Ltd
Nottinghamshire County Council,1111/1001,Surplus or Deficit from Trading Undertak,TRADING,Supplies & Services,DAA,06/03/2019,12-10001,773.64,Metalliform Holdings Ltd
Nottinghamshire County Council,1111/1001,Surplus or Deficit from Trading Undertak,TRADING,Supplies & Services,DDA,07/03/2019,12-10001,735.67,Evans Vanodine International Ltd
Nottinghamshire County Council,1111/1001,Surplus or Deficit from Trading Undertak,TRADING,Supplies & Services,DDA,07/03/2019,12-10001,953.17,Grosvenor House Papers Ltd
Nottinghamshire County Council,1111/1001,Surplus or Deficit from Trading Undertak,TRADING,Supplies & Services,DDA,07/03/2019,12-10001,824.78,Banner Group Limited
Nottinghamshire County Council,1111/1001,Surplus or Deficit from Trading Undertak,TRADING,Supplies & Services,DDA,07/03/2019,12-10001,708.76,Banner Group Limited
Nottinghamshire County Council,1111/1001,Surplus or Deficit from Trading Undertak,TRADING,Premises Related,BJA,07/03/2019,12-10001,"1,426.03",Freudenberg Household Products Lp
Nottinghamshire County Council,1111/1001,Surplus or Deficit from Trading Undertak,TRADING,Supplies & Services,DAA,07/03/2019,12-10001,"1,357.41",Valentine Clays Ltd
Nottinghamshire County Council,1111/1001,Surplus or Deficit from Trading Undertak,TRADING,Supplies & Services,DAA,07/03/2019,12-10001,"2,697.89",Eastpoint
Nottinghamshire County Council,1111/1001,Surplus or Deficit from Trading Undertak,TRADING,Premises Related,BJA,07/03/2019,12-10001,654.12,Bunzl Retail & Healthcare Supp Ltd
Nottinghamshire County Council,1111/1001,Surplus or Deficit from Trading Undertak,TRADING,Premises Related,BJA,07/03/2019,12-10001,537.84,G & S Corporate Supplies
Nottinghamshire County Council,1111/1001,Surplus or Deficit from Trading Undertak,TRADING,Premises Related,BJA,07/03/2019,12-10001,586.2,G & S Corporate Supplies
Nottinghamshire County Council,1111/1001,Surplus or Deficit from Trading Undertak,TRADING,Supplies & Services,DAA,07/03/2019,12-10001,"1,384.32",Kent County Supplies
Nottinghamshire County Council,1111/1001,Surplus or Deficit from Trading Undertak,TRADING,Premises Related,BJA,08/03/2019,12-10001,716.7,Robert Scott & Sons Ltd
Nottinghamshire County Council,1111/1001,Surplus or Deficit from Trading Undertak,TRADING,Supplies & Services,DDA,08/03/2019,12-10001,"2,040.90",Antalis Ltd
Nottinghamshire County Council,1111/1001,Surplus or Deficit from Trading Undertak,TRADING,Supplies & Services,DDA,08/03/2019,12-10001,554.34,Bic Uk Ltd
Nottinghamshire County Council,1111/1001,Surplus or Deficit from Trading Undertak,TRADING,Premises Related,BJA,08/03/2019,12-10001,583.66,Diversey
Nottinghamshire County Council,1111/1001,Surplus or Deficit from Trading Undertak,TRADING,Premises Related,BJA,08/03/2019,12-10001,"2,666.08",Henkel Ltd
Nottinghamshire County Council,1111/1001,Surplus or Deficit from Trading Undertak,TRADING,Premises Related,BJA,08/03/2019,12-10001,"1,814.52",Henkel Ltd
Nottinghamshire County Council,1111/1001,Surplus or Deficit from Trading Undertak,TRADING,Premises Related,BJA,08/03/2019,12-10001,973.4,Scot Young Research Ltd
Nottinghamshire County Council,1111/1001,Surplus or Deficit from Trading Undertak,TRADING,Supplies & Services,DDA,08/03/2019,12-10001,538.8,Grosvenor House Papers Ltd
Nottinghamshire County Council,1111/1001,Surplus or Deficit from Trading Undertak,TRADING,Supplies & Services,DKA,08/03/2019,12-10001,"3,123.55",Essity Uk Ltd
Nottinghamshire County Council,1111/1001,Surplus or Deficit from Trading Undertak,TRADING,Supplies & Services,DDA,08/03/2019,12-10001,907.75,Banner Group Limited
Nottinghamshire County Council,1111/1001,Surplus or Deficit from Trading Undertak,TRADING,Premises Related,BJA,08/03/2019,12-10001,509.3,Newell Rubbermaid Uk Ltd
Nottinghamshire County Council,1111/1001,Surplus or Deficit from Trading Undertak,TRADING,Supplies & Services,DAA,08/03/2019,12-10001,540.15,Eastpoint
Nottinghamshire County Council,1111/1001,Surplus or Deficit from Trading Undertak,TRADING,Premises Related,BJA,08/03/2019,12-10001,"1,336.00",Bunzl Cleaning & Hygiene Supplies
Nottinghamshire County Council,1111/1001,Surplus or Deficit from Trading Undertak,TRADING,Supplies & Services,DKA,08/03/2019,12-10001,869.92,Kimberly Clark European Services Lt
Nottinghamshire County Council,1111/1001,Surplus or Deficit from Trading Undertak,TRADING,Supplies & Services,DKA,08/03/2019,12-10001,691.4,Kimberly Clark European Services Lt
Nottinghamshire County Council,1111/1001,Surplus or Deficit from Trading Undertak,TRADING,Supplies & Services,DKA,08/03/2019,12-10001,"1,287.54",Kimberly Clark European Services Lt
Nottinghamshire County Council,1111/1001,Surplus or Deficit from Trading Undertak,TRADING,Premises Related,BJA,08/03/2019,12-10001,616.76,Selden Research Ltd
Nottinghamshire County Council,1111/1001,Surplus or Deficit from Trading Undertak,TRADING,Employee Related,AAA,11/03/2019,12-10001,"1,185.91",Cash Flo Solution Ltd
Nottinghamshire County Council,1111/1001,Surplus or Deficit from Trading Undertak,TRADING,Supplies & Services,DAA,13/03/2019,12-10001,"1,325.80",Nycomm Ltd
Nottinghamshire County Council,1111/1001,Surplus or Deficit from Trading Undertak,TRADING,Supplies & Services,DAA,13/03/2019,12-10001,680,Gratnells Ltd
Nottinghamshire County Council,1111/1001,Surplus or Deficit from Trading Undertak,TRADING,Supplies & Services,DDA,13/03/2019,12-10001,591.25,Allen Glenold Ltd
Nottinghamshire County Council,1111/1001,Surplus or Deficit from Trading Undertak,TRADING,Supplies & Services,DDA,13/03/2019,12-10001,566.91,Allen Glenold Ltd
Nottinghamshire County Council,1111/1001,Surplus or Deficit from Trading Undertak,TRADING,Supplies & Services,DDA,13/03/2019,12-10001,542.63,Allen Glenold Ltd
Nottinghamshire County Council,1111/1001,Surplus or Deficit from Trading Undertak,TRADING,Premises Related,BJA,13/03/2019,12-10001,"6,001.04",Diversey
Nottinghamshire County Council,1111/1001,Surplus or Deficit from Trading Undertak,TRADING,Premises Related,BJA,13/03/2019,12-10001,"3,090.00",Henkel Ltd
Nottinghamshire County Council,1111/1001,Surplus or Deficit from Trading Undertak,TRADING,Supplies & Services,DAA,13/03/2019,12-10001,540.38,Vivid Laminating Technologies Ltd
Nottinghamshire County Council,1111/1001,Surplus or Deficit from Trading Undertak,TRADING,Supplies & Services,DDA,13/03/2019,12-10001,"1,036.00",Premier Paper Group Ltd
Nottinghamshire County Council,1111/1001,Surplus or Deficit from Trading Undertak,TRADING,Supplies & Services,DAA,13/03/2019,12-10001,694.6,Niels Larsen Ltd
Nottinghamshire County Council,1111/1001,Surplus or Deficit from Trading Undertak,TRADING,Supplies & Services,DDA,13/03/2019,12-10001,"1,078.40",Banner Group Limited
Nottinghamshire County Council,1111/1001,Surplus or Deficit from Trading Undertak,TRADING,Supplies & Services,DDA,13/03/2019,12-10001,731,Banner Group Limited
Nottinghamshire County Council,1111/1001,Surplus or Deficit from Trading Undertak,TRADING,Premises Related,BJA,13/03/2019,12-10001,760,Freudenberg Household Products Lp
Nottinghamshire County Council,1111/1001,Surplus or Deficit from Trading Undertak,TRADING,Supplies & Services,DDA,13/03/2019,12-10001,"1,002.79",Hamelin Brands Ltd
Nottinghamshire County Council,1111/1001,Surplus or Deficit from Trading Undertak,TRADING,Supplies & Services,DAA,13/03/2019,12-10001,525.34,Argos Bus Solutions Ltd (Acc 920722
Nottinghamshire County Council,1111/1001,Surplus or Deficit from Trading Undertak,TRADING,Supplies & Services,DDA,13/03/2019,12-10001,780.41,Slater Harrison & Company Ltd
Nottinghamshire County Council,1111/1001,Surplus or Deficit from Trading Undertak,TRADING,Supplies & Services,DDA,13/03/2019,12-10001,"2,507.74",Polystar Plastics Ltd
Nottinghamshire County Council,1111/1001,Surplus or Deficit from Trading Undertak,TRADING,Supplies & Services,DDA,13/03/2019,12-10001,"1,518.72",Polystar Plastics Ltd
Nottinghamshire County Council,1111/1001,Surplus or Deficit from Trading Undertak,TRADING,Supplies & Services,DDA,13/03/2019,12-10001,"1,910.61",Polystar Plastics Ltd
Nottinghamshire County Council,1111/1001,Surplus or Deficit from Trading Undertak,TRADING,Supplies & Services,DAA,13/03/2019,12-10001,859.36,Eastpoint
Nottinghamshire County Council,1111/1001,Surplus or Deficit from Trading Undertak,TRADING,Premises Related,BJA,13/03/2019,12-10001,"1,530.00",Bunzl Retail & Healthcare Supp Ltd
Nottinghamshire County Council,1111/1001,Surplus or Deficit from Trading Undertak,TRADING,Premises Related,BJA,13/03/2019,12-10001,656,Bunzl Retail & Healthcare Supp Ltd
Nottinghamshire County Council,1111/1001,Surplus or Deficit from Trading Undertak,TRADING,Premises Related,BJA,13/03/2019,12-10001,"1,444.62",Bunzl Cleaning & Hygiene Supplies
Nottinghamshire County Council,1111/1001,Surplus or Deficit from Trading Undertak,TRADING,Transport Related,CCA,13/03/2019,12-10001,"1,389.25",Langley Mechanical Services Ltd
Nottinghamshire County Council,1111/1001,Surplus or Deficit from Trading Undertak,TRADING,Supplies & Services,DKA,13/03/2019,12-10001,852.11,Kimberly Clark European Services Lt
Nottinghamshire County Council,1111/1001,Surplus or Deficit from Trading Undertak,TRADING,Supplies & Services,DAA,13/03/2019,12-10001,545.18,Kent County Supplies
Nottinghamshire County Council,1111/1001,Surplus or Deficit from Trading Undertak,TRADING,Supplies & Services,DAA,13/03/2019,12-10001,"1,350.00",Willowbrook Education Ltd
Nottinghamshire County Council,1111/1001,Surplus or Deficit from Trading Undertak,TRADING,Supplies & Services,DAA,13/03/2019,12-10001,893.25,Willowbrook Education Ltd
Nottinghamshire County Council,1111/1001,Surplus or Deficit from Trading Undertak,TRADING,Employee Related,AAA,13/03/2019,12-10001,897.27,Cash Flo Solution Ltd
Nottinghamshire County Council,1111/1001,Surplus or Deficit from Trading Undertak,TRADING,Supplies & Services,DAA,14/03/2019,12-10001,701.38,Gopak Ltd
Nottinghamshire County Council,1111/1001,Surplus or Deficit from Trading Undertak,TRADING,Supplies & Services,DDA,14/03/2019,12-10001,788.37,Staedtler Uk Ltd
Nottinghamshire County Council,1111/1001,Surplus or Deficit from Trading Undertak,TRADING,Premises Related,BAA,14/03/2019,12-10001,748.2,Master Matting Co Ltd
Nottinghamshire County Council,1111/1001,Surplus or Deficit from Trading Undertak,TRADING,Supplies & Services,DAA,14/03/2019,12-10001,608,Metalliform Holdings Ltd
Nottinghamshire County Council,1111/1001,Surplus or Deficit from Trading Undertak,TRADING,Supplies & Services,DAA,20/03/2019,12-10001,826.44,Wv Howe Ltd
Nottinghamshire County Council,1111/1001,Surplus or Deficit from Trading Undertak,TRADING,Supplies & Services,DDA,20/03/2019,12-10001,596.1,Edding Uk Ltd
Nottinghamshire County Council,1111/1001,Surplus or Deficit from Trading Undertak,TRADING,Supplies & Services,DAA,20/03/2019,12-10001,"1,575.83",Brian Clegg (Educational Products)
Nottinghamshire County Council,1111/1001,Surplus or Deficit from Trading Undertak,TRADING,Supplies & Services,DAA,20/03/2019,12-10001,"1,113.70",Vivid Laminating Technologies Ltd
Nottinghamshire County Council,1111/1001,Surplus or Deficit from Trading Undertak,TRADING,Supplies & Services,DDA,20/03/2019,12-10001,929.22,Grosvenor House Papers Ltd
Nottinghamshire County Council,1111/1001,Surplus or Deficit from Trading Undertak,TRADING,Supplies & Services,DDA,20/03/2019,12-10001,"2,891.60",Banner Group Limited
Nottinghamshire County Council,1111/1001,Surplus or Deficit from Trading Undertak,TRADING,Supplies & Services,DDA,20/03/2019,12-10001,572.4,Banner Group Limited
Nottinghamshire County Council,1111/1001,Surplus or Deficit from Trading Undertak,TRADING,Supplies & Services,DDA,20/03/2019,12-10001,"1,459.96",Banner Group Limited
Nottinghamshire County Council,1111/1001,Surplus or Deficit from Trading Undertak,TRADING,Supplies & Services,DAA,20/03/2019,12-10001,"1,298.00",Morleys (Bicester) Ltd
Nottinghamshire County Council,1111/1001,Surplus or Deficit from Trading Undertak,TRADING,Supplies & Services,DAA,20/03/2019,12-10001,522.9,Morleys (Bicester) Ltd
Nottinghamshire County Council,1111/1001,Surplus or Deficit from Trading Undertak,TRADING,Supplies & Services,DAA,20/03/2019,12-10001,"1,378.44",Combined Office Interiors Ltd
Nottinghamshire County Council,1111/1001,Surplus or Deficit from Trading Undertak,TRADING,Supplies & Services,DAA,20/03/2019,12-10001,617.41,Eastpoint
Nottinghamshire County Council,1111/1001,Surplus or Deficit from Trading Undertak,TRADING,Supplies & Services,DAA,20/03/2019,12-10001,671,Hille Ltd
Nottinghamshire County Council,1111/1001,Surplus or Deficit from Trading Undertak,TRADING,Supplies & Services,DAA,20/03/2019,12-10001,528.36,Hille Ltd
Nottinghamshire County Council,1111/1001,Surplus or Deficit from Trading Undertak,TRADING,Supplies & Services,DFA,21/03/2019,12-10001,"1,096.25",Royal Mail
Nottinghamshire County Council,1111/1001,Surplus or Deficit from Trading Undertak,TRADING,Employee Related,AAA,21/03/2019,12-10001,"1,310.55",Cash Flo Solution Ltd
Nottinghamshire County Council,1111/1001,Surplus or Deficit from Trading Undertak,TRADING,Supplies & Services,DAA,22/03/2019,12-10001,960,Niels Larsen Ltd
Nottinghamshire County Council,1111/1001,Surplus or Deficit from Trading Undertak,TRADING,Supplies & Services,DDA,22/03/2019,12-10001,"2,175.30",Banner Group Limited
Nottinghamshire County Council,1111/1001,Surplus or Deficit from Trading Undertak,TRADING,Supplies & Services,DAA,22/03/2019,12-10001,572.8,Office Innovations
Nottinghamshire County Council,1111/1001,Surplus or Deficit from Trading Undertak,TRADING,Supplies & Services,DAA,22/03/2019,12-10001,"4,930.50",Office Innovations
Nottinghamshire County Council,1111/1001,Surplus or Deficit from Trading Undertak,TRADING,Supplies & Services,DAA,22/03/2019,12-10001,"60,538.75",Office Innovations
Nottinghamshire County Council,1111/1001,Surplus or Deficit from Trading Undertak,TRADING,Premises Related,BJA,22/03/2019,12-10001,555.4,Bunzl Cleaning & Hygiene Supplies
Nottinghamshire County Council,1111/1001,Surplus or Deficit from Trading Undertak,TRADING,Supplies & Services,DAA,22/03/2019,12-10001,590.99,Metalliform Holdings Ltd
Nottinghamshire County Council,1111/1001,Children and Young People,CYP,Premises Related,BAA,06/03/2019,12-16845,"1,120.62",Glentworth Security Ltd
Nottinghamshire County Council,1111/1001,Children and Young People,CYP,Premises Related,BAA,11/03/2019,12-12186,6031.6,ARC Property Services Partnership L
Nottinghamshire County Council,1111/1001,Children and Young People,CYP,Premises Related,BAA,20/03/2019,12-15667,1070.1,ARC Property Services Partnership L
Nottinghamshire County Council,1111/1001,Children and Young People,CYP,Premises Related,BAA,21/03/2019,12-15886,24808.26,ARC Property Services Partnership L
Nottinghamshire County Council,1111/1001,Children and Young People,CYP,Premises Related,BAA,28/03/2019,12-16592,4047.21,ARC Property Services Partnership L
Nottinghamshire County Council,1111/1001,Children and Young People,CYP,Premises Related,BAA,29/03/2019,12-16659,64.66,ARC Property Services Partnership L
Nottinghamshire County Council,1111/1001,Children and Young People,CYP,Premises Related,BCA,08/03/2019,12-17001,"2,745.69",Quarrydale Academy
Nottinghamshire County Council,1111/1001,Children and Young People,CYP,Premises Related,BCA,22/03/2019,12-17239,943.08,Certas Energy UK Ltd T/A Pace Fuelc
Nottinghamshire County Council,1111/1001,Children and Young People,CYP,Premises Related,BCA,27/03/2019,12-17235,976.92,Certas Energy UK Ltd T/A Pace Fuelc
Nottinghamshire County Council,1111/1001,Children and Young People,CYP,Premises Related,BDA,04/03/2019,12-10007,"3,500.00",Diocese of Hallam Trustee
Nottinghamshire County Council,1111/1001,Children and Young People,CYP,Premises Related,BDA,04/03/2019,12-10014,8274.24,Ekmw Summit Centre
Nottinghamshire County Council,1111/1001,Children and Young People,CYP,Premises Related,BDA,04/03/2019,12-10015,575,Jillings Estates Ltd
Nottinghamshire County Council,1111/1001,Children and Young People,CYP,Premises Related,BDA,04/03/2019,12-10018,7500,Capita Property & Infrastructure Lt
Nottinghamshire County Council,1111/1001,Children and Young People,CYP,Premises Related,BDA,07/03/2019,12-16896,8554.25,Ekmw Summit Centre
Nottinghamshire County Council,1111/1001,Children and Young People,CYP,Premises Related,BDA,07/03/2019,12-16897,8427.83,Ekmw Summit Centre
Nottinghamshire County Council,1111/1001,Children and Young People,CYP,Premises Related,BDA,08/03/2019,12-16964,"3,333.00",Liberty Leisure Ltd
Nottinghamshire County Council,1111/1001,Children and Young People,CYP,Premises Related,BDA,11/03/2019,12-16833,543,P McAleese Ltd
Nottinghamshire County Council,1111/1001,Children and Young People,CYP,Premises Related,BDA,15/03/2019,12-17277,5801.29,Barnsley Premier Leisure
Nottinghamshire County Council,1111/1001,Children and Young People,CYP,Premises Related,BDA,15/03/2019,12-17279,"1,456.50",Rotel Leisure Ltd T/A The Towers
Nottinghamshire County Council,1111/1001,Children and Young People,CYP,Premises Related,BFA,15/03/2019,12-17280,730,Leverton C Of E Academy
Nottinghamshire County Council,1111/1001,Children and Young People,CYP,Premises Related,BJA,06/03/2019,12-16822,505,Karvics Cleaning Services
Nottinghamshire County Council,1111/1001,Children and Young People,CYP,Transport Related,CAA,07/03/2019,12-11925,42,Via East Midlands Ltd
Nottinghamshire County Council,1111/1001,Children and Young People,CYP,Transport Related,CAA,11/03/2019,12-16995,570.61,Lovers Leap Garage
Nottinghamshire County Council,1111/1001,Children and Young People,CYP,Transport Related,CAA,14/03/2019,12-12627,969.48,Via East Midlands Ltd
Nottinghamshire County Council,1111/1001,Children and Young People,CYP,Transport Related,CAA,20/03/2019,12-15659,1249,Via East Midlands Ltd
Nottinghamshire County Council,1111/1001,Children and Young People,CYP,Transport Related,CAA,22/03/2019,12-16244,"1,249.00",Via East Midlands Ltd
Nottinghamshire County Council,1111/1001,Children and Young People,CYP,Transport Related,CAA,29/03/2019,12-16664,1439.69,Via East Midlands Ltd
Nottinghamshire County Council,1111/1001,Children and Young People,CYP,Transport Related,CCA,01/03/2019,12-10055,2646,Marks Specialised Transport Ltd
Nottinghamshire County Council,1111/1001,Children and Young People,CYP,Transport Related,CCA,01/03/2019,12-10076,"1,485.42",MSP Case Management Ltd
Nottinghamshire County Council,1111/1001,Children and Young People,CYP,Transport Related,CCA,04/03/2019,12-10275,"2,565.00",Taxicover Uk Ltd
Nottinghamshire County Council,1111/1001,Children and Young People,CYP,Transport Related,CCA,04/03/2019,12-10277,3180,Taxicover Uk Ltd
Nottinghamshire County Council,1111/1001,Children and Young People,CYP,Transport Related,CCA,04/03/2019,12-10278,1309.16,Taxicover Uk Ltd
Nottinghamshire County Council,1111/1001,Children and Young People,CYP,Transport Related,CCA,04/03/2019,12-10279,1695,Taxicover Uk Ltd
Nottinghamshire County Council,1111/1001,Children and Young People,CYP,Transport Related,CCA,04/03/2019,12-10280,1435,Taxicover Uk Ltd
Nottinghamshire County Council,1111/1001,Children and Young People,CYP,Transport Related,CCA,04/03/2019,12-10282,2983.8,Taxicover Uk Ltd
Nottinghamshire County Council,1111/1001,Children and Young People,CYP,Transport Related,CCA,04/03/2019,12-10283,"3,052.50",Taxicover Uk Ltd
Nottinghamshire County Council,1111/1001,Children and Young People,CYP,Transport Related,CCA,04/03/2019,12-10284,"2,431.35",Taxicover Uk Ltd
Nottinghamshire County Council,1111/1001,Children and Young People,CYP,Transport Related,CCA,04/03/2019,12-10285,"2,586.00",Taxicover Uk Ltd
Nottinghamshire County Council,1111/1001,Children and Young People,CYP,Transport Related,CCA,04/03/2019,12-10286,"2,815.50",Taxicover Uk Ltd
Nottinghamshire County Council,1111/1001,Children and Young People,CYP,Transport Related,CCA,04/03/2019,12-10287,1792,Taxicover Uk Ltd
Nottinghamshire County Council,1111/1001,Children and Young People,CYP,Transport Related,CCA,04/03/2019,12-10288,1792,Taxicover Uk Ltd
Nottinghamshire County Council,1111/1001,Children and Young People,CYP,Transport Related,CCA,04/03/2019,12-10289,2436,Taxicover Uk Ltd
Nottinghamshire County Council,1111/1001,Children and Young People,CYP,Transport Related,CCA,04/03/2019,12-10290,2532.32,Taxicover Uk Ltd
Nottinghamshire County Council,1111/1001,Children and Young People,CYP,Transport Related,CCA,04/03/2019,12-10291,2253.58,Taxicover Uk Ltd
Nottinghamshire County Council,1111/1001,Children and Young People,CYP,Transport Related,CCA,04/03/2019,12-10292,"2,268.00",Taxicover Uk Ltd
Nottinghamshire County Council,1111/1001,Children and Young People,CYP,Transport Related,CCA,04/03/2019,12-10293,2772,Taxicover Uk Ltd
Nottinghamshire County Council,1111/1001,Children and Young People,CYP,Transport Related,CCA,04/03/2019,12-10294,"2,212.00",Taxicover Uk Ltd
Nottinghamshire County Council,1111/1001,Children and Young People,CYP,Transport Related,CCA,04/03/2019,12-10295,1652,Taxicover Uk Ltd
Nottinghamshire County Council,1111/1001,Children and Young People,CYP,Transport Related,CCA,04/03/2019,12-10296,"2,463.95",Sharpes Of Nottingham
Nottinghamshire County Council,1111/1001,Children and Young People,CYP,Transport Related,CCA,04/03/2019,12-10297,"2,569.95",Sharpes Of Nottingham
Nottinghamshire County Council,1111/1001,Children and Young People,CYP,Transport Related,CCA,04/03/2019,12-10298,2398.5,Sharpes Of Nottingham
Nottinghamshire County Council,1111/1001,Children and Young People,CYP,Transport Related,CCA,04/03/2019,12-10299,2808.25,Sharpes Of Nottingham
Nottinghamshire County Council,1111/1001,Children and Young People,CYP,Transport Related,CCA,04/03/2019,12-10300,"3,179.90",Sharpes Of Nottingham
Nottinghamshire County Council,1111/1001,Children and Young People,CYP,Transport Related,CCA,04/03/2019,12-10301,"3,045.95",Sharpes Of Nottingham
Nottinghamshire County Council,1111/1001,Children and Young People,CYP,Transport Related,CCA,04/03/2019,12-10302,"2,692.35",Sharpes Of Nottingham
Nottinghamshire County Council,1111/1001,Children and Young People,CYP,Transport Related,CCA,04/03/2019,12-10303,"2,556.45",Sharpes Of Nottingham
Nottinghamshire County Council,1111/1001,Children and Young People,CYP,Transport Related,CCA,04/03/2019,12-10305,1750,All Wayz Travel
Nottinghamshire County Council,1111/1001,Children and Young People,CYP,Transport Related,CCA,04/03/2019,12-10306,"1,500.00",All Wayz Travel
Nottinghamshire County Council,1111/1001,Children and Young People,CYP,Transport Related,CCA,04/03/2019,12-10307,2041.5,All Wayz Travel
Nottinghamshire County Council,1111/1001,Children and Young People,CYP,Transport Related,CCA,04/03/2019,12-10308,1820,All Wayz Travel
Nottinghamshire County Council,1111/1001,Children and Young People,CYP,Transport Related,CCA,04/03/2019,12-10310,"2,377.50",Martins Travel
Nottinghamshire County Council,1111/1001,Children and Young People,CYP,Transport Related,CCA,04/03/2019,12-10311,"1,940.00",Wrights Coaches T/A Little Transpor
Nottinghamshire County Council,1111/1001,Children and Young People,CYP,Transport Related,CCA,04/03/2019,12-10314,504,200 Cars Ltd
Nottinghamshire County Council,1111/1001,Children and Young People,CYP,Transport Related,CCA,04/03/2019,12-10316,"2,100.00",Arnold Acorn Travel
Nottinghamshire County Council,1111/1001,Children and Young People,CYP,Transport Related,CCA,04/03/2019,12-10319,1176,Alpha Cars
Nottinghamshire County Council,1111/1001,Children and Young People,CYP,Transport Related,CCA,04/03/2019,12-10320,1260,Alpha Cars
Nottinghamshire County Council,1111/1001,Children and Young People,CYP,Transport Related,CCA,04/03/2019,12-10321,"2,016.00",Alpha Cars
Nottinghamshire County Council,1111/1001,Children and Young People,CYP,Transport Related,CCA,04/03/2019,12-10322,1848,Alpha Cars
Nottinghamshire County Council,1111/1001,Children and Young People,CYP,Transport Related,CCA,04/03/2019,12-10323,"1,851.00",Alpha Cars
Nottinghamshire County Council,1111/1001,Children and Young People,CYP,Transport Related,CCA,04/03/2019,12-10324,"1,246.00",Alpha Cars
Nottinghamshire County Council,1111/1001,Children and Young People,CYP,Transport Related,CCA,04/03/2019,12-10325,817.74,Alpha Cars
Nottinghamshire County Council,1111/1001,Children and Young People,CYP,Transport Related,CCA,04/03/2019,12-10326,360,Alpha Cars
Nottinghamshire County Council,1111/1001,Children and Young People,CYP,Transport Related,CCA,04/03/2019,12-10328,"1,372.00",Alpha Cars
Nottinghamshire County Council,1111/1001,Children and Young People,CYP,Transport Related,CCA,04/03/2019,12-10329,1140,Alpha Cars
Nottinghamshire County Council,1111/1001,Children and Young People,CYP,Transport Related,CCA,04/03/2019,12-10331,616.64,Alpha Cars
Nottinghamshire County Council,1111/1001,Children and Young People,CYP,Transport Related,CCA,04/03/2019,12-10332,1863.6,Arrow Specialised Transport Ltd
Nottinghamshire County Council,1111/1001,Children and Young People,CYP,Transport Related,CCA,04/03/2019,12-10333,"1,235.50",Arrow Specialised Transport Ltd
Nottinghamshire County Council,1111/1001,Children and Young People,CYP,Transport Related,CCA,04/03/2019,12-10335,2982,Arrow Specialised Transport Ltd
Nottinghamshire County Council,1111/1001,Children and Young People,CYP,Transport Related,CCA,04/03/2019,12-10336,"1,720.50",Arrow Specialised Transport Ltd
Nottinghamshire County Council,1111/1001,Children and Young People,CYP,Transport Related,CCA,04/03/2019,12-10337,1605,Arrow Specialised Transport Ltd
Nottinghamshire County Council,1111/1001,Children and Young People,CYP,Transport Related,CCA,04/03/2019,12-10338,2152.5,Arrow Specialised Transport Ltd
Nottinghamshire County Council,1111/1001,Children and Young People,CYP,Transport Related,CCA,04/03/2019,12-10339,2782.5,Arrow Specialised Transport Ltd
Nottinghamshire County Council,1111/1001,Children and Young People,CYP,Transport Related,CCA,04/03/2019,12-10340,"3,055.92",Arrow Specialised Transport Ltd
Nottinghamshire County Council,1111/1001,Children and Young People,CYP,Transport Related,CCA,04/03/2019,12-10341,1741.5,Arrow Specialised Transport Ltd
Nottinghamshire County Council,1111/1001,Children and Young People,CYP,Transport Related,CCA,04/03/2019,12-10342,"1,777.50",Arrow Specialised Transport Ltd
Nottinghamshire County Council,1111/1001,Children and Young People,CYP,Transport Related,CCA,04/03/2019,12-10343,"2,280.32",Arrow Specialised Transport Ltd
Nottinghamshire County Council,1111/1001,Children and Young People,CYP,Transport Related,CCA,04/03/2019,12-10344,"2,394.00",Arrow Specialised Transport Ltd
Nottinghamshire County Council,1111/1001,Children and Young People,CYP,Transport Related,CCA,04/03/2019,12-10345,2038.4,Arrow Specialised Transport Ltd
Nottinghamshire County Council,1111/1001,Children and Young People,CYP,Transport Related,CCA,04/03/2019,12-10346,1559.6,Arrow Specialised Transport Ltd
Nottinghamshire County Council,1111/1001,Children and Young People,CYP,Transport Related,CCA,04/03/2019,12-10347,2195.2,Arrow Specialised Transport Ltd
Nottinghamshire County Council,1111/1001,Children and Young People,CYP,Transport Related,CCA,04/03/2019,12-10348,1397.25,Arrow Specialised Transport Ltd
Nottinghamshire County Council,1111/1001,Children and Young People,CYP,Transport Related,CCA,04/03/2019,12-10350,"1,697.50",Arrow Specialised Transport Ltd
Nottinghamshire County Council,1111/1001,Children and Young People,CYP,Transport Related,CCA,04/03/2019,12-10351,1474.06,Arrow Specialised Transport Ltd
Nottinghamshire County Council,1111/1001,Children and Young People,CYP,Transport Related,CCA,04/03/2019,12-10352,"2,472.82",Arrow Specialised Transport Ltd
Nottinghamshire County Council,1111/1001,Children and Young People,CYP,Transport Related,CCA,04/03/2019,12-10353,1677.48,Arrow Specialised Transport Ltd
Nottinghamshire County Council,1111/1001,Children and Young People,CYP,Transport Related,CCA,04/03/2019,12-10354,"2,543.52",Arrow Specialised Transport Ltd
Nottinghamshire County Council,1111/1001,Children and Young People,CYP,Transport Related,CCA,04/03/2019,12-10355,"2,331.42",Arrow Specialised Transport Ltd
Nottinghamshire County Council,1111/1001,Children and Young People,CYP,Transport Related,CCA,04/03/2019,12-10356,1920.52,Arrow Specialised Transport Ltd
Nottinghamshire County Council,1111/1001,Children and Young People,CYP,Transport Related,CCA,04/03/2019,12-10357,"1,685.32",Arrow Specialised Transport Ltd
Nottinghamshire County Council,1111/1001,Children and Young People,CYP,Transport Related,CCA,04/03/2019,12-10358,"1,362.34",Arrow Specialised Transport Ltd
Nottinghamshire County Council,1111/1001,Children and Young People,CYP,Transport Related,CCA,04/03/2019,12-10359,2088.66,Arrow Specialised Transport Ltd
Nottinghamshire County Council,1111/1001,Children and Young People,CYP,Transport Related,CCA,04/03/2019,12-10360,1575.56,Arrow Specialised Transport Ltd
Nottinghamshire County Council,1111/1001,Children and Young People,CYP,Transport Related,CCA,04/03/2019,12-10361,2653,Arrow Specialised Transport Ltd
Nottinghamshire County Council,1111/1001,Children and Young People,CYP,Transport Related,CCA,04/03/2019,12-10362,1575,Arrow Specialised Transport Ltd
Nottinghamshire County Council,1111/1001,Children and Young People,CYP,Transport Related,CCA,04/03/2019,12-10363,"1,624.00",Arrow Specialised Transport Ltd
Nottinghamshire County Council,1111/1001,Children and Young People,CYP,Transport Related,CCA,04/03/2019,12-10364,"1,624.00",Arrow Specialised Transport Ltd
Nottinghamshire County Council,1111/1001,Children and Young People,CYP,Transport Related,CCA,04/03/2019,12-10365,"1,607.20",Arrow Specialised Transport Ltd
Nottinghamshire County Council,1111/1001,Children and Young People,CYP,Transport Related,CCA,04/03/2019,12-10366,"1,582.00",Arrow Specialised Transport Ltd
Nottinghamshire County Council,1111/1001,Children and Young People,CYP,Transport Related,CCA,04/03/2019,12-10367,"1,876.00",Arrow Specialised Transport Ltd
Nottinghamshire County Council,1111/1001,Children and Young People,CYP,Transport Related,CCA,04/03/2019,12-10368,"2,034.06",Arrow Specialised Transport Ltd
Nottinghamshire County Council,1111/1001,Children and Young People,CYP,Transport Related,CCA,04/03/2019,12-10369,"1,638.84",Arrow Specialised Transport Ltd
Nottinghamshire County Council,1111/1001,Children and Young People,CYP,Transport Related,CCA,04/03/2019,12-10370,"1,677.20",Arrow Specialised Transport Ltd
Nottinghamshire County Council,1111/1001,Children and Young People,CYP,Transport Related,CCA,04/03/2019,12-10371,1973.3,Arrow Specialised Transport Ltd
Nottinghamshire County Council,1111/1001,Children and Young People,CYP,Transport Related,CCA,04/03/2019,12-10372,1267.84,Arrow Specialised Transport Ltd
Nottinghamshire County Council,1111/1001,Children and Young People,CYP,Transport Related,CCA,04/03/2019,12-10373,"2,051.25",Arrow Specialised Transport Ltd
Nottinghamshire County Council,1111/1001,Children and Young People,CYP,Transport Related,CCA,04/03/2019,12-10374,1883,Arrow Specialised Transport Ltd
Nottinghamshire County Council,1111/1001,Children and Young People,CYP,Transport Related,CCA,04/03/2019,12-10375,1495.5,Arrow Specialised Transport Ltd
Nottinghamshire County Council,1111/1001,Children and Young People,CYP,Transport Related,CCA,04/03/2019,12-10376,4741.95,Arrow Specialised Transport Ltd
Nottinghamshire County Council,1111/1001,Children and Young People,CYP,Transport Related,CCA,04/03/2019,12-10377,2164.65,Arrow Specialised Transport Ltd
Nottinghamshire County Council,1111/1001,Children and Young People,CYP,Transport Related,CCA,04/03/2019,12-10378,1582,Arrow Specialised Transport Ltd
Nottinghamshire County Council,1111/1001,Children and Young People,CYP,Transport Related,CCA,04/03/2019,12-10379,2530.05,Arrow Specialised Transport Ltd
Nottinghamshire County Council,1111/1001,Children and Young People,CYP,Transport Related,CCA,04/03/2019,12-10380,3594.3,Arrow Specialised Transport Ltd
Nottinghamshire County Council,1111/1001,Children and Young People,CYP,Transport Related,CCA,04/03/2019,12-10381,2761.05,Arrow Specialised Transport Ltd
Nottinghamshire County Council,1111/1001,Children and Young People,CYP,Transport Related,CCA,04/03/2019,12-10383,"1,607.25",Arrow Specialised Transport Ltd
Nottinghamshire County Council,1111/1001,Children and Young People,CYP,Transport Related,CCA,04/03/2019,12-10384,2184,Arrow Specialised Transport Ltd
Nottinghamshire County Council,1111/1001,Children and Young People,CYP,Transport Related,CCA,04/03/2019,12-10385,1860,Arrow Specialised Transport Ltd
Nottinghamshire County Council,1111/1001,Children and Young People,CYP,Transport Related,CCA,04/03/2019,12-10386,2070,Arrow Specialised Transport Ltd
Nottinghamshire County Council,1111/1001,Children and Young People,CYP,Transport Related,CCA,04/03/2019,12-10387,"2,092.50",Arrow Specialised Transport Ltd
Nottinghamshire County Council,1111/1001,Children and Young People,CYP,Transport Related,CCA,04/03/2019,12-10388,"2,013.75",Arrow Specialised Transport Ltd
Nottinghamshire County Council,1111/1001,Children and Young People,CYP,Transport Related,CCA,04/03/2019,12-10389,"1,507.50",Arrow Specialised Transport Ltd
Nottinghamshire County Council,1111/1001,Children and Young People,CYP,Transport Related,CCA,04/03/2019,12-10390,2233,Arrow Specialised Transport Ltd
Nottinghamshire County Council,1111/1001,Children and Young People,CYP,Transport Related,CCA,04/03/2019,12-10391,1813,Arrow Specialised Transport Ltd
Nottinghamshire County Council,1111/1001,Children and Young People,CYP,Transport Related,CCA,04/03/2019,12-10392,2105.85,Arrow Specialised Transport Ltd
Nottinghamshire County Council,1111/1001,Children and Young People,CYP,Transport Related,CCA,04/03/2019,12-10393,3376.5,Arrow Specialised Transport Ltd
Nottinghamshire County Council,1111/1001,Children and Young People,CYP,Transport Related,CCA,04/03/2019,12-10394,1509.15,Arrow Specialised Transport Ltd
Nottinghamshire County Council,1111/1001,Children and Young People,CYP,Transport Related,CCA,04/03/2019,12-10395,"1,610.70",Arrow Specialised Transport Ltd
Nottinghamshire County Council,1111/1001,Children and Young People,CYP,Transport Related,CCA,04/03/2019,12-10396,"2,086.00",Arrow Specialised Transport Ltd
Nottinghamshire County Council,1111/1001,Children and Young People,CYP,Transport Related,CCA,04/03/2019,12-10397,"1,858.50",Arrow Specialised Transport Ltd
Nottinghamshire County Council,1111/1001,Children and Young People,CYP,Transport Related,CCA,04/03/2019,12-10398,1922.2,Arrow Specialised Transport Ltd
Nottinghamshire County Council,1111/1001,Children and Young People,CYP,Transport Related,CCA,04/03/2019,12-10399,1778.42,Arrow Specialised Transport Ltd
Nottinghamshire County Council,1111/1001,Children and Young People,CYP,Transport Related,CCA,04/03/2019,12-10400,"1,703.24",Arrow Specialised Transport Ltd
Nottinghamshire County Council,1111/1001,Children and Young People,CYP,Transport Related,CCA,04/03/2019,12-10401,"2,134.72",Arrow Specialised Transport Ltd
Nottinghamshire County Council,1111/1001,Children and Young People,CYP,Transport Related,CCA,04/03/2019,12-10402,1789.2,Arrow Specialised Transport Ltd
Nottinghamshire County Council,1111/1001,Children and Young People,CYP,Transport Related,CCA,04/03/2019,12-10403,"3,060.40",Arrow Specialised Transport Ltd
Nottinghamshire County Council,1111/1001,Children and Young People,CYP,Transport Related,CCA,04/03/2019,12-10404,1621.2,Arrow Specialised Transport Ltd
Nottinghamshire County Council,1111/1001,Children and Young People,CYP,Transport Related,CCA,04/03/2019,12-10405,3678,Arrow Specialised Transport Ltd
Nottinghamshire County Council,1111/1001,Children and Young People,CYP,Transport Related,CCA,04/03/2019,12-10406,"1,136.25",Bridges Transport Ltd
Nottinghamshire County Council,1111/1001,Children and Young People,CYP,Transport Related,CCA,04/03/2019,12-10412,1106.58,Bridges Transport Ltd
Nottinghamshire County Council,1111/1001,Children and Young People,CYP,Transport Related,CCA,04/03/2019,12-10414,"2,604.06",Bridges Transport Ltd
Nottinghamshire County Council,1111/1001,Children and Young People,CYP,Transport Related,CCA,04/03/2019,12-10415,2058,Bridges Transport Ltd
Nottinghamshire County Council,1111/1001,Children and Young People,CYP,Transport Related,CCA,04/03/2019,12-10416,1049.86,Bridges Transport Ltd
Nottinghamshire County Council,1111/1001,Children and Young People,CYP,Transport Related,CCA,04/03/2019,12-10417,1889.02,Bridges Transport Ltd
Nottinghamshire County Council,1111/1001,Children and Young People,CYP,Transport Related,CCA,04/03/2019,12-10418,"1,706.74",Bridges Transport Ltd
Nottinghamshire County Council,1111/1001,Children and Young People,CYP,Transport Related,CCA,04/03/2019,12-10419,763.56,Bridges Transport Ltd
Nottinghamshire County Council,1111/1001,Children and Young People,CYP,Transport Related,CCA,04/03/2019,12-10420,2333.1,Bridges Transport Ltd
Nottinghamshire County Council,1111/1001,Children and Young People,CYP,Transport Related,CCA,04/03/2019,12-10421,1038.94,Bridges Transport Ltd
Nottinghamshire County Council,1111/1001,Children and Young People,CYP,Transport Related,CCA,04/03/2019,12-10422,720,Bridges Transport Ltd
Nottinghamshire County Council,1111/1001,Children and Young People,CYP,Transport Related,CCA,04/03/2019,12-10425,750,Fozcabs Newark Taxis
Nottinghamshire County Council,1111/1001,Children and Young People,CYP,Transport Related,CCA,04/03/2019,12-10426,1050,Fozcabs Newark Taxis
Nottinghamshire County Council,1111/1001,Children and Young People,CYP,Transport Related,CCA,04/03/2019,12-10427,1725,Fozcabs Newark Taxis
Nottinghamshire County Council,1111/1001,Children and Young People,CYP,Transport Related,CCA,04/03/2019,12-10430,535,Fozcabs Newark Taxis
Nottinghamshire County Council,1111/1001,Children and Young People,CYP,Transport Related,CCA,04/03/2019,12-10431,597,Galaxy Cabs Ltd
Nottinghamshire County Council,1111/1001,Children and Young People,CYP,Transport Related,CCA,04/03/2019,12-10433,616.13,Galaxy Cabs Ltd
Nottinghamshire County Council,1111/1001,Children and Young People,CYP,Transport Related,CCA,04/03/2019,12-10436,1526,Galaxy Cabs Ltd
Nottinghamshire County Council,1111/1001,Children and Young People,CYP,Transport Related,CCA,04/03/2019,12-10437,909,Galaxy Cabs Ltd
Nottinghamshire County Council,1111/1001,Children and Young People,CYP,Transport Related,CCA,04/03/2019,12-10438,1095,Galaxy Cabs Ltd
Nottinghamshire County Council,1111/1001,Children and Young People,CYP,Transport Related,CCA,04/03/2019,12-10439,"1,470.00",Galaxy Cabs Ltd
Nottinghamshire County Council,1111/1001,Children and Young People,CYP,Transport Related,CCA,04/03/2019,12-10440,"2,160.00",Galaxy Cabs Ltd
Nottinghamshire County Council,1111/1001,Children and Young People,CYP,Transport Related,CCA,04/03/2019,12-10442,2310,Horizon Travel
Nottinghamshire County Council,1111/1001,Children and Young People,CYP,Transport Related,CCA,04/03/2019,12-10443,840,Ng11 Cars
Nottinghamshire County Council,1111/1001,Children and Young People,CYP,Transport Related,CCA,04/03/2019,12-10446,681.75,Ng11 Cars
Nottinghamshire County Council,1111/1001,Children and Young People,CYP,Transport Related,CCA,04/03/2019,12-10448,"2,670.00",Vallances Coaches
Nottinghamshire County Council,1111/1001,Children and Young People,CYP,Transport Related,CCA,04/03/2019,12-10449,"2,610.00",Vallances Coaches
Nottinghamshire County Council,1111/1001,Children and Young People,CYP,Transport Related,CCA,04/03/2019,12-10451,2670,Vallances Coaches
Nottinghamshire County Council,1111/1001,Children and Young People,CYP,Transport Related,CCA,04/03/2019,12-10452,"1,908.90",Vallances Coaches
Nottinghamshire County Council,1111/1001,Children and Young People,CYP,Transport Related,CCA,04/03/2019,12-10453,1805.7,K & S Coaches
Nottinghamshire County Council,1111/1001,Children and Young People,CYP,Transport Related,CCA,04/03/2019,12-10454,1589.1,Midfield Travel
Nottinghamshire County Council,1111/1001,Children and Young People,CYP,Transport Related,CCA,04/03/2019,12-10455,1945.95,Midfield Travel
Nottinghamshire County Council,1111/1001,Children and Young People,CYP,Transport Related,CCA,04/03/2019,12-10456,"2,075.55",D G Private Hire Ltd
Nottinghamshire County Council,1111/1001,Children and Young People,CYP,Transport Related,CCA,04/03/2019,12-10457,1060.5,D G Private Hire Ltd
Nottinghamshire County Council,1111/1001,Children and Young People,CYP,Transport Related,CCA,04/03/2019,12-10458,"1,200.00",D G Private Hire Ltd
Nottinghamshire County Council,1111/1001,Children and Young People,CYP,Transport Related,CCA,04/03/2019,12-10460,757.5,D G Private Hire Ltd
Nottinghamshire County Council,1111/1001,Children and Young People,CYP,Transport Related,CCA,04/03/2019,12-10461,900,D G Private Hire Ltd
Nottinghamshire County Council,1111/1001,Children and Young People,CYP,Transport Related,CCA,04/03/2019,12-10462,900,D G Private Hire Ltd
Nottinghamshire County Council,1111/1001,Children and Young People,CYP,Transport Related,CCA,04/03/2019,12-10463,"1,500.00",D G Private Hire Ltd
Nottinghamshire County Council,1111/1001,Children and Young People,CYP,Transport Related,CCA,04/03/2019,12-10465,2085,AOT Coaches
Nottinghamshire County Council,1111/1001,Children and Young People,CYP,Transport Related,CCA,04/03/2019,12-10466,"1,950.00",AOT Coaches
Nottinghamshire County Council,1111/1001,Children and Young People,CYP,Transport Related,CCA,04/03/2019,12-10467,8325,AOT Coaches
Nottinghamshire County Council,1111/1001,Children and Young People,CYP,Transport Related,CCA,04/03/2019,12-10468,"1,650.00",K & R Cars
Nottinghamshire County Council,1111/1001,Children and Young People,CYP,Transport Related,CCA,04/03/2019,12-10469,2006.68,Marshalls Of Sutton On Trent Ltd
Nottinghamshire County Council,1111/1001,Children and Young People,CYP,Transport Related,CCA,04/03/2019,12-10477,"2,206.96",Nottingham Minibuses & Coaches
Nottinghamshire County Council,1111/1001,Children and Young People,CYP,Transport Related,CCA,04/03/2019,12-10480,"1,496.10",Nottingham Minibuses & Coaches
Nottinghamshire County Council,1111/1001,Children and Young People,CYP,Transport Related,CCA,04/03/2019,12-10483,10773,Travel Wright Ltd
Nottinghamshire County Council,1111/1001,Children and Young People,CYP,Transport Related,CCA,04/03/2019,12-10484,1148,Travel Wright Ltd
Nottinghamshire County Council,1111/1001,Children and Young People,CYP,Transport Related,CCA,04/03/2019,12-10485,756,Travel Wright Ltd
Nottinghamshire County Council,1111/1001,Children and Young People,CYP,Transport Related,CCA,04/03/2019,12-10486,2522,Travel Wright Ltd
Nottinghamshire County Council,1111/1001,Children and Young People,CYP,Transport Related,CCA,04/03/2019,12-10487,2602.5,Travel Wright Ltd
Nottinghamshire County Council,1111/1001,Children and Young People,CYP,Transport Related,CCA,04/03/2019,12-10488,"2,429.00",Travel Wright Ltd
Nottinghamshire County Council,1111/1001,Children and Young People,CYP,Transport Related,CCA,04/03/2019,12-10490,"2,847.00",Travel Wright Ltd
Nottinghamshire County Council,1111/1001,Children and Young People,CYP,Transport Related,CCA,04/03/2019,12-10491,2394.5,Travel Wright Ltd
Nottinghamshire County Council,1111/1001,Children and Young People,CYP,Transport Related,CCA,04/03/2019,12-10492,2557.31,Travel Wright Ltd
Nottinghamshire County Council,1111/1001,Children and Young People,CYP,Transport Related,CCA,04/03/2019,12-10498,"1,789.20",Travel Wright Ltd
Nottinghamshire County Council,1111/1001,Children and Young People,CYP,Transport Related,CCA,04/03/2019,12-10499,2364,Travel Wright Ltd
Nottinghamshire County Council,1111/1001,Children and Young People,CYP,Transport Related,CCA,04/03/2019,12-10500,"7,200.00",Wilfreda Beehive
Nottinghamshire County Council,1111/1001,Children and Young People,CYP,Transport Related,CCA,04/03/2019,12-10502,3000,Dunn Motor Traction Ltd
Nottinghamshire County Council,1111/1001,Children and Young People,CYP,Transport Related,CCA,04/03/2019,12-10503,2250,Dunn Motor Traction Ltd
Nottinghamshire County Council,1111/1001,Children and Young People,CYP,Transport Related,CCA,04/03/2019,12-10504,"2,250.00",Dunn Motor Traction Ltd
Nottinghamshire County Council,1111/1001,Children and Young People,CYP,Transport Related,CCA,04/03/2019,12-10505,"2,100.00",Dunn Motor Traction Ltd
Nottinghamshire County Council,1111/1001,Children and Young People,CYP,Transport Related,CCA,04/03/2019,12-10506,4998,Kettlewell Retford Ltd
Nottinghamshire County Council,1111/1001,Children and Young People,CYP,Transport Related,CCA,04/03/2019,12-10507,"1,582.00",Kettlewell Retford Ltd
Nottinghamshire County Council,1111/1001,Children and Young People,CYP,Transport Related,CCA,04/03/2019,12-10508,2170,Kettlewell Retford Ltd
Nottinghamshire County Council,1111/1001,Children and Young People,CYP,Transport Related,CCA,04/03/2019,12-10509,"2,296.00",Kettlewell Retford Ltd
Nottinghamshire County Council,1111/1001,Children and Young People,CYP,Transport Related,CCA,04/03/2019,12-10510,2296,Kettlewell Retford Ltd
Nottinghamshire County Council,1111/1001,Children and Young People,CYP,Transport Related,CCA,04/03/2019,12-10511,"2,160.00",Kettlewell Retford Ltd
Nottinghamshire County Council,1111/1001,Children and Young People,CYP,Transport Related,CCA,04/03/2019,12-10512,2775,Kettlewell Retford Ltd
Nottinghamshire County Council,1111/1001,Children and Young People,CYP,Transport Related,CCA,04/03/2019,12-10513,3290,Kettlewell Retford Ltd
Nottinghamshire County Council,1111/1001,Children and Young People,CYP,Transport Related,CCA,04/03/2019,12-10514,"3,175.50",Kettlewell Retford Ltd
Nottinghamshire County Council,1111/1001,Children and Young People,CYP,Transport Related,CCA,04/03/2019,12-10517,"3,000.00",C W Moxon Ltd
Nottinghamshire County Council,1111/1001,Children and Young People,CYP,Transport Related,CCA,04/03/2019,12-10519,"7,994.00",C W Moxon Ltd
Nottinghamshire County Council,1111/1001,Children and Young People,CYP,Transport Related,CCA,04/03/2019,12-10520,935,Rio Cabs
Nottinghamshire County Council,1111/1001,Children and Young People,CYP,Transport Related,CCA,04/03/2019,12-10521,763,Rio Cabs
Nottinghamshire County Council,1111/1001,Children and Young People,CYP,Transport Related,CCA,04/03/2019,12-10522,693,Rio Cabs
Nottinghamshire County Council,1111/1001,Children and Young People,CYP,Transport Related,CCA,04/03/2019,12-10524,1098.9,Rio Cabs
Nottinghamshire County Council,1111/1001,Children and Young People,CYP,Transport Related,CCA,04/03/2019,12-10525,"1,400.00",Rio Cabs
Nottinghamshire County Council,1111/1001,Children and Young People,CYP,Transport Related,CCA,04/03/2019,12-10526,1806,Rio Cabs
Nottinghamshire County Council,1111/1001,Children and Young People,CYP,Transport Related,CCA,04/03/2019,12-10546,1575,Travel Liner
Nottinghamshire County Council,1111/1001,Children and Young People,CYP,Transport Related,CCA,04/03/2019,12-10547,"1,750.00",Trevor Bailey t/a Trevor Bailey Tra
Nottinghamshire County Council,1111/1001,Children and Young People,CYP,Transport Related,CCA,04/03/2019,12-10548,1666,A2B Licensed Taxis
Nottinghamshire County Council,1111/1001,Children and Young People,CYP,Transport Related,CCA,04/03/2019,12-10549,"1,087.50",Sean's Taxi Services
Nottinghamshire County Council,1111/1001,Children and Young People,CYP,Transport Related,CCA,04/03/2019,12-10551,2431.25,Hammonds Coaches Ltd
Nottinghamshire County Council,1111/1001,Children and Young People,CYP,Transport Related,CCA,04/03/2019,12-10554,1893.75,A Travel
Nottinghamshire County Council,1111/1001,Children and Young People,CYP,Transport Related,CCA,04/03/2019,12-10556,600,Reliable Cars Ltd
Nottinghamshire County Council,1111/1001,Children and Young People,CYP,Transport Related,CCA,04/03/2019,12-10557,930,Reliable Cars Ltd
Nottinghamshire County Council,1111/1001,Children and Young People,CYP,Transport Related,CCA,04/03/2019,12-10558,560,Reliable Cars Ltd
Nottinghamshire County Council,1111/1001,Children and Young People,CYP,Transport Related,CCA,04/03/2019,12-10559,"1,012.00",Reliable Cars Ltd
Nottinghamshire County Council,1111/1001,Children and Young People,CYP,Transport Related,CCA,04/03/2019,12-10561,896.88,Forest Cars
Nottinghamshire County Council,1111/1001,Children and Young People,CYP,Transport Related,CCA,04/03/2019,12-10562,1260,Forest Cars
Nottinghamshire County Council,1111/1001,Children and Young People,CYP,Transport Related,CCA,04/03/2019,12-10563,"1,335.00",Forest Cars
Nottinghamshire County Council,1111/1001,Children and Young People,CYP,Transport Related,CCA,04/03/2019,12-10564,"1,860.00",Forest Cars
Nottinghamshire County Council,1111/1001,Children and Young People,CYP,Transport Related,CCA,04/03/2019,12-10565,"1,333.20",Forest Cars
Nottinghamshire County Council,1111/1001,Children and Young People,CYP,Transport Related,CCA,04/03/2019,12-10566,"1,363.50",Forest Cars
Nottinghamshire County Council,1111/1001,Children and Young People,CYP,Transport Related,CCA,04/03/2019,12-10567,1651.35,Forest Cars
Nottinghamshire County Council,1111/1001,Children and Young People,CYP,Transport Related,CCA,04/03/2019,12-10568,560.55,Forest Cars
Nottinghamshire County Council,1111/1001,Children and Young People,CYP,Transport Related,CCA,04/03/2019,12-10570,1110,Forest Cars
Nottinghamshire County Council,1111/1001,Children and Young People,CYP,Transport Related,CCA,04/03/2019,12-10571,890.82,Forest Cars
Nottinghamshire County Council,1111/1001,Children and Young People,CYP,Transport Related,CCA,04/03/2019,12-10572,"1,257.38",Forest Cars
Nottinghamshire County Council,1111/1001,Children and Young People,CYP,Transport Related,CCA,04/03/2019,12-10574,882,Forest Cars
Nottinghamshire County Council,1111/1001,Children and Young People,CYP,Transport Related,CCA,04/03/2019,12-10575,936,Forest Cars
Nottinghamshire County Council,1111/1001,Children and Young People,CYP,Transport Related,CCA,04/03/2019,12-10576,"1,110.00",Forest Cars
Nottinghamshire County Council,1111/1001,Children and Young People,CYP,Transport Related,CCA,04/03/2019,12-10577,1894.76,Forest Cars
Nottinghamshire County Council,1111/1001,Children and Young People,CYP,Transport Related,CCA,04/03/2019,12-10578,660,Forest Cars
Nottinghamshire County Council,1111/1001,Children and Young People,CYP,Transport Related,CCA,04/03/2019,12-10580,"1,386.00",Forest Cars
Nottinghamshire County Council,1111/1001,Children and Young People,CYP,Transport Related,CCA,04/03/2019,12-10581,"1,386.00",Forest Cars
Nottinghamshire County Council,1111/1001,Children and Young People,CYP,Transport Related,CCA,04/03/2019,12-10582,1470,Forest Cars
Nottinghamshire County Council,1111/1001,Children and Young People,CYP,Transport Related,CCA,04/03/2019,12-10583,1456,Forest Cars
Nottinghamshire County Council,1111/1001,Children and Young People,CYP,Transport Related,CCA,04/03/2019,12-10584,1485,Forest Cars
Nottinghamshire County Council,1111/1001,Children and Young People,CYP,Transport Related,CCA,04/03/2019,12-10586,"1,425.00",Forest Cars
Nottinghamshire County Council,1111/1001,Children and Young People,CYP,Transport Related,CCA,04/03/2019,12-10587,2632,Millennium Travel
Nottinghamshire County Council,1111/1001,Children and Young People,CYP,Transport Related,CCA,04/03/2019,12-10588,660,AJ's Taxis
Nottinghamshire County Council,1111/1001,Children and Young People,CYP,Transport Related,CCA,04/03/2019,12-10589,"1,050.00",APC Travel
Nottinghamshire County Council,1111/1001,Children and Young People,CYP,Transport Related,CCA,04/03/2019,12-10590,2520,Unity Coaches Ltd
Nottinghamshire County Council,1111/1001,Children and Young People,CYP,Transport Related,CCA,04/03/2019,12-10594,1852.76,F4Control Ltd (t/a First4care)
Nottinghamshire County Council,1111/1001,Children and Young People,CYP,Transport Related,CCA,04/03/2019,12-10596,2323.8,F4Control Ltd (t/a First4care)
Nottinghamshire County Council,1111/1001,Children and Young People,CYP,Transport Related,CCA,04/03/2019,12-10597,1753.35,F4Control Ltd (t/a First4care)
Nottinghamshire County Council,1111/1001,Children and Young People,CYP,Transport Related,CCA,04/03/2019,12-10598,1772.4,F4Control Ltd (t/a First4care)
Nottinghamshire County Council,1111/1001,Children and Young People,CYP,Transport Related,CCA,04/03/2019,12-10599,1615.05,F4Control Ltd (t/a First4care)
Nottinghamshire County Council,1111/1001,Children and Young People,CYP,Transport Related,CCA,04/03/2019,12-10600,1797.6,F4Control Ltd (t/a First4care)
Nottinghamshire County Council,1111/1001,Children and Young People,CYP,Transport Related,CCA,04/03/2019,12-10601,1681.96,F4Control Ltd (t/a First4care)
Nottinghamshire County Council,1111/1001,Children and Young People,CYP,Transport Related,CCA,04/03/2019,12-10602,2213.85,F4Control Ltd (t/a First4care)
Nottinghamshire County Council,1111/1001,Children and Young People,CYP,Transport Related,CCA,04/03/2019,12-10603,1908.9,F4Control Ltd (t/a First4care)
Nottinghamshire County Council,1111/1001,Children and Young People,CYP,Transport Related,CCA,04/03/2019,12-10604,1874.6,F4Control Ltd (t/a First4care)
Nottinghamshire County Council,1111/1001,Children and Young People,CYP,Transport Related,CCA,04/03/2019,12-10605,2011.2,F4Control Ltd (t/a First4care)
Nottinghamshire County Council,1111/1001,Children and Young People,CYP,Transport Related,CCA,04/03/2019,12-10606,1930.65,F4Control Ltd (t/a First4care)
Nottinghamshire County Council,1111/1001,Children and Young People,CYP,Transport Related,CCA,04/03/2019,12-10607,1543.08,F4Control Ltd (t/a First4care)
Nottinghamshire County Council,1111/1001,Children and Young People,CYP,Transport Related,CCA,04/03/2019,12-10608,1648.2,F4Control Ltd (t/a First4care)
Nottinghamshire County Council,1111/1001,Children and Young People,CYP,Transport Related,CCA,04/03/2019,12-10609,2988.45,F4Control Ltd (t/a First4care)
Nottinghamshire County Council,1111/1001,Children and Young People,CYP,Transport Related,CCA,04/03/2019,12-10610,"1,818.90",F4Control Ltd (t/a First4care)
Nottinghamshire County Council,1111/1001,Children and Young People,CYP,Transport Related,CCA,04/03/2019,12-10611,"1,564.50",F4Control Ltd (t/a First4care)
Nottinghamshire County Council,1111/1001,Children and Young People,CYP,Transport Related,CCA,04/03/2019,12-10612,1868.72,F4Control Ltd (t/a First4care)
Nottinghamshire County Council,1111/1001,Children and Young People,CYP,Transport Related,CCA,04/03/2019,12-10613,3053.54,F4Control Ltd (t/a First4care)
Nottinghamshire County Council,1111/1001,Children and Young People,CYP,Transport Related,CCA,04/03/2019,12-10614,2140.95,F4Control Ltd (t/a First4care)
Nottinghamshire County Council,1111/1001,Children and Young People,CYP,Transport Related,CCA,04/03/2019,12-10616,"1,785.42",F4Control Ltd (t/a First4care)
Nottinghamshire County Council,1111/1001,Children and Young People,CYP,Transport Related,CCA,04/03/2019,12-10617,"2,035.80",F4Control Ltd (t/a First4care)
Nottinghamshire County Council,1111/1001,Children and Young People,CYP,Transport Related,CCA,04/03/2019,12-10618,"1,912.95",F4Control Ltd (t/a First4care)
Nottinghamshire County Council,1111/1001,Children and Young People,CYP,Transport Related,CCA,04/03/2019,12-10619,"1,760.22",F4Control Ltd (t/a First4care)
Nottinghamshire County Council,1111/1001,Children and Young People,CYP,Transport Related,CCA,04/03/2019,12-10622,1067.31,F4Control Ltd (t/a First4care)
Nottinghamshire County Council,1111/1001,Children and Young People,CYP,Transport Related,CCA,04/03/2019,12-10624,2070.47,F4Control Ltd (t/a First4care)
Nottinghamshire County Council,1111/1001,Children and Young People,CYP,Transport Related,CCA,04/03/2019,12-10626,990,Reliable Cars Ltd
Nottinghamshire County Council,1111/1001,Children and Young People,CYP,Transport Related,CCA,04/03/2019,12-10627,"1,650.00",Reliable Cars Ltd
Nottinghamshire County Council,1111/1001,Children and Young People,CYP,Transport Related,CCA,04/03/2019,12-10628,630,Reliable Cars Ltd
Nottinghamshire County Council,1111/1001,Children and Young People,CYP,Transport Related,CCA,04/03/2019,12-10629,1887,Reliable Cars Ltd
Nottinghamshire County Council,1111/1001,Children and Young People,CYP,Transport Related,CCA,04/03/2019,12-10631,"1,176.00",Forest Cars
Nottinghamshire County Council,1111/1001,Children and Young People,CYP,Transport Related,CCA,05/03/2019,12-10528,15594.88,Ace Cars & Minibuses Ltd
Nottinghamshire County Council,1111/1001,Children and Young People,CYP,Transport Related,CCA,05/03/2019,12-10529,1942.5,Ace Cars & Minibuses Ltd
Nottinghamshire County Council,1111/1001,Children and Young People,CYP,Transport Related,CCA,05/03/2019,12-10530,1850.05,Ace Cars & Minibuses Ltd
Nottinghamshire County Council,1111/1001,Children and Young People,CYP,Transport Related,CCA,05/03/2019,12-10532,"1,323.00",Ace Cars & Minibuses Ltd
Nottinghamshire County Council,1111/1001,Children and Young People,CYP,Transport Related,CCA,05/03/2019,12-10533,"1,867.50",Ace Cars & Minibuses Ltd
Nottinghamshire County Council,1111/1001,Children and Young People,CYP,Transport Related,CCA,05/03/2019,12-10534,"1,813.00",Ace Cars & Minibuses Ltd
Nottinghamshire County Council,1111/1001,Children and Young People,CYP,Transport Related,CCA,05/03/2019,12-10535,"1,356.00",Ace Cars & Minibuses Ltd
Nottinghamshire County Council,1111/1001,Children and Young People,CYP,Transport Related,CCA,05/03/2019,12-10536,2093,Ace Cars & Minibuses Ltd
Nottinghamshire County Council,1111/1001,Children and Young People,CYP,Transport Related,CCA,05/03/2019,12-10537,1673,Ace Cars & Minibuses Ltd
Nottinghamshire County Council,1111/1001,Children and Young People,CYP,Transport Related,CCA,05/03/2019,12-10538,"1,323.00",Ace Cars & Minibuses Ltd
Nottinghamshire County Council,1111/1001,Children and Young People,CYP,Transport Related,CCA,05/03/2019,12-10539,2542.5,Ace Cars & Minibuses Ltd
Nottinghamshire County Council,1111/1001,Children and Young People,CYP,Transport Related,CCA,05/03/2019,12-10540,"1,673.00",Ace Cars & Minibuses Ltd
Nottinghamshire County Council,1111/1001,Children and Young People,CYP,Transport Related,CCA,05/03/2019,12-10541,2092.5,Ace Cars & Minibuses Ltd
Nottinghamshire County Council,1111/1001,Children and Young People,CYP,Transport Related,CCA,05/03/2019,12-10542,1944.45,Ace Cars & Minibuses Ltd
Nottinghamshire County Council,1111/1001,Children and Young People,CYP,Transport Related,CCA,05/03/2019,12-10544,1867.5,Ace Cars & Minibuses Ltd
Nottinghamshire County Council,1111/1001,Children and Young People,CYP,Transport Related,CCA,05/03/2019,12-10545,"1,578.00",Ace Cars & Minibuses Ltd
Nottinghamshire County Council,1111/1001,Children and Young People,CYP,Transport Related,CCA,07/03/2019,12-11931,4671.3,Via East Midlands Ltd
Nottinghamshire County Council,1111/1001,Children and Young People,CYP,Transport Related,CCA,08/03/2019,12-11946,675,6 Five 2s
Nottinghamshire County Council,1111/1001,Children and Young People,CYP,Transport Related,CCA,08/03/2019,12-11947,"1,330.00",6 Five 2s
Nottinghamshire County Council,1111/1001,Children and Young People,CYP,Transport Related,CCA,08/03/2019,12-11948,975,6 Five 2s
Nottinghamshire County Council,1111/1001,Children and Young People,CYP,Transport Related,CCA,08/03/2019,12-11949,1540,6 Five 2s
Nottinghamshire County Council,1111/1001,Children and Young People,CYP,Transport Related,CCA,08/03/2019,12-11950,1248.8,6 Five 2s
Nottinghamshire County Council,1111/1001,Children and Young People,CYP,Transport Related,CCA,08/03/2019,12-11951,"1,780.80",6 Five 2s
Nottinghamshire County Council,1111/1001,Children and Young People,CYP,Transport Related,CCA,08/03/2019,12-11952,"1,680.00",6 Five 2s
Nottinghamshire County Council,1111/1001,Children and Young People,CYP,Transport Related,CCA,08/03/2019,12-11953,1579.35,6 Five 2s
Nottinghamshire County Council,1111/1001,Children and Young People,CYP,Transport Related,CCA,08/03/2019,12-11954,900,6 Five 2s
Nottinghamshire County Council,1111/1001,Children and Young People,CYP,Transport Related,CCA,08/03/2019,12-11955,630,6 Five 2s
Nottinghamshire County Council,1111/1001,Children and Young People,CYP,Transport Related,CCA,08/03/2019,12-11956,1800,6 Five 2s
Nottinghamshire County Council,1111/1001,Children and Young People,CYP,Transport Related,CCA,08/03/2019,12-11959,600,Acorn Contracts
Nottinghamshire County Council,1111/1001,Children and Young People,CYP,Transport Related,CCA,08/03/2019,12-11960,660,Acorn Contracts
Nottinghamshire County Council,1111/1001,Children and Young People,CYP,Transport Related,CCA,08/03/2019,12-11961,"1,703.24",BN Gibson Ltd
Nottinghamshire County Council,1111/1001,Children and Young People,CYP,Transport Related,CCA,08/03/2019,12-11962,"2,989.14",BN Gibson Ltd
Nottinghamshire County Council,1111/1001,Children and Young People,CYP,Transport Related,CCA,08/03/2019,12-11963,3274.88,BN Gibson Ltd
Nottinghamshire County Council,1111/1001,Children and Young People,CYP,Transport Related,CCA,08/03/2019,12-11964,1910.44,BN Gibson Ltd
Nottinghamshire County Council,1111/1001,Children and Young People,CYP,Transport Related,CCA,08/03/2019,12-11965,1609.72,BN Gibson Ltd
Nottinghamshire County Council,1111/1001,Children and Young People,CYP,Transport Related,CCA,08/03/2019,12-11966,1365.84,BN Gibson Ltd
Nottinghamshire County Council,1111/1001,Children and Young People,CYP,Transport Related,CCA,08/03/2019,12-11967,1609.72,BN Gibson Ltd
Nottinghamshire County Council,1111/1001,Children and Young People,CYP,Transport Related,CCA,08/03/2019,12-11968,2090.55,BN Gibson Ltd
Nottinghamshire County Council,1111/1001,Children and Young People,CYP,Transport Related,CCA,08/03/2019,12-11969,2265.6,BN Gibson Ltd
Nottinghamshire County Council,1111/1001,Children and Young People,CYP,Transport Related,CCA,08/03/2019,12-11970,"1,672.35",BN Gibson Ltd
Nottinghamshire County Council,1111/1001,Children and Young People,CYP,Transport Related,CCA,08/03/2019,12-11971,"1,921.05",BN Gibson Ltd
Nottinghamshire County Council,1111/1001,Children and Young People,CYP,Transport Related,CCA,08/03/2019,12-11972,"3,680.70",BN Gibson Ltd
Nottinghamshire County Council,1111/1001,Children and Young People,CYP,Transport Related,CCA,08/03/2019,12-11973,1703.24,BN Gibson Ltd
Nottinghamshire County Council,1111/1001,Children and Young People,CYP,Transport Related,CCA,08/03/2019,12-11974,2071.02,BN Gibson Ltd
Nottinghamshire County Council,1111/1001,Children and Young People,CYP,Transport Related,CCA,08/03/2019,12-11975,1703.24,BN Gibson Ltd
Nottinghamshire County Council,1111/1001,Children and Young People,CYP,Transport Related,CCA,08/03/2019,12-11976,2738.26,BN Gibson Ltd
Nottinghamshire County Council,1111/1001,Children and Young People,CYP,Transport Related,CCA,08/03/2019,12-11977,2264.78,BN Gibson Ltd
Nottinghamshire County Council,1111/1001,Children and Young People,CYP,Transport Related,CCA,08/03/2019,12-11978,"1,853.60",BN Gibson Ltd
Nottinghamshire County Council,1111/1001,Children and Young People,CYP,Transport Related,CCA,08/03/2019,12-11979,"2,478.42",BN Gibson Ltd
Nottinghamshire County Council,1111/1001,Children and Young People,CYP,Transport Related,CCA,08/03/2019,12-11980,2638.16,BN Gibson Ltd
Nottinghamshire County Council,1111/1001,Children and Young People,CYP,Transport Related,CCA,08/03/2019,12-11981,"4,359.15",BN Gibson Ltd
Nottinghamshire County Council,1111/1001,Children and Young People,CYP,Transport Related,CCA,08/03/2019,12-11982,"2,285.92",BN Gibson Ltd
Nottinghamshire County Council,1111/1001,Children and Young People,CYP,Transport Related,CCA,08/03/2019,12-11983,3085.35,BN Gibson Ltd
Nottinghamshire County Council,1111/1001,Children and Young People,CYP,Transport Related,CCA,08/03/2019,12-11984,2833.8,BN Gibson Ltd
Nottinghamshire County Council,1111/1001,Children and Young People,CYP,Transport Related,CCA,08/03/2019,12-11985,"1,800.45",BN Gibson Ltd
Nottinghamshire County Council,1111/1001,Children and Young People,CYP,Transport Related,CCA,08/03/2019,12-11986,1581.58,BN Gibson Ltd
Nottinghamshire County Council,1111/1001,Children and Young People,CYP,Transport Related,CCA,08/03/2019,12-11987,"2,788.50",BN Gibson Ltd
Nottinghamshire County Council,1111/1001,Children and Young People,CYP,Transport Related,CCA,08/03/2019,12-11988,1515,BN Gibson Ltd
Nottinghamshire County Council,1111/1001,Children and Young People,CYP,Transport Related,CCA,08/03/2019,12-11989,"1,398.00",BN Gibson Ltd
Nottinghamshire County Council,1111/1001,Children and Young People,CYP,Transport Related,CCA,08/03/2019,12-11992,1425,Abacus Cars
Nottinghamshire County Council,1111/1001,Children and Young People,CYP,Transport Related,CCA,08/03/2019,12-11993,"1,725.00",Abacus Cars
Nottinghamshire County Council,1111/1001,Children and Young People,CYP,Transport Related,CCA,08/03/2019,12-11994,1232,Abacus Cars
Nottinghamshire County Council,1111/1001,Children and Young People,CYP,Transport Related,CCA,08/03/2019,12-11995,1400,Abacus Cars
Nottinghamshire County Council,1111/1001,Children and Young People,CYP,Transport Related,CCA,08/03/2019,12-11996,"1,009.68",Abacus Cars
Nottinghamshire County Council,1111/1001,Children and Young People,CYP,Transport Related,CCA,08/03/2019,12-11997,"2,100.00",Abacus Cars
Nottinghamshire County Council,1111/1001,Children and Young People,CYP,Transport Related,CCA,08/03/2019,12-12005,"3,038.85",Marshalls Of Sutton On Trent Ltd
Nottinghamshire County Council,1111/1001,Children and Young People,CYP,Transport Related,CCA,08/03/2019,12-12006,"2,625.00",Marshalls Of Sutton On Trent Ltd
Nottinghamshire County Council,1111/1001,Children and Young People,CYP,Transport Related,CCA,08/03/2019,12-12007,"1,035.00",Meden Travel
Nottinghamshire County Council,1111/1001,Children and Young People,CYP,Transport Related,CCA,08/03/2019,12-12011,2150.25,Stagecoach Services Ltd
Nottinghamshire County Council,1111/1001,Children and Young People,CYP,Transport Related,CCA,08/03/2019,12-12018,3525,Stagecoach Services Ltd
Nottinghamshire County Council,1111/1001,Children and Young People,CYP,Transport Related,CCA,08/03/2019,12-12019,"3,901.13",Stagecoach Services Ltd
Nottinghamshire County Council,1111/1001,Children and Young People,CYP,Transport Related,CCA,08/03/2019,12-12029,"3,735.00",Stagecoach Services Ltd
Nottinghamshire County Council,1111/1001,Children and Young People,CYP,Transport Related,CCA,08/03/2019,12-12030,4261,Stagecoach Services Ltd
Nottinghamshire County Council,1111/1001,Children and Young People,CYP,Transport Related,CCA,08/03/2019,12-12035,5396.54,Stagecoach Services Ltd
Nottinghamshire County Council,1111/1001,Children and Young People,CYP,Transport Related,CCA,08/03/2019,12-12037,"4,329.54",Stagecoach Services Ltd
Nottinghamshire County Council,1111/1001,Children and Young People,CYP,Transport Related,CCA,08/03/2019,12-12039,"2,554.00",Stagecoach Services Ltd
Nottinghamshire County Council,1111/1001,Children and Young People,CYP,Transport Related,CCA,08/03/2019,12-12040,3670,Stagecoach Services Ltd
Nottinghamshire County Council,1111/1001,Children and Young People,CYP,Transport Related,CCA,08/03/2019,12-12041,2976.5,Stagecoach Services Ltd
Nottinghamshire County Council,1111/1001,Children and Young People,CYP,Transport Related,CCA,08/03/2019,12-12042,"4,015.80",Stagecoach Services Ltd
Nottinghamshire County Council,1111/1001,Children and Young People,CYP,Transport Related,CCA,08/03/2019,12-12043,3499.05,Stagecoach Services Ltd
Nottinghamshire County Council,1111/1001,Children and Young People,CYP,Transport Related,CCA,08/03/2019,12-12044,"2,541.84",Stagecoach Services Ltd
Nottinghamshire County Council,1111/1001,Children and Young People,CYP,Transport Related,CCA,08/03/2019,12-12047,1590.75,P & P Taxis
Nottinghamshire County Council,1111/1001,Children and Young People,CYP,Transport Related,CCA,08/03/2019,12-12048,2380.5,Freeway Coaches Ltd
Nottinghamshire County Council,1111/1001,Children and Young People,CYP,Transport Related,CCA,08/03/2019,12-12049,2222,Freeway Coaches Ltd
Nottinghamshire County Council,1111/1001,Children and Young People,CYP,Transport Related,CCA,08/03/2019,12-12051,4032.15,Isle Coaches
Nottinghamshire County Council,1111/1001,Children and Young People,CYP,Transport Related,CCA,08/03/2019,12-12053,"2,171.40",L A Travel
Nottinghamshire County Council,1111/1001,Children and Young People,CYP,Transport Related,CCA,08/03/2019,12-12054,1889.85,Nottingham Coaches
Nottinghamshire County Council,1111/1001,Children and Young People,CYP,Transport Related,CCA,08/03/2019,12-12055,930,Eastwood Cars (UK) Ltd
Nottinghamshire County Council,1111/1001,Children and Young People,CYP,Transport Related,CCA,08/03/2019,12-12056,"1,200.00",Eastwood Cars (UK) Ltd
Nottinghamshire County Council,1111/1001,Children and Young People,CYP,Transport Related,CCA,08/03/2019,12-12057,560,Eastwood Cars (UK) Ltd
Nottinghamshire County Council,1111/1001,Children and Young People,CYP,Transport Related,CCA,08/03/2019,12-12058,720,Nottingham Cars Ltd
Nottinghamshire County Council,1111/1001,Children and Young People,CYP,Transport Related,CCA,08/03/2019,12-12059,738.6,Shiny Sky Ltd T/A A2b Cars
Nottinghamshire County Council,1111/1001,Children and Young People,CYP,Transport Related,CCA,08/03/2019,12-12061,"1,010.80",Nunns Taxis Ltd
Nottinghamshire County Council,1111/1001,Children and Young People,CYP,Transport Related,CCA,08/03/2019,12-12062,980,ADF Cars Ltd
Nottinghamshire County Council,1111/1001,Children and Young People,CYP,Transport Related,CCA,08/03/2019,12-12064,1725,CT4N Ltd
Nottinghamshire County Council,1111/1001,Children and Young People,CYP,Transport Related,CCA,08/03/2019,12-12065,1610,CT4N Ltd
Nottinghamshire County Council,1111/1001,Children and Young People,CYP,Transport Related,CCA,08/03/2019,12-12066,1650,CT4N Ltd
Nottinghamshire County Council,1111/1001,Children and Young People,CYP,Transport Related,CCA,08/03/2019,12-12069,1788,SM Travel Yorkshire Ltd
Nottinghamshire County Council,1111/1001,Children and Young People,CYP,Transport Related,CCA,08/03/2019,12-12071,1783.5,SM Travel Yorkshire Ltd
Nottinghamshire County Council,1111/1001,Children and Young People,CYP,Transport Related,CCA,08/03/2019,12-12072,945.12,Cathedral Cars Lincoln Ltd
Nottinghamshire County Council,1111/1001,Children and Young People,CYP,Transport Related,CCA,08/03/2019,12-12079,"2,700.00",Glenn Ryder Coaches
Nottinghamshire County Council,1111/1001,Children and Young People,CYP,Transport Related,CCA,08/03/2019,12-12080,2585.5,Glenn Ryder Coaches
Nottinghamshire County Council,1111/1001,Children and Young People,CYP,Transport Related,CCA,08/03/2019,12-12081,1094.94,BN Gibson Ltd
Nottinghamshire County Council,1111/1001,Children and Young People,CYP,Transport Related,CCA,08/03/2019,12-12083,"2,448.30",BN Gibson Ltd
Nottinghamshire County Council,1111/1001,Children and Young People,CYP,Transport Related,CCA,08/03/2019,12-12084,1932.45,BN Gibson Ltd
Nottinghamshire County Council,1111/1001,Children and Young People,CYP,Transport Related,CCA,08/03/2019,12-12085,1729.05,BN Gibson Ltd
Nottinghamshire County Council,1111/1001,Children and Young People,CYP,Transport Related,CCA,08/03/2019,12-12086,2844.75,BN Gibson Ltd
Nottinghamshire County Council,1111/1001,Children and Young People,CYP,Transport Related,CCA,08/03/2019,12-12087,1597.8,BN Gibson Ltd
Nottinghamshire County Council,1111/1001,Children and Young People,CYP,Transport Related,CCA,08/03/2019,12-12088,"2,352.98",BN Gibson Ltd
Nottinghamshire County Council,1111/1001,Children and Young People,CYP,Transport Related,CCA,08/03/2019,12-12089,"2,054.40",BN Gibson Ltd
Nottinghamshire County Council,1111/1001,Children and Young People,CYP,Transport Related,CCA,08/03/2019,12-12090,1135.09,BN Gibson Ltd
Nottinghamshire County Council,1111/1001,Children and Young People,CYP,Transport Related,CCA,08/03/2019,12-12091,1597.8,BN Gibson Ltd
Nottinghamshire County Council,1111/1001,Children and Young People,CYP,Transport Related,CCA,08/03/2019,12-12092,"2,267.58",BN Gibson Ltd
Nottinghamshire County Council,1111/1001,Children and Young People,CYP,Transport Related,CCA,08/03/2019,12-12093,2034,BN Gibson Ltd
Nottinghamshire County Council,1111/1001,Children and Young People,CYP,Transport Related,CCA,08/03/2019,12-12096,2520,Jb Tours Watnall Ltd
Nottinghamshire County Council,1111/1001,Children and Young People,CYP,Transport Related,CCA,08/03/2019,12-12097,"2,580.00",Jb Tours Watnall Ltd
Nottinghamshire County Council,1111/1001,Children and Young People,CYP,Transport Related,CCA,08/03/2019,12-12098,"1,073.24",Nunns Taxis Ltd
Nottinghamshire County Council,1111/1001,Children and Young People,CYP,Transport Related,CCA,08/03/2019,12-12100,"1,400.00",Rushcliffe Travel Ltd
Nottinghamshire County Council,1111/1001,Children and Young People,CYP,Transport Related,CCA,08/03/2019,12-12101,2025,Rushcliffe Travel Ltd
Nottinghamshire County Council,1111/1001,Children and Young People,CYP,Transport Related,CCA,08/03/2019,12-12102,2025,Rushcliffe Travel Ltd
Nottinghamshire County Council,1111/1001,Children and Young People,CYP,Transport Related,CCA,08/03/2019,12-12103,"2,242.50",Rushcliffe Travel Ltd
Nottinghamshire County Council,1111/1001,Children and Young People,CYP,Transport Related,CCA,08/03/2019,12-12104,2175,Rushcliffe Travel Ltd
Nottinghamshire County Council,1111/1001,Children and Young People,CYP,Transport Related,CCA,12/03/2019,12-12448,"1,047.80",Alert Cars Ltd
Nottinghamshire County Council,1111/1001,Children and Young People,CYP,Transport Related,CCA,12/03/2019,12-12450,507,Southside Cars
Nottinghamshire County Council,1111/1001,Children and Young People,CYP,Transport Related,CCA,12/03/2019,12-12451,540,Southside Cars
Nottinghamshire County Council,1111/1001,Children and Young People,CYP,Transport Related,CCA,12/03/2019,12-12453,720,Southside Cars
Nottinghamshire County Council,1111/1001,Children and Young People,CYP,Transport Related,CCA,12/03/2019,12-12454,612,Southside Cars
Nottinghamshire County Council,1111/1001,Children and Young People,CYP,Transport Related,CCA,12/03/2019,12-12455,"1,521.00",Southside Cars
Nottinghamshire County Council,1111/1001,Children and Young People,CYP,Transport Related,CCA,12/03/2019,12-12456,1104,Southside Cars
Nottinghamshire County Council,1111/1001,Children and Young People,CYP,Transport Related,CCA,12/03/2019,12-12457,1410,Southside Cars
Nottinghamshire County Council,1111/1001,Children and Young People,CYP,Transport Related,CCA,12/03/2019,12-12458,1890,Southside Cars
Nottinghamshire County Council,1111/1001,Children and Young People,CYP,Transport Related,CCA,12/03/2019,12-12459,1352,Southside Cars
Nottinghamshire County Council,1111/1001,Children and Young People,CYP,Transport Related,CCA,12/03/2019,12-12460,1045.44,Southside Cars
Nottinghamshire County Council,1111/1001,Children and Young People,CYP,Transport Related,CCA,12/03/2019,12-12461,1350,Southside Cars
Nottinghamshire County Council,1111/1001,Children and Young People,CYP,Transport Related,CCA,12/03/2019,12-12462,1165.5,Southside Cars
Nottinghamshire County Council,1111/1001,Children and Young People,CYP,Transport Related,CCA,12/03/2019,12-12463,"1,269.00",Southside Cars
Nottinghamshire County Council,1111/1001,Children and Young People,CYP,Transport Related,CCA,12/03/2019,12-12467,"4,425.00",Johnson Bros Tours Ltd
Nottinghamshire County Council,1111/1001,Children and Young People,CYP,Transport Related,CCA,12/03/2019,12-12468,6131.9,Johnson Bros Tours Ltd
Nottinghamshire County Council,1111/1001,Children and Young People,CYP,Transport Related,CCA,12/03/2019,12-12470,2689.4,BN Gibson Ltd
Nottinghamshire County Council,1111/1001,Children and Young People,CYP,Transport Related,CCA,12/03/2019,12-12475,300,Abacus Cars
Nottinghamshire County Council,1111/1001,Children and Young People,CYP,Transport Related,CCA,12/03/2019,12-12478,"1,350.00",Abacus Cars
Nottinghamshire County Council,1111/1001,Children and Young People,CYP,Transport Related,CCA,12/03/2019,12-12481,"1,540.00",Abacus Cars
Nottinghamshire County Council,1111/1001,Children and Young People,CYP,Transport Related,CCA,12/03/2019,12-12485,1610,Gem Mini Travel Ltd
Nottinghamshire County Council,1111/1001,Children and Young People,CYP,Transport Related,CCA,12/03/2019,12-12486,"3,480.50",Gem Mini Travel Ltd
Nottinghamshire County Council,1111/1001,Children and Young People,CYP,Transport Related,CCA,12/03/2019,12-12487,"3,051.00",Gem Mini Travel Ltd
Nottinghamshire County Council,1111/1001,Children and Young People,CYP,Transport Related,CCA,12/03/2019,12-12488,2316.5,Jb Tours Watnall Ltd
Nottinghamshire County Council,1111/1001,Children and Young People,CYP,Transport Related,CCA,12/03/2019,12-12489,2738.5,Tiger European Uk Ltd
Nottinghamshire County Council,1111/1001,Children and Young People,CYP,Transport Related,CCA,12/03/2019,12-12490,"2,168.35",Tiger European Uk Ltd
Nottinghamshire County Council,1111/1001,Children and Young People,CYP,Transport Related,CCA,12/03/2019,12-12491,5025,Tiger European Uk Ltd
Nottinghamshire County Council,1111/1001,Children and Young People,CYP,Transport Related,CCA,12/03/2019,12-12492,2726.55,Tiger European Uk Ltd
Nottinghamshire County Council,1111/1001,Children and Young People,CYP,Transport Related,CCA,12/03/2019,12-12493,2196.35,Tiger European Uk Ltd
Nottinghamshire County Council,1111/1001,Children and Young People,CYP,Transport Related,CCA,12/03/2019,12-12494,"5,175.00",Tiger European Uk Ltd
Nottinghamshire County Council,1111/1001,Children and Young People,CYP,Transport Related,CCA,12/03/2019,12-12495,"2,925.00",Tiger European Uk Ltd
Nottinghamshire County Council,1111/1001,Children and Young People,CYP,Transport Related,CCA,12/03/2019,12-12497,1649.25,Wallis Coachways
Nottinghamshire County Council,1111/1001,Children and Young People,CYP,Transport Related,CCA,12/03/2019,12-12498,2341.2,Wallis Coachways
Nottinghamshire County Council,1111/1001,Children and Young People,CYP,Transport Related,CCA,12/03/2019,12-12499,"1,881.30",Nottingham Coaches
Nottinghamshire County Council,1111/1001,Children and Young People,CYP,Transport Related,CCA,12/03/2019,12-12500,705,Nottingham Cars Ltd
Nottinghamshire County Council,1111/1001,Children and Young People,CYP,Transport Related,CCA,12/03/2019,12-12501,"1,752.00",ADF Cars Ltd
Nottinghamshire County Council,1111/1001,Children and Young People,CYP,Transport Related,CCA,12/03/2019,12-12502,"1,080.00",ADF Cars Ltd
Nottinghamshire County Council,1111/1001,Children and Young People,CYP,Transport Related,CCA,12/03/2019,12-12503,"2,535.00",Reliable Cars Ltd
Nottinghamshire County Council,1111/1001,Children and Young People,CYP,Transport Related,CCA,12/03/2019,12-12505,"1,178.00",Reliable Cars Ltd
Nottinghamshire County Council,1111/1001,Children and Young People,CYP,Transport Related,CCA,12/03/2019,12-12506,"1,575.00",Rushcliffe Travel Ltd
Nottinghamshire County Council,1111/1001,Children and Young People,CYP,Transport Related,CCA,12/03/2019,12-12540,1452.04,6 Five 2s
Nottinghamshire County Council,1111/1001,Children and Young People,CYP,Transport Related,CCA,12/03/2019,12-12542,840,Ace Of Mansfield Ltd
Nottinghamshire County Council,1111/1001,Children and Young People,CYP,Transport Related,CCA,12/03/2019,12-12543,"1,560.00",Ace Of Mansfield Ltd
Nottinghamshire County Council,1111/1001,Children and Young People,CYP,Transport Related,CCA,12/03/2019,12-12544,"10,526.46",Erewash Community Transport
Nottinghamshire County Council,1111/1001,Children and Young People,CYP,Transport Related,CCA,12/03/2019,12-12545,2138.5,F4Control Ltd (t/a First4care)
Nottinghamshire County Council,1111/1001,Children and Young People,CYP,Transport Related,CCA,12/03/2019,12-12547,"2,701.44",BN Gibson Ltd
Nottinghamshire County Council,1111/1001,Children and Young People,CYP,Transport Related,CCA,12/03/2019,12-12550,600,Abacus Cars
Nottinghamshire County Council,1111/1001,Children and Young People,CYP,Transport Related,CCA,12/03/2019,12-12551,1330,Abacus Cars
Nottinghamshire County Council,1111/1001,Children and Young People,CYP,Transport Related,CCA,12/03/2019,12-12553,"2,603.50",Gem Mini Travel Ltd
Nottinghamshire County Council,1111/1001,Children and Young People,CYP,Transport Related,CCA,12/03/2019,12-12554,"2,613.00",Gem Mini Travel Ltd
Nottinghamshire County Council,1111/1001,Children and Young People,CYP,Transport Related,CCA,12/03/2019,12-12555,"1,500.52",Marshalls Of Sutton On Trent Ltd
Nottinghamshire County Council,1111/1001,Children and Young People,CYP,Transport Related,CCA,12/03/2019,12-12557,"2,461.62",Marshalls Of Sutton On Trent Ltd
Nottinghamshire County Council,1111/1001,Children and Young People,CYP,Transport Related,CCA,12/03/2019,12-12558,1858.56,Marshalls Of Sutton On Trent Ltd
Nottinghamshire County Council,1111/1001,Children and Young People,CYP,Transport Related,CCA,12/03/2019,12-12561,2625,Stagecoach Services Ltd
Nottinghamshire County Council,1111/1001,Children and Young People,CYP,Transport Related,CCA,12/03/2019,12-12565,2193.5,Freeway Coaches Ltd
Nottinghamshire County Council,1111/1001,Children and Young People,CYP,Transport Related,CCA,12/03/2019,12-12566,3072,Freeway Coaches Ltd
Nottinghamshire County Council,1111/1001,Children and Young People,CYP,Transport Related,CCA,12/03/2019,12-12570,560,Nottingham Cars Ltd
Nottinghamshire County Council,1111/1001,Children and Young People,CYP,Transport Related,CCA,12/03/2019,12-12575,760,Reliable Cars Ltd
Nottinghamshire County Council,1111/1001,Children and Young People,CYP,Transport Related,CCA,15/03/2019,12-15207,624.8,Alert Cars Ltd
Nottinghamshire County Council,1111/1001,Children and Young People,CYP,Transport Related,CCA,15/03/2019,12-15209,"1,316.00",Southside Cars
Nottinghamshire County Council,1111/1001,Children and Young People,CYP,Transport Related,CCA,15/03/2019,12-15210,"1,864.04",Johnson Bros Tours Ltd
Nottinghamshire County Council,1111/1001,Children and Young People,CYP,Transport Related,CCA,15/03/2019,12-15211,"1,485.00",Shelleys Taxis Ltd
Nottinghamshire County Council,1111/1001,Children and Young People,CYP,Transport Related,CCA,15/03/2019,12-15213,1560,Shelleys Taxis Ltd
Nottinghamshire County Council,1111/1001,Children and Young People,CYP,Transport Related,CCA,15/03/2019,12-15214,1060.5,Shelleys Taxis Ltd
Nottinghamshire County Council,1111/1001,Children and Young People,CYP,Transport Related,CCA,15/03/2019,12-15215,1484.7,Shelleys Taxis Ltd
Nottinghamshire County Council,1111/1001,Children and Young People,CYP,Transport Related,CCA,15/03/2019,12-15216,1456,Shelleys Taxis Ltd
Nottinghamshire County Council,1111/1001,Children and Young People,CYP,Transport Related,CCA,15/03/2019,12-15217,1050,Shelleys Taxis Ltd
Nottinghamshire County Council,1111/1001,Children and Young People,CYP,Transport Related,CCA,15/03/2019,12-15218,"1,050.00",Shelleys Taxis Ltd
Nottinghamshire County Council,1111/1001,Children and Young People,CYP,Transport Related,CCA,15/03/2019,12-15219,"1,650.00",Shelleys Taxis Ltd
Nottinghamshire County Council,1111/1001,Children and Young People,CYP,Transport Related,CCA,15/03/2019,12-15220,960,Shelleys Taxis Ltd
Nottinghamshire County Council,1111/1001,Children and Young People,CYP,Transport Related,CCA,15/03/2019,12-15221,675,Shelleys Taxis Ltd
Nottinghamshire County Council,1111/1001,Children and Young People,CYP,Transport Related,CCA,15/03/2019,12-15223,"1,120.00",Shelleys Taxis Ltd
Nottinghamshire County Council,1111/1001,Children and Young People,CYP,Transport Related,CCA,15/03/2019,12-15224,1568,Shelleys Taxis Ltd
Nottinghamshire County Council,1111/1001,Children and Young People,CYP,Transport Related,CCA,15/03/2019,12-15226,1170,Shelleys Taxis Ltd
Nottinghamshire County Council,1111/1001,Children and Young People,CYP,Transport Related,CCA,15/03/2019,12-15228,700,Elkingtons Park Garage
Nottinghamshire County Council,1111/1001,Children and Young People,CYP,Transport Related,CCA,15/03/2019,12-15229,748.7,Skills Motor Coaches Ltd
Nottinghamshire County Council,1111/1001,Children and Young People,CYP,Transport Related,CCA,15/03/2019,12-15230,908.6,Skills Motor Coaches Ltd
Nottinghamshire County Council,1111/1001,Children and Young People,CYP,Transport Related,CCA,15/03/2019,12-15232,612,D G Private Hire Ltd
Nottinghamshire County Council,1111/1001,Children and Young People,CYP,Transport Related,CCA,15/03/2019,12-15238,"7,041.99",Gem Mini Travel Ltd
Nottinghamshire County Council,1111/1001,Children and Young People,CYP,Transport Related,CCA,15/03/2019,12-15239,3542.25,Gem Mini Travel Ltd
Nottinghamshire County Council,1111/1001,Children and Young People,CYP,Transport Related,CCA,15/03/2019,12-15240,"6,229.90",Silverdale Tours Nottm Ltd
Nottinghamshire County Council,1111/1001,Children and Young People,CYP,Transport Related,CCA,15/03/2019,12-15241,2216.1,Silverdale Tours Nottm Ltd
Nottinghamshire County Council,1111/1001,Children and Young People,CYP,Transport Related,CCA,15/03/2019,12-15242,2301.8,Silverdale Tours Nottm Ltd
Nottinghamshire County Council,1111/1001,Children and Young People,CYP,Transport Related,CCA,15/03/2019,12-15243,"2,103.20",Silverdale Tours Nottm Ltd
Nottinghamshire County Council,1111/1001,Children and Young People,CYP,Transport Related,CCA,15/03/2019,12-15244,"1,092.95",Silverdale Tours Nottm Ltd
Nottinghamshire County Council,1111/1001,Children and Young People,CYP,Transport Related,CCA,15/03/2019,12-15246,"2,100.00",Silverdale Tours Nottm Ltd
Nottinghamshire County Council,1111/1001,Children and Young People,CYP,Transport Related,CCA,15/03/2019,12-15247,"1,202.21",Silverdale Tours Nottm Ltd
Nottinghamshire County Council,1111/1001,Children and Young People,CYP,Transport Related,CCA,15/03/2019,12-15248,"2,603.50",Tiger European Uk Ltd
Nottinghamshire County Council,1111/1001,Children and Young People,CYP,Transport Related,CCA,15/03/2019,12-15251,2520,Tiger European Uk Ltd
Nottinghamshire County Council,1111/1001,Children and Young People,CYP,Transport Related,CCA,15/03/2019,12-15252,2625,Tiger European Uk Ltd
Nottinghamshire County Council,1111/1001,Children and Young People,CYP,Transport Related,CCA,15/03/2019,12-15253,855.29,Travel Wright Ltd
Nottinghamshire County Council,1111/1001,Children and Young People,CYP,Transport Related,CCA,15/03/2019,12-15256,"1,815.00",Freeway Coaches Ltd
Nottinghamshire County Council,1111/1001,Children and Young People,CYP,Transport Related,CCA,15/03/2019,12-15257,3127,Freeway Coaches Ltd
Nottinghamshire County Council,1111/1001,Children and Young People,CYP,Transport Related,CCA,15/03/2019,12-15258,5773,Freeway Coaches Ltd
Nottinghamshire County Council,1111/1001,Children and Young People,CYP,Transport Related,CCA,15/03/2019,12-15259,"4,780.00",Freeway Coaches Ltd
Nottinghamshire County Council,1111/1001,Children and Young People,CYP,Transport Related,CCA,15/03/2019,12-15260,"2,601.30",K Matthews Travel
Nottinghamshire County Council,1111/1001,Children and Young People,CYP,Transport Related,CCA,15/03/2019,12-15261,2448.3,K Matthews Travel
Nottinghamshire County Council,1111/1001,Children and Young People,CYP,Transport Related,CCA,15/03/2019,12-15262,2128,K Matthews Travel
Nottinghamshire County Council,1111/1001,Children and Young People,CYP,Transport Related,CCA,15/03/2019,12-15265,"1,897.08",Nottingham Community Transport
Nottinghamshire County Council,1111/1001,Children and Young People,CYP,Transport Related,CCA,15/03/2019,12-15266,8669.95,Nottingham Coaches
Nottinghamshire County Council,1111/1001,Children and Young People,CYP,Transport Related,CCA,15/03/2019,12-15269,"6,349.50",Nottingham Coaches
Nottinghamshire County Council,1111/1001,Children and Young People,CYP,Transport Related,CCA,15/03/2019,12-15270,684.52,Nottingham Coaches
Nottinghamshire County Council,1111/1001,Children and Young People,CYP,Transport Related,CCA,15/03/2019,12-15271,607.5,Eastwood Cars (UK) Ltd
Nottinghamshire County Council,1111/1001,Children and Young People,CYP,Transport Related,CCA,15/03/2019,12-15273,1280,Community Transport for Town & Coun
Nottinghamshire County Council,1111/1001,Children and Young People,CYP,Transport Related,CCA,15/03/2019,12-15275,920,Shiny Sky Ltd T/A A2b Cars
Nottinghamshire County Council,1111/1001,Children and Young People,CYP,Transport Related,CCA,15/03/2019,12-15276,353.69,Nunns Taxis Ltd
Nottinghamshire County Council,1111/1001,Children and Young People,CYP,Transport Related,CCA,15/03/2019,12-15280,1942.5,Rushcliffe Travel Ltd
Nottinghamshire County Council,1111/1001,Children and Young People,CYP,Transport Related,CCA,15/03/2019,12-15281,1239,AJ's Taxis
Nottinghamshire County Council,1111/1001,Children and Young People,CYP,Transport Related,CCA,15/03/2019,12-15282,"1,170.00",SM Travel Yorkshire Ltd
Nottinghamshire County Council,1111/1001,Children and Young People,CYP,Transport Related,CCA,15/03/2019,12-15283,1729.8,SM Travel Yorkshire Ltd
Nottinghamshire County Council,1111/1001,Children and Young People,CYP,Transport Related,CCA,15/03/2019,12-15284,"1,010.40",SM Travel Yorkshire Ltd
Nottinghamshire County Council,1111/1001,Children and Young People,CYP,Transport Related,CCA,15/03/2019,12-15285,"1,114.40",SM Travel Yorkshire Ltd
Nottinghamshire County Council,1111/1001,Children and Young People,CYP,Transport Related,CCA,18/03/2019,12-15309,"1,525.50",BN Gibson Ltd
Nottinghamshire County Council,1111/1001,Children and Young People,CYP,Transport Related,CCA,20/03/2019,12-15670,712,Southside Cars
Nottinghamshire County Council,1111/1001,Children and Young People,CYP,Transport Related,CCA,20/03/2019,12-15675,2372,Southside Cars
Nottinghamshire County Council,1111/1001,Children and Young People,CYP,Transport Related,CCA,20/03/2019,12-15677,580,6 Five 2s
Nottinghamshire County Council,1111/1001,Children and Young People,CYP,Transport Related,CCA,20/03/2019,12-15678,1500,All Wayz Travel
Nottinghamshire County Council,1111/1001,Children and Young People,CYP,Transport Related,CCA,20/03/2019,12-15688,881.25,Bridges Transport Ltd
Nottinghamshire County Council,1111/1001,Children and Young People,CYP,Transport Related,CCA,20/03/2019,12-15690,815.8,D G Private Hire Ltd
Nottinghamshire County Council,1111/1001,Children and Young People,CYP,Transport Related,CCA,20/03/2019,12-15696,806,Galaxy Cabs Ltd
Nottinghamshire County Council,1111/1001,Children and Young People,CYP,Transport Related,CCA,20/03/2019,12-15701,585,Abacus Cars
Nottinghamshire County Council,1111/1001,Children and Young People,CYP,Transport Related,CCA,20/03/2019,12-15702,4035,Stagecoach Services Ltd
Nottinghamshire County Council,1111/1001,Children and Young People,CYP,Transport Related,CCA,20/03/2019,12-15706,1181.04,Bassetlaw Action Centre
Nottinghamshire County Council,1111/1001,Children and Young People,CYP,Transport Related,CCA,20/03/2019,12-15707,"1,590.30",Bassetlaw Action Centre
Nottinghamshire County Council,1111/1001,Children and Young People,CYP,Transport Related,CCA,20/03/2019,12-15708,795,Bassetlaw Action Centre
Nottinghamshire County Council,1111/1001,Children and Young People,CYP,Transport Related,CCA,20/03/2019,12-15709,554.61,Bassetlaw Action Centre
Nottinghamshire County Council,1111/1001,Children and Young People,CYP,Transport Related,CCA,20/03/2019,12-15715,1265.6,Ace Cars & Minibuses Ltd
Nottinghamshire County Council,1111/1001,Children and Young People,CYP,Transport Related,CCA,20/03/2019,12-15716,1610,Ace Cars & Minibuses Ltd
Nottinghamshire County Council,1111/1001,Children and Young People,CYP,Transport Related,CCA,20/03/2019,12-15717,"2,629.50",Ace Cars & Minibuses Ltd
Nottinghamshire County Council,1111/1001,Children and Young People,CYP,Transport Related,CCA,20/03/2019,12-15718,"1,747.50",Ace Cars & Minibuses Ltd
Nottinghamshire County Council,1111/1001,Children and Young People,CYP,Transport Related,CCA,20/03/2019,12-15719,1792.5,Ace Cars & Minibuses Ltd
Nottinghamshire County Council,1111/1001,Children and Young People,CYP,Transport Related,CCA,20/03/2019,12-15720,2093,Ace Cars & Minibuses Ltd
Nottinghamshire County Council,1111/1001,Children and Young People,CYP,Transport Related,CCA,20/03/2019,12-15721,"1,810.50",Ace Cars & Minibuses Ltd
Nottinghamshire County Council,1111/1001,Children and Young People,CYP,Transport Related,CCA,20/03/2019,12-15722,1417.5,Ace Cars & Minibuses Ltd
Nottinghamshire County Council,1111/1001,Children and Young People,CYP,Transport Related,CCA,20/03/2019,12-15723,2632.5,Ace Cars & Minibuses Ltd
Nottinghamshire County Council,1111/1001,Children and Young People,CYP,Transport Related,CCA,20/03/2019,12-15728,700,Shiny Sky Ltd T/A A2b Cars
Nottinghamshire County Council,1111/1001,Children and Young People,CYP,Transport Related,CCA,20/03/2019,12-15733,588,Reliable Cars Ltd
Nottinghamshire County Council,1111/1001,Children and Young People,CYP,Transport Related,CCA,28/03/2019,12-16640,"3,168.26",Via East Midlands Ltd
Nottinghamshire County Council,1111/1001,Children and Young People,CYP,Transport Related,CCA,29/03/2019,12-12569,1852.2,Marks Specialised Transport Ltd
Nottinghamshire County Council,1111/1001,Children and Young People,CYP,Transport Related,CCA,29/03/2019,12-15278,927.36,Yeoman Park Academy
Nottinghamshire County Council,1111/1001,Children and Young People,CYP,Transport Related,CCA,29/03/2019,12-15710,360.65,Nottingham City Transport Ltd
Nottinghamshire County Council,1111/1001,Children and Young People,CYP,Transport Related,CCA,29/03/2019,12-15725,1016.34,MSP Case Management Ltd
Nottinghamshire County Council,1111/1001,Children and Young People,CYP,Transport Related,CDA,04/03/2019,12-10281,"1,168.80",Taxicover Uk Ltd
Nottinghamshire County Council,1111/1001,Children and Young People,CYP,Transport Related,CDA,04/03/2019,12-10314,504,200 Cars Ltd
Nottinghamshire County Council,1111/1001,Children and Young People,CYP,Transport Related,CDA,04/03/2019,12-10326,360,Alpha Cars
Nottinghamshire County Council,1111/1001,Children and Young People,CYP,Transport Related,CDA,04/03/2019,12-10333,"1,235.50",Arrow Specialised Transport Ltd
Nottinghamshire County Council,1111/1001,Children and Young People,CYP,Transport Related,CDA,04/03/2019,12-10406,378.75,Bridges Transport Ltd
Nottinghamshire County Council,1111/1001,Children and Young People,CYP,Transport Related,CDA,04/03/2019,12-10444,945,Ng11 Cars
Nottinghamshire County Council,1111/1001,Children and Young People,CYP,Transport Related,CDA,04/03/2019,12-10459,1540,D G Private Hire Ltd
Nottinghamshire County Council,1111/1001,Children and Young People,CYP,Transport Related,CDA,04/03/2019,12-10464,2706,AOT Coaches
Nottinghamshire County Council,1111/1001,Children and Young People,CYP,Transport Related,CDA,04/03/2019,12-10472,2100,Nottingham Minibuses & Coaches
Nottinghamshire County Council,1111/1001,Children and Young People,CYP,Transport Related,CDA,04/03/2019,12-10473,1950,Nottingham Minibuses & Coaches
Nottinghamshire County Council,1111/1001,Children and Young People,CYP,Transport Related,CDA,04/03/2019,12-10474,1449,Nottingham Minibuses & Coaches
Nottinghamshire County Council,1111/1001,Children and Young People,CYP,Transport Related,CDA,04/03/2019,12-10475,1425,Nottingham Minibuses & Coaches
Nottinghamshire County Council,1111/1001,Children and Young People,CYP,Transport Related,CDA,04/03/2019,12-10476,1875,Nottingham Minibuses & Coaches
Nottinghamshire County Council,1111/1001,Children and Young People,CYP,Transport Related,CDA,04/03/2019,12-10478,"2,121.00",Nottingham Minibuses & Coaches
Nottinghamshire County Council,1111/1001,Children and Young People,CYP,Transport Related,CDA,04/03/2019,12-10479,"1,950.00",Nottingham Minibuses & Coaches
Nottinghamshire County Council,1111/1001,Children and Young People,CYP,Transport Related,CDA,04/03/2019,12-10481,8280,Nottingham Minibuses & Coaches
Nottinghamshire County Council,1111/1001,Children and Young People,CYP,Transport Related,CDA,04/03/2019,12-10515,2520,C W Moxon Ltd
Nottinghamshire County Council,1111/1001,Children and Young People,CYP,Transport Related,CDA,04/03/2019,12-10516,3150,C W Moxon Ltd
Nottinghamshire County Council,1111/1001,Children and Young People,CYP,Transport Related,CDA,04/03/2019,12-10518,"8,652.00",C W Moxon Ltd
Nottinghamshire County Council,1111/1001,Children and Young People,CYP,Transport Related,CDA,04/03/2019,12-10522,693,Rio Cabs
Nottinghamshire County Council,1111/1001,Children and Young People,CYP,Transport Related,CDA,04/03/2019,12-10549,1087.5,Sean's Taxi Services
Nottinghamshire County Council,1111/1001,Children and Young People,CYP,Transport Related,CDA,04/03/2019,12-10560,705,Fastlane Cabs
Nottinghamshire County Council,1111/1001,Children and Young People,CYP,Transport Related,CDA,04/03/2019,12-10568,560.55,Forest Cars
Nottinghamshire County Council,1111/1001,Children and Young People,CYP,Transport Related,CDA,04/03/2019,12-10578,660,Forest Cars
Nottinghamshire County Council,1111/1001,Children and Young People,CYP,Transport Related,CDA,04/03/2019,12-10585,2460,Forest Cars
Nottinghamshire County Council,1111/1001,Children and Young People,CYP,Transport Related,CDA,05/03/2019,12-10530,167.45,Ace Cars & Minibuses Ltd
Nottinghamshire County Council,1111/1001,Children and Young People,CYP,Transport Related,CDA,05/03/2019,12-10542,290.55,Ace Cars & Minibuses Ltd
Nottinghamshire County Council,1111/1001,Children and Young People,CYP,Transport Related,CDA,08/03/2019,12-11957,1201.5,6 Five 2s
Nottinghamshire County Council,1111/1001,Children and Young People,CYP,Transport Related,CDA,08/03/2019,12-12070,1414.5,SM Travel Yorkshire Ltd
Nottinghamshire County Council,1111/1001,Children and Young People,CYP,Transport Related,CDA,12/03/2019,12-12464,"3,360.00",Johnson Bros Tours Ltd
Nottinghamshire County Council,1111/1001,Children and Young People,CYP,Transport Related,CDA,12/03/2019,12-12465,"1,722.00",Johnson Bros Tours Ltd
Nottinghamshire County Council,1111/1001,Children and Young People,CYP,Transport Related,CDA,12/03/2019,12-12466,1425,Johnson Bros Tours Ltd
Nottinghamshire County Council,1111/1001,Children and Young People,CYP,Transport Related,CDA,12/03/2019,12-12482,660,Abacus Cars
Nottinghamshire County Council,1111/1001,Children and Young People,CYP,Transport Related,CDA,12/03/2019,12-12496,"4,793.60",Paul S Winson Coaches
Nottinghamshire County Council,1111/1001,Children and Young People,CYP,Transport Related,CDA,12/03/2019,12-12560,"4,076.80",Marshalls Of Sutton On Trent Ltd
Nottinghamshire County Council,1111/1001,Children and Young People,CYP,Transport Related,CDA,15/03/2019,12-15225,652.5,Shelleys Taxis Ltd
Nottinghamshire County Council,1111/1001,Children and Young People,CYP,Transport Related,CDA,15/03/2019,12-15245,"9,240.00",Silverdale Tours Nottm Ltd
Nottinghamshire County Council,1111/1001,Children and Young People,CYP,Transport Related,CDA,15/03/2019,12-15249,"1,486.80",Tiger European Uk Ltd
Nottinghamshire County Council,1111/1001,Children and Young People,CYP,Transport Related,CDA,15/03/2019,12-15250,"1,078.00",Tiger European Uk Ltd
Nottinghamshire County Council,1111/1001,Children and Young People,CYP,Transport Related,CDA,15/03/2019,12-15254,1176.4,P & P Taxis
Nottinghamshire County Council,1111/1001,Children and Young People,CYP,Transport Related,CDA,15/03/2019,12-15271,607.5,Eastwood Cars (UK) Ltd
Nottinghamshire County Council,1111/1001,Children and Young People,CYP,Transport Related,CDA,15/03/2019,12-15276,176.81,Nunns Taxis Ltd
Nottinghamshire County Council,1111/1001,Children and Young People,CYP,Transport Related,CDA,15/03/2019,12-15279,626,Reliable Cars Ltd
Nottinghamshire County Council,1111/1001,Children and Young People,CYP,Transport Related,CDA,29/03/2019,12-15710,1851.84,Nottingham City Transport Ltd
Nottinghamshire County Council,1111/1001,Children and Young People,CYP,Transport Related,CEA,01/03/2019,12-10072,3331.32,Reed Employment Plc
Nottinghamshire County Council,1111/1001,Children and Young People,CYP,Transport Related,CEA,07/03/2019,12-11931,3338.68,Via East Midlands Ltd
Nottinghamshire County Council,1111/1001,Children and Young People,CYP,Transport Related,CEA,08/03/2019,12-12179,2986.54,Reed Employment Plc
Nottinghamshire County Council,1111/1001,Children and Young People,CYP,Transport Related,CEA,15/03/2019,12-12173,2724.97,Reed Employment Plc
Nottinghamshire County Council,1111/1001,Children and Young People,CYP,Transport Related,CEA,22/03/2019,12-12635,"3,746.24",Reed Employment Plc
Nottinghamshire County Council,1111/1001,Children and Young People,CYP,Transport Related,CEA,28/03/2019,12-16640,2666.69,Via East Midlands Ltd
Nottinghamshire County Council,1111/1001,Children and Young People,CYP,Transport Related,CEA,29/03/2019,12-16252,2949.45,Reed Employment Plc
Nottinghamshire County Council,1111/1001,Children and Young People,CYP,Supplies & Services,DAA,18/03/2019,12-16735,557.21,Complete Business Solutions Group L
Nottinghamshire County Council,1111/1001,Children and Young People,CYP,Supplies & Services,DAA,18/03/2019,12-17176,"9,970.00",G L Jones Playgrounds Ltd
Nottinghamshire County Council,1111/1001,Children and Young People,CYP,Supplies & Services,DAA,25/03/2019,12-16828,3389.2,Boat Fenders Direct Limited
Nottinghamshire County Council,1111/1001,Children and Young People,CYP,Supplies & Services,DAA,27/03/2019,12-17228,"2,540.40",J P Lennard Ltd
Nottinghamshire County Council,1111/1001,Children and Young People,CYP,Supplies & Services,DCA,06/03/2019,12-16846,579.79,Clean Sheet Laundry Ltd
Nottinghamshire County Council,1111/1001,Children and Young People,CYP,Supplies & Services,DEA,01/03/2019,12-16685,13166.41,Nottingham City Council
Nottinghamshire County Council,1111/1001,Children and Young People,CYP,Supplies & Services,DEA,01/03/2019,12-16691,"1,800.00",Synchrony Psychology Ltd
Nottinghamshire County Council,1111/1001,Children and Young People,CYP,Supplies & Services,DEA,01/03/2019,12-16695,"1,375.02",Chris Few Consultancy Ltd
Nottinghamshire County Council,1111/1001,Children and Young People,CYP,Supplies & Services,DEA,01/03/2019,12-16699,775,Nottingham Trent University
Nottinghamshire County Council,1111/1001,Children and Young People,CYP,Supplies & Services,DEA,01/03/2019,12-16711,"1,500.00",Still Thinking (UK) Ltd
Nottinghamshire County Council,1111/1001,Children and Young People,CYP,Supplies & Services,DEA,01/03/2019,12-16725,3605,Synchrony Psychology Ltd
Nottinghamshire County Council,1111/1001,Children and Young People,CYP,Supplies & Services,DEA,01/03/2019,12-16726,540,Synchrony Psychology Ltd
Nottinghamshire County Council,1111/1001,Children and Young People,CYP,Supplies & Services,DEA,01/03/2019,12-16727,600,Apple Tree Centre
Nottinghamshire County Council,1111/1001,Children and Young People,CYP,Supplies & Services,DEA,01/03/2019,12-16730,"7,500.00",Bloom Procurement Services Ltd
Nottinghamshire County Council,1111/1001,Children and Young People,CYP,Supplies & Services,DEA,06/03/2019,12-16885,5600,H Daft Consultant in Social Care Lt
Nottinghamshire County Council,1111/1001,Children and Young People,CYP,Supplies & Services,DEA,07/03/2019,12-16836,"2,475.00",[Redacted]
Nottinghamshire County Council,1111/1001,Children and Young People,CYP,Supplies & Services,DEA,07/03/2019,12-16888,779,Slack & Co Floorcoverings
Nottinghamshire County Council,1111/1001,Children and Young People,CYP,Supplies & Services,DEA,07/03/2019,12-16945,645,C Brewer T/A Imagine Arts Therapy
Nottinghamshire County Council,1111/1001,Children and Young People,CYP,Supplies & Services,DEA,08/03/2019,12-16966,944.64,[Redacted]
Nottinghamshire County Council,1111/1001,Children and Young People,CYP,Supplies & Services,DEA,11/03/2019,12-17002,3412.16,Childrens Sensory Therapy Ltd
Nottinghamshire County Council,1111/1001,Children and Young People,CYP,Supplies & Services,DEA,11/03/2019,12-17003,2223.75,Crisp & Crane Training Ltd
Nottinghamshire County Council,1111/1001,Children and Young People,CYP,Supplies & Services,DEA,11/03/2019,12-17021,3161.3,ARC Property Services Partnership L
Nottinghamshire County Council,1111/1001,Children and Young People,CYP,Supplies & Services,DEA,11/03/2019,12-17029,1435.58,ARC Property Services Partnership L
Nottinghamshire County Council,1111/1001,Children and Young People,CYP,Supplies & Services,DEA,11/03/2019,12-17033,645,C Brewer T/A Imagine Arts Therapy
Nottinghamshire County Council,1111/1001,Children and Young People,CYP,Supplies & Services,DEA,12/03/2019,12-16839,660,Notts Save A Life Ltd
Nottinghamshire County Council,1111/1001,Children and Young People,CYP,Supplies & Services,DEA,12/03/2019,12-16990,"1,913.00",All Saints C Of E Primary School
Nottinghamshire County Council,1111/1001,Children and Young People,CYP,Supplies & Services,DEA,12/03/2019,12-17044,930,Sarah Mann Shaw Ltd
Nottinghamshire County Council,1111/1001,Children and Young People,CYP,Supplies & Services,DEA,12/03/2019,12-17049,576,ARC Property Services Partnership L
Nottinghamshire County Council,1111/1001,Children and Young People,CYP,Supplies & Services,DEA,12/03/2019,12-17068,"2,152.50",Crisp & Crane Training Ltd
Nottinghamshire County Council,1111/1001,Children and Young People,CYP,Supplies & Services,DEA,13/03/2019,12-17086,650,Psychological Insights Ltd
Nottinghamshire County Council,1111/1001,Children and Young People,CYP,Supplies & Services,DEA,13/03/2019,12-17088,"1,800.00",[Redacted]
Nottinghamshire County Council,1111/1001,Children and Young People,CYP,Supplies & Services,DEA,13/03/2019,12-17092,630,Browne Jacobson LLP
Nottinghamshire County Council,1111/1001,Children and Young People,CYP,Supplies & Services,DEA,13/03/2019,12-17095,650,Psychological Insights Ltd
Nottinghamshire County Council,1111/1001,Children and Young People,CYP,Supplies & Services,DEA,13/03/2019,12-17114,505,Lotus Therapy Ltd
Nottinghamshire County Council,1111/1001,Children and Young People,CYP,Supplies & Services,DEA,13/03/2019,12-17116,"2,664.50",Childrens Sensory Therapy Ltd
Nottinghamshire County Council,1111/1001,Children and Young People,CYP,Supplies & Services,DEA,14/03/2019,12-17138,635,Childrens Sensory Therapy Ltd
Nottinghamshire County Council,1111/1001,Children and Young People,CYP,Supplies & Services,DEA,14/03/2019,12-17174,3825,Schofield Education
Nottinghamshire County Council,1111/1001,Children and Young People,CYP,Supplies & Services,DEA,14/03/2019,12-17175,3825,Schofield Education
Nottinghamshire County Council,1111/1001,Children and Young People,CYP,Supplies & Services,DEA,14/03/2019,12-17180,3825,Fox Education Service Ltd
Nottinghamshire County Council,1111/1001,Children and Young People,CYP,Supplies & Services,DEA,14/03/2019,12-17211,"2,801.33",Childrens Sensory Therapy Ltd
Nottinghamshire County Council,1111/1001,Children and Young People,CYP,Supplies & Services,DEA,15/03/2019,12-17122,"5,350.65",Bloom Procurement Services Ltd
Nottinghamshire County Council,1111/1001,Children and Young People,CYP,Supplies & Services,DEA,15/03/2019,12-17163,18151.5,Bevan Brittan
Nottinghamshire County Council,1111/1001,Children and Young People,CYP,Supplies & Services,DEA,18/03/2019,12-16984,"4,400.00",H Daft Consultant in Social Care Lt
Nottinghamshire County Council,1111/1001,Children and Young People,CYP,Supplies & Services,DEA,18/03/2019,12-17268,900,[Redacted]
Nottinghamshire County Council,1111/1001,Children and Young People,CYP,Supplies & Services,DEA,21/03/2019,12-16826,2209.8,Networkthreesixty Ltd
Nottinghamshire County Council,1111/1001,Children and Young People,CYP,Supplies & Services,DEA,21/03/2019,12-17079,750,St Peters C Of E Junior School
Nottinghamshire County Council,1111/1001,Children and Young People,CYP,Supplies & Services,DEA,22/03/2019,12-17171,2382.5,Crisp & Crane Training Ltd
Nottinghamshire County Council,1111/1001,Children and Young People,CYP,Supplies & Services,DEA,26/03/2019,12-16961,1988,Patchwork Play Therapy
Nottinghamshire County Council,1111/1001,Children and Young People,CYP,Supplies & Services,DEA,26/03/2019,12-16967,971.1,[Redacted]
Nottinghamshire County Council,1111/1001,Children and Young People,CYP,Supplies & Services,DEA,26/03/2019,12-17226,720,Apple Pie (James Appleyard)
Nottinghamshire County Council,1111/1001,Children and Young People,CYP,Supplies & Services,DEA,27/03/2019,12-17188,"1,750.00",[Redacted]
Nottinghamshire County Council,1111/1001,Children and Young People,CYP,Supplies & Services,DEA,28/03/2019,12-12078,"1,070.00",Mott Macdonald Ltd / Cambridge Educ
Nottinghamshire County Council,1111/1001,Children and Young People,CYP,Supplies & Services,DEA,28/03/2019,12-16907,690,[Redacted]
Nottinghamshire County Council,1111/1001,Children and Young People,CYP,Supplies & Services,DEA,28/03/2019,12-17087,500,Gilthill Primary Academy
Nottinghamshire County Council,1111/1001,Children and Young People,CYP,Supplies & Services,DEA,29/03/2019,12-16763,"3,150.00",Sparken Hill Academy
Nottinghamshire County Council,1111/1001,Children and Young People,CYP,Supplies & Services,DEA,29/03/2019,12-16868,1000,[Redacted]
Nottinghamshire County Council,1111/1001,Children and Young People,CYP,Supplies & Services,DEA,29/03/2019,12-16877,718.3,Synchrony Psychology Ltd
Nottinghamshire County Council,1111/1001,Children and Young People,CYP,Supplies & Services,DEA,29/03/2019,12-16881,950,Synchrony Psychology Ltd
Nottinghamshire County Council,1111/1001,Children and Young People,CYP,Supplies & Services,DEA,29/03/2019,12-16909,"1,272.40",TSS Services
Nottinghamshire County Council,1111/1001,Children and Young People,CYP,Supplies & Services,DEA,29/03/2019,12-16985,"18,151.50",Bevan Brittan
Nottinghamshire County Council,1111/1001,Children and Young People,CYP,Supplies & Services,DEA,29/03/2019,12-16996,900,Chrysalis Associates Ltd
Nottinghamshire County Council,1111/1001,Children and Young People,CYP,Supplies & Services,DEA,29/03/2019,12-17039,3120,Synchrony Psychology Ltd
Nottinghamshire County Council,1111/1001,Children and Young People,CYP,Supplies & Services,DEA,29/03/2019,12-17110,"1,650.00",Synchrony Psychology Ltd
Nottinghamshire County Council,1111/1001,Children and Young People,CYP,Supplies & Services,DEA,29/03/2019,12-17115,"1,560.00",Synchrony Psychology Ltd
Nottinghamshire County Council,1111/1001,Children and Young People,CYP,Supplies & Services,DEA,29/03/2019,12-17117,"3,420.00",Synchrony Psychology Ltd
Nottinghamshire County Council,1111/1001,Children and Young People,CYP,Supplies & Services,DEA,29/03/2019,12-17119,"1,467.00",[Redacted]
Nottinghamshire County Council,1111/1001,Children and Young People,CYP,Supplies & Services,DEA,29/03/2019,12-17123,"1,860.00",Synchrony Psychology Ltd
Nottinghamshire County Council,1111/1001,Children and Young People,CYP,Supplies & Services,DEA,29/03/2019,12-17126,2500,Synchrony Psychology Ltd
Nottinghamshire County Council,1111/1001,Children and Young People,CYP,Supplies & Services,DEA,29/03/2019,12-17127,1020,Synchrony Psychology Ltd
Nottinghamshire County Council,1111/1001,Children and Young People,CYP,Supplies & Services,DEA,29/03/2019,12-17130,"1,380.00",Synchrony Psychology Ltd
Nottinghamshire County Council,1111/1001,Children and Young People,CYP,Supplies & Services,DEA,29/03/2019,12-17219,1125,Wendy Wheldon Consultancy & Trainin
Nottinghamshire County Council,1111/1001,Children and Young People,CYP,Supplies & Services,DFA,01/03/2019,12-16697,817.04,Specialist Computer Centres
Nottinghamshire County Council,1111/1001,Children and Young People,CYP,Supplies & Services,DFA,01/03/2019,12-16706,"3,702.75",Specialist Computer Centres
Nottinghamshire County Council,1111/1001,Children and Young People,CYP,Supplies & Services,DFA,07/03/2019,12-11917,529.96,Lantec Services Ltd
Nottinghamshire County Council,1111/1001,Children and Young People,CYP,Supplies & Services,DHA,12/03/2019,12-10786,926.18,Brian Cooper Architect Ltd
Nottinghamshire County Council,1111/1001,Children and Young People,CYP,Supplies & Services,DKA,04/03/2019,12-10248,"1,024.84","SSAFA, The Armed Forces Charity"
Nottinghamshire County Council,1111/1001,Children and Young People,CYP,Supplies & Services,DKA,04/03/2019,12-10249,"1,024.84","SSAFA, The Armed Forces Charity"
Nottinghamshire County Council,1111/1001,Children and Young People,CYP,Supplies & Services,DKA,12/03/2019,12-12510,"24,990.00",Asquith Primary & Nursery School
Nottinghamshire County Council,1111/1001,Children and Young People,CYP,Supplies & Services,DKA,12/03/2019,12-16753,4200,Gas Street Works Ltd
Nottinghamshire County Council,1111/1001,Children and Young People,CYP,Supplies & Services,DKA,14/03/2019,12-17216,900,"Culture, Learning & Libraries (Midl"
Nottinghamshire County Council,1111/1001,Children and Young People,CYP,Supplies & Services,DKA,15/03/2019,12-17240,512.74,Teen Support Services Ltd
Nottinghamshire County Council,1111/1001,Children and Young People,CYP,Supplies & Services,DKA,15/03/2019,12-17252,"1,004.92",Framework Housing Association
Nottinghamshire County Council,1111/1001,Children and Young People,CYP,Supplies & Services,DKA,27/03/2019,12-12075,"14,595.34",Robert Miles Junior School
Nottinghamshire County Council,1111/1001,Children and Young People,CYP,Supplies & Services,DKA,28/03/2019,12-16607,"1,024.84","SSAFA, The Armed Forces Charity"
Nottinghamshire County Council,1111/1001,Children and Young People,CYP,Supplies & Services,DKA,28/03/2019,12-16640,1163.24,Via East Midlands Ltd
Nottinghamshire County Council,1111/1001,Children and Young People,CYP,Third Party Payments,EBA,12/03/2019,12-12532,5281.68,Transform Schools
Nottinghamshire County Council,1111/1001,Children and Young People,CYP,Third Party Payments,EBA,12/03/2019,12-12533,2189.31,Transform Schools
Nottinghamshire County Council,1111/1001,Children and Young People,CYP,Third Party Payments,EBA,12/03/2019,12-12534,16798.87,Transform Schools
Nottinghamshire County Council,1111/1001,Children and Young People,CYP,Third Party Payments,EBA,12/03/2019,12-12535,37916.14,Transform Schools
Nottinghamshire County Council,1111/1001,Children and Young People,CYP,Third Party Payments,EBA,12/03/2019,12-12536,"4,760.27",Transform Schools
Nottinghamshire County Council,1111/1001,Children and Young People,CYP,Third Party Payments,EBA,12/03/2019,12-12537,4350.96,Transform Schools
Nottinghamshire County Council,1111/1001,Children and Young People,CYP,Third Party Payments,EBA,12/03/2019,12-12538,2742.09,Transform Schools
Nottinghamshire County Council,1111/1001,Children and Young People,CYP,Third Party Payments,EBA,12/03/2019,12-12539,1710.57,Transform Schools
Nottinghamshire County Council,1111/1001,Children and Young People,CYP,Third Party Payments,EBA,27/03/2019,12-12522,1500360.91,Transform Schools
Nottinghamshire County Council,1111/1001,Children and Young People,CYP,Third Party Payments,EBA,27/03/2019,12-12531,534.17,East Leake Schools Ltd
Nottinghamshire County Council,1111/1001,Children and Young People,CYP,Third Party Payments,EBA,27/03/2019,12-15642,9798.48,East Leake Schools Ltd
Nottinghamshire County Council,1111/1001,Children and Young People,CYP,Third Party Payments,EBA,27/03/2019,12-15643,237132.92,East Leake Schools Ltd
Nottinghamshire County Council,1111/1001,Children and Young People,CYP,Third Party Payments,EBA,27/03/2019,12-15658,16051.47,East Leake Schools Ltd
Nottinghamshire County Council,1111/1001,Children and Young People,CYP,Third Party Payments,EDA,01/03/2019,12-10060,4375,Leverton C Of E Academy
Nottinghamshire County Council,1111/1001,Children and Young People,CYP,Third Party Payments,EDA,04/03/2019,12-10267,3300,George Spencer Academy
Nottinghamshire County Council,1111/1001,Children and Young People,CYP,Third Party Payments,EDA,11/03/2019,12-12193,"23,771.00",The Minster School (Academy)
Nottinghamshire County Council,1111/1001,Children and Young People,CYP,Third Party Payments,EDA,11/03/2019,12-12194,"5,467.00",The Minster School (Academy)
Nottinghamshire County Council,1111/1001,Children and Young People,CYP,Third Party Payments,EDA,11/03/2019,12-12195,"5,807.00",The Minster School (Academy)
Nottinghamshire County Council,1111/1001,Children and Young People,CYP,Third Party Payments,EDA,11/03/2019,12-12196,787.05,St Peters C of E Academy Mansfield
Nottinghamshire County Council,1111/1001,Children and Young People,CYP,Third Party Payments,EDA,11/03/2019,12-12197,"2,994.00",Oak Tree Lane Primary Academy
Nottinghamshire County Council,1111/1001,Children and Young People,CYP,Third Party Payments,EDA,11/03/2019,12-12198,"6,083.00",Oak Tree Lane Primary Academy
Nottinghamshire County Council,1111/1001,Children and Young People,CYP,Third Party Payments,EDA,11/03/2019,12-12199,"7,648.00",Oak Tree Lane Primary Academy
Nottinghamshire County Council,1111/1001,Children and Young People,CYP,Third Party Payments,EDA,11/03/2019,12-12200,14440,Oak Tree Lane Primary Academy
Nottinghamshire County Council,1111/1001,Children and Young People,CYP,Third Party Payments,EDA,11/03/2019,12-12206,"12,315.42",Oak Tree Lane Primary Academy
Nottinghamshire County Council,1111/1001,Children and Young People,CYP,Third Party Payments,EDA,11/03/2019,12-12207,8810.1,Larkfields Infant Academy
Nottinghamshire County Council,1111/1001,Children and Young People,CYP,Third Party Payments,EDA,11/03/2019,12-12208,900,Yeoman Park Academy
Nottinghamshire County Council,1111/1001,Children and Young People,CYP,Third Party Payments,EDA,12/03/2019,12-12524,80408,Foxwood Academy
Nottinghamshire County Council,1111/1001,Children and Young People,CYP,Third Party Payments,EDA,12/03/2019,12-12525,4167,Beech Academy
Nottinghamshire County Council,1111/1001,Children and Young People,CYP,Third Party Payments,EDA,12/03/2019,12-12526,"59,704.00",Beech Academy
Nottinghamshire County Council,1111/1001,Children and Young People,CYP,Third Party Payments,EDA,12/03/2019,12-12527,"48,217.00",Redgate Primary Academy
Nottinghamshire County Council,1111/1001,Children and Young People,CYP,Third Party Payments,EDA,15/03/2019,12-10246,7166,Larkfields Infant Academy
Nottinghamshire County Council,1111/1001,Children and Young People,CYP,Third Party Payments,EDA,15/03/2019,12-10247,"2,484.00",Larkfields Infant Academy
Nottinghamshire County Council,1111/1001,Children and Young People,CYP,Third Party Payments,EDA,15/03/2019,12-10250,25856,Larkfields Infant Academy
Nottinghamshire County Council,1111/1001,Children and Young People,CYP,Third Party Payments,EDA,18/03/2019,12-15307,102446,Yeoman Park Academy
Nottinghamshire County Council,1111/1001,Children and Young People,CYP,Third Party Payments,EDA,19/03/2019,12-15580,1666,George Spencer Academy
Nottinghamshire County Council,1111/1001,Children and Young People,CYP,Third Party Payments,EDA,19/03/2019,12-15581,1667,Chetwynd Road Primary Academy
Nottinghamshire County Council,1111/1001,Children and Young People,CYP,Third Party Payments,EDA,19/03/2019,12-15582,"10,316.46",Diocese Of Southwell & Nottingham A
Nottinghamshire County Council,1111/1001,Children and Young People,CYP,Third Party Payments,EDA,19/03/2019,12-15583,5850,Sparken Hill Academy
Nottinghamshire County Council,1111/1001,Children and Young People,CYP,Third Party Payments,EDA,19/03/2019,12-15584,2340,Magnus Church of England Academy
Nottinghamshire County Council,1111/1001,Children and Young People,CYP,Third Party Payments,EDA,19/03/2019,12-15585,1170,Alderman White School
Nottinghamshire County Council,1111/1001,Children and Young People,CYP,Third Party Payments,EDA,19/03/2019,12-15586,"1,170.00",St Edmund Campion Voluntary Academy
Nottinghamshire County Council,1111/1001,Children and Young People,CYP,Third Party Payments,EDA,19/03/2019,12-15587,"2,340.00",Carlton Le Willows Academy
Nottinghamshire County Council,1111/1001,Children and Young People,CYP,Third Party Payments,EDA,19/03/2019,12-15588,1170,Christ The King Catholic Voluntary
Nottinghamshire County Council,1111/1001,Children and Young People,CYP,Third Party Payments,EDA,19/03/2019,12-15589,1170,Barnby Road Academy Prim & Nursery
Nottinghamshire County Council,1111/1001,Children and Young People,CYP,Third Party Payments,EDA,19/03/2019,12-15590,"3,510.00",The Manor Academy
Nottinghamshire County Council,1111/1001,Children and Young People,CYP,Third Party Payments,EDA,19/03/2019,12-15591,8440.74,Kingston Park Academy
Nottinghamshire County Council,1111/1001,Children and Young People,CYP,Third Party Payments,EDA,19/03/2019,12-15592,27385.51,Kirkby Woodhouse Academy School
Nottinghamshire County Council,1111/1001,Children and Young People,CYP,Third Party Payments,EDA,19/03/2019,12-15593,16881.48,Peafield Lane Academy
Nottinghamshire County Council,1111/1001,Children and Young People,CYP,Third Party Payments,EDA,19/03/2019,12-15594,17819.34,Mapplewells Primary & Nursery Acada
Nottinghamshire County Council,1111/1001,Children and Young People,CYP,Third Party Payments,EDA,19/03/2019,12-15595,12661.11,Birklands Primary (Academy)
Nottinghamshire County Council,1111/1001,Children and Young People,CYP,Third Party Payments,EDA,19/03/2019,12-15596,"9,378.60",Haddon Primary School (Academy)
Nottinghamshire County Council,1111/1001,Children and Young People,CYP,Third Party Payments,EDA,19/03/2019,12-15597,17819.34,Central Infant Academy
Nottinghamshire County Council,1111/1001,Children and Young People,CYP,Third Party Payments,EDA,19/03/2019,12-15598,"9,753.74",Sunnyside Spencer Academy
Nottinghamshire County Council,1111/1001,Children and Young People,CYP,Third Party Payments,EDA,19/03/2019,12-15599,22977.57,Alderman Pounder Academy(Flying Hig
Nottinghamshire County Council,1111/1001,Children and Young People,CYP,Third Party Payments,EDA,19/03/2019,12-15600,15005.76,Bracken Lane Primary Academy
Nottinghamshire County Council,1111/1001,Children and Young People,CYP,Third Party Payments,EDA,19/03/2019,12-15601,"31,887.24",Norbridge Academy Trust
Nottinghamshire County Council,1111/1001,Children and Young People,CYP,Third Party Payments,EDA,19/03/2019,12-15602,"5,627.16",Flintham Primary Academy School
Nottinghamshire County Council,1111/1001,Children and Young People,CYP,Third Party Payments,EDA,19/03/2019,12-15603,19226.13,The Parkgate Academy
Nottinghamshire County Council,1111/1001,Children and Young People,CYP,Third Party Payments,EDA,19/03/2019,12-15604,"14,536.83",KImberely Primary & Nursery School
Nottinghamshire County Council,1111/1001,Children and Young People,CYP,Third Party Payments,EDA,19/03/2019,12-15605,"23,446.50",Greenwood Primary & Nursery School
Nottinghamshire County Council,1111/1001,Children and Young People,CYP,Third Party Payments,EDA,19/03/2019,12-15606,15005.76,West Park Academy
Nottinghamshire County Council,1111/1001,Children and Young People,CYP,Third Party Payments,EDA,19/03/2019,12-15607,"8,159.38",Keyworth Primary & Nursery School
Nottinghamshire County Council,1111/1001,Children and Young People,CYP,Third Party Payments,EDA,19/03/2019,12-15608,"24,384.36",Sparken Hill Academy
Nottinghamshire County Council,1111/1001,Children and Young People,CYP,Third Party Payments,EDA,19/03/2019,12-15609,15005.76,Flying High Trust Beeston Fields Pr
Nottinghamshire County Council,1111/1001,Children and Young People,CYP,Third Party Payments,EDA,19/03/2019,12-15610,"6,002.30",St Peters C of E Academy
Nottinghamshire County Council,1111/1001,Children and Young People,CYP,Third Party Payments,EDA,19/03/2019,12-15611,5064.44,St Peters Cross Keys Academy
Nottinghamshire County Council,1111/1001,Children and Young People,CYP,Third Party Payments,EDA,19/03/2019,12-15612,22508.64,Sir Donald Bailey Academy
Nottinghamshire County Council,1111/1001,Children and Young People,CYP,Third Party Payments,EDA,19/03/2019,12-15614,6096.09,St Swithuns C of E Primary Academy
Nottinghamshire County Council,1111/1001,Children and Young People,CYP,Third Party Payments,EDA,19/03/2019,12-15615,2358.72,Archbishop Cranmer C of E Academy
Nottinghamshire County Council,1111/1001,Children and Young People,CYP,Third Party Payments,EDA,19/03/2019,12-15616,"2,813.58",Gunthorpe C OF E Primary Academy
Nottinghamshire County Council,1111/1001,Children and Young People,CYP,Third Party Payments,EDA,19/03/2019,12-15617,11254.32,Sacred Heart Catholic Voluntary Aca
Nottinghamshire County Council,1111/1001,Children and Young People,CYP,Third Party Payments,EDA,19/03/2019,12-15618,"12,661.11",St Joseph's RC Primary Academy
Nottinghamshire County Council,1111/1001,Children and Young People,CYP,Third Party Payments,EDA,19/03/2019,12-15619,16881.48,Holy Trinity Catholic Voluntary Aca
Nottinghamshire County Council,1111/1001,Children and Young People,CYP,Third Party Payments,EDA,19/03/2019,12-15620,14536.83,St Patricks Catholic Voluntary Acad
Nottinghamshire County Council,1111/1001,Children and Young People,CYP,Third Party Payments,EDA,19/03/2019,12-15621,"31,418.31",St Philip Neri with St Bede Vol Aca
Nottinghamshire County Council,1111/1001,Children and Young People,CYP,Third Party Payments,EDA,19/03/2019,12-15622,"18,757.20",Oak Tree Lane Primary Academy
Nottinghamshire County Council,1111/1001,Children and Young People,CYP,Third Party Payments,EDA,19/03/2019,12-15623,16412.55,Awsworth Primary & Nursery Sch (Aca
Nottinghamshire County Council,1111/1001,Children and Young People,CYP,Third Party Payments,EDA,19/03/2019,12-15624,5158.23,Python Hill Academy (The Forge Trus
Nottinghamshire County Council,1111/1001,Children and Young People,CYP,Third Party Payments,EDA,19/03/2019,12-15625,"8,909.67",Arnbrook Primary Academy
Nottinghamshire County Council,1111/1001,Children and Young People,CYP,Third Party Payments,EDA,19/03/2019,12-15626,"32,356.17",Netherfield Primary School (Academy
Nottinghamshire County Council,1111/1001,Children and Young People,CYP,Third Party Payments,EDA,19/03/2019,12-15627,"22,977.57",Hillside Academy
Nottinghamshire County Council,1111/1001,Children and Young People,CYP,Third Party Payments,EDA,19/03/2019,12-15628,"26,729.01",The Flying High Academy
Nottinghamshire County Council,1111/1001,Children and Young People,CYP,Third Party Payments,EDA,19/03/2019,12-15629,"14,067.90",Bishop Alexander LEAD Academy
Nottinghamshire County Council,1111/1001,Children and Young People,CYP,Third Party Payments,EDA,19/03/2019,12-15630,19835.74,Tuxford Primary Academy
Nottinghamshire County Council,1111/1001,Children and Young People,CYP,Third Party Payments,EDA,19/03/2019,12-15631,18288.27,Robert Mellors Primary & Nursery Ac
Nottinghamshire County Council,1111/1001,Children and Young People,CYP,Third Party Payments,EDA,19/03/2019,12-15632,"19,695.06",Wainwright Primary Academy
Nottinghamshire County Council,1111/1001,Children and Young People,CYP,Third Party Payments,EDA,19/03/2019,12-15633,22039.71,Heymann Primary School
Nottinghamshire County Council,1111/1001,Children and Young People,CYP,Third Party Payments,EDA,19/03/2019,12-15634,36576.54,Barnby Road Academy Prim & Nursery
Nottinghamshire County Council,1111/1001,Children and Young People,CYP,Third Party Payments,EDA,19/03/2019,12-15635,17819.34,Samuel Barlow Primary Academy
Nottinghamshire County Council,1111/1001,Children and Young People,CYP,Third Party Payments,EDA,19/03/2019,12-15636,17819.34,Thrumpton Primary Academy
Nottinghamshire County Council,1111/1001,Children and Young People,CYP,Third Party Payments,EDA,19/03/2019,12-15637,17819.34,St Josephs Catholic Primary Sch Aca
Nottinghamshire County Council,1111/1001,Children and Young People,CYP,Third Party Payments,EDA,19/03/2019,12-15638,14067.9,Mansfield Primary Academy
Nottinghamshire County Council,1111/1001,Children and Young People,CYP,Third Party Payments,EDA,19/03/2019,12-15639,30386.66,Candleby Lane School
Nottinghamshire County Council,1111/1001,Children and Young People,CYP,Third Party Payments,EDA,19/03/2019,12-15640,"25,322.22",Serlby Park Academy
Nottinghamshire County Council,1111/1001,Children and Young People,CYP,Third Party Payments,EDA,22/03/2019,12-15613,13411.4,St Peters C of E Academy Mansfield
Nottinghamshire County Council,1111/1001,Children and Young People,CYP,Third Party Payments,EDA,26/03/2019,12-12201,9612.6,Ernehale Infants Academy
Nottinghamshire County Council,1111/1001,Children and Young People,CYP,Third Party Payments,EDA,27/03/2019,12-10591,"2,125.00",Priory Catholic Academy(St Ralph Sh
Nottinghamshire County Council,1111/1001,Children and Young People,CYP,Third Party Payments,EDA,27/03/2019,12-12076,"31,943.00",Garibaldi School (Academy)
Nottinghamshire County Council,1111/1001,Children and Young People,CYP,Third Party Payments,EDA,27/03/2019,12-12077,"3,855.00",Garibaldi School (Academy)
Nottinghamshire County Council,1111/1001,Children and Young People,CYP,Third Party Payments,EDA,28/03/2019,12-10265,3669,The Carlton Academy
Nottinghamshire County Council,1111/1001,Children and Young People,CYP,Third Party Payments,EDA,28/03/2019,12-10266,1800,Fairfield Primary Academy
Nottinghamshire County Council,1111/1001,Children and Young People,CYP,Third Party Payments,EDA,28/03/2019,12-10268,760,Hillside Academy
Nottinghamshire County Council,1111/1001,Children and Young People,CYP,Third Party Payments,EDA,28/03/2019,12-10269,760,Holgate Academy
Nottinghamshire County Council,1111/1001,Children and Young People,CYP,Third Party Payments,EDA,28/03/2019,12-10270,"5,927.00",Hillside Academy
Nottinghamshire County Council,1111/1001,Children and Young People,CYP,Third Party Payments,EDA,28/03/2019,12-10271,"11,891.00",Holgate Academy
Nottinghamshire County Council,1111/1001,Children and Young People,CYP,Third Party Payments,EDA,28/03/2019,12-10272,693,Hillside Academy
Nottinghamshire County Council,1111/1001,Children and Young People,CYP,Third Party Payments,EDA,28/03/2019,12-10273,2000,Awsworth Primary & Nursery Sch (Aca
Nottinghamshire County Council,1111/1001,Children and Young People,CYP,Third Party Payments,EDA,28/03/2019,12-10274,700,Horsendale Primary School
Nottinghamshire County Council,1111/1001,Children and Young People,CYP,Third Party Payments,EDA,28/03/2019,12-10276,"1,560.00",KImberely Primary & Nursery School
Nottinghamshire County Council,1111/1001,Children and Young People,CYP,Third Party Payments,EDA,28/03/2019,12-10313,2378,Larkfields Infant Academy
Nottinghamshire County Council,1111/1001,Children and Young People,CYP,Third Party Payments,EDA,28/03/2019,12-10424,784,Keyworth Primary & Nursery School
Nottinghamshire County Council,1111/1001,Children and Young People,CYP,Third Party Payments,EDA,28/03/2019,12-10489,920,Crossdale Primary School
Nottinghamshire County Council,1111/1001,Children and Young People,CYP,Third Party Payments,EDA,29/03/2019,12-12202,"2,362.00",Ernehale Infants Academy
Nottinghamshire County Council,1111/1001,Children and Young People,CYP,Third Party Payments,EDA,29/03/2019,12-12203,27458,Ernehale Infants Academy
Nottinghamshire County Council,1111/1001,Children and Young People,CYP,Third Party Payments,EDA,29/03/2019,12-12204,"5,800.00",Ernehale Infants Academy
Nottinghamshire County Council,1111/1001,Children and Young People,CYP,Third Party Payments,EDA,29/03/2019,12-12205,"6,384.00",Ernehale Infants Academy
Nottinghamshire County Council,1111/1001,Children and Young People,CYP,Third Party Payments,EDA,29/03/2019,12-16762,"3,000.00",Milton Keynes College
Nottinghamshire County Council,1111/1001,Children and Young People,CYP,Third Party Payments,EDA,29/03/2019,12-16879,4000,Priory Catholic Academy(St Ralph Sh
Nottinghamshire County Council,1111/1001,Children and Young People,CYP,Third Party Payments,EFA,01/03/2019,12-16688,"7,889.50",Real Education Ltd
Nottinghamshire County Council,1111/1001,Children and Young People,CYP,Third Party Payments,EFA,01/03/2019,12-16693,"34,600.00",Pollyteach Ltd
Nottinghamshire County Council,1111/1001,Children and Young People,CYP,Third Party Payments,EFA,01/03/2019,12-16703,"5,967.39",Nottingham Girls High School
Nottinghamshire County Council,1111/1001,Children and Young People,CYP,Third Party Payments,EFA,01/03/2019,12-16723,"6,947.95",FUEL (First Universal Enterprises L
Nottinghamshire County Council,1111/1001,Children and Young People,CYP,Third Party Payments,EFA,04/03/2019,12-16742,"18,337.50",Teaching Personnel Ltd
Nottinghamshire County Council,1111/1001,Children and Young People,CYP,Third Party Payments,EFA,05/03/2019,12-16778,560,Teaching Personnel Ltd
Nottinghamshire County Council,1111/1001,Children and Young People,CYP,Third Party Payments,EFA,05/03/2019,12-16784,12666.65,Nisai Virtual Academy Ltd
Nottinghamshire County Council,1111/1001,Children and Young People,CYP,Third Party Payments,EFA,06/03/2019,12-16857,2760,Rainbow Horses Learning Centre
Nottinghamshire County Council,1111/1001,Children and Young People,CYP,Third Party Payments,EFA,06/03/2019,12-16863,1155,A P E Ltd (Alternative Programme Ed
Nottinghamshire County Council,1111/1001,Children and Young People,CYP,Third Party Payments,EFA,06/03/2019,12-16864,4746,New Roots Care & Education Ltd
Nottinghamshire County Council,1111/1001,Children and Young People,CYP,Third Party Payments,EFA,07/03/2019,12-11940,990,[Redacted]
Nottinghamshire County Council,1111/1001,Children and Young People,CYP,Third Party Payments,EFA,07/03/2019,12-16932,3108,Crisp Vocational Provision Ltd
Nottinghamshire County Council,1111/1001,Children and Young People,CYP,Third Party Payments,EFA,13/03/2019,12-16818,11200,REAL Independent School Ltd
Nottinghamshire County Council,1111/1001,Children and Young People,CYP,Third Party Payments,EFA,13/03/2019,12-16997,4901.25,I Can Services Ltd
Nottinghamshire County Council,1111/1001,Children and Young People,CYP,Third Party Payments,EFA,13/03/2019,12-17118,20942.75,Teaching Personnel Ltd
Nottinghamshire County Council,1111/1001,Children and Young People,CYP,Third Party Payments,EFA,13/03/2019,12-17128,675,Buxton Training Enterprises Ltd
Nottinghamshire County Council,1111/1001,Children and Young People,CYP,Third Party Payments,EFA,13/03/2019,12-17129,675,Buxton Training Enterprises Ltd
Nottinghamshire County Council,1111/1001,Children and Young People,CYP,Third Party Payments,EFA,13/03/2019,12-17131,3880.35,Buxton Training Enterprises Ltd
Nottinghamshire County Council,1111/1001,Children and Young People,CYP,Third Party Payments,EFA,13/03/2019,12-17132,3880.35,Buxton Training Enterprises Ltd
Nottinghamshire County Council,1111/1001,Children and Young People,CYP,Third Party Payments,EFA,13/03/2019,12-17133,720,A P E Ltd (Alternative Programme Ed
Nottinghamshire County Council,1111/1001,Children and Young People,CYP,Third Party Payments,EFA,15/03/2019,12-16782,11074.95,East Midlands Vocational Academy Lt
Nottinghamshire County Council,1111/1001,Children and Young People,CYP,Third Party Payments,EFA,19/03/2019,12-16994,"1,102.00",Learn Solutions Ltd T/A TLC Live
Nottinghamshire County Council,1111/1001,Children and Young People,CYP,Third Party Payments,EFA,29/03/2019,12-16751,"37,423.05",Bridge House Independent School
Nottinghamshire County Council,1111/1001,Children and Young People,CYP,Third Party Payments,EFA,29/03/2019,12-16930,"4,042.95",FUEL (First Universal Enterprises L
Nottinghamshire County Council,1111/1001,Children and Young People,CYP,Third Party Payments,EFA,29/03/2019,12-16931,4042.95,FUEL (First Universal Enterprises L
Nottinghamshire County Council,1111/1001,Children and Young People,CYP,Third Party Payments,EFA,29/03/2019,12-17120,"2,430.00",Pollyteach Ltd
Nottinghamshire County Council,1111/1001,Children and Young People,CYP,Third Party Payments,EFA,29/03/2019,12-17121,"3,663.00",Pollyteach Ltd
Nottinghamshire County Council,1111/1001,Children and Young People,CYP,Third Party Payments,EGA,01/03/2019,12-10081,"2,066.46",Jenny's Jelly Tots
Nottinghamshire County Council,1111/1001,Children and Young People,CYP,Third Party Payments,EGA,01/03/2019,12-10082,532.09,[Redacted]
Nottinghamshire County Council,1111/1001,Children and Young People,CYP,Third Party Payments,EGA,01/03/2019,12-10083,"2,069.04",Little House Childcare of Brinsley
Nottinghamshire County Council,1111/1001,Children and Young People,CYP,Third Party Payments,EGA,01/03/2019,12-10089,11737.01,Treetops Nursery
Nottinghamshire County Council,1111/1001,Children and Young People,CYP,Third Party Payments,EGA,01/03/2019,12-10091,"8,697.41",Fledglings Playgroup
Nottinghamshire County Council,1111/1001,Children and Young People,CYP,Third Party Payments,EGA,01/03/2019,12-10092,8683.89,Good Shepherd Pre-School
Nottinghamshire County Council,1111/1001,Children and Young People,CYP,Third Party Payments,EGA,01/03/2019,12-10093,33595.11,The Learning Tree Nursery
Nottinghamshire County Council,1111/1001,Children and Young People,CYP,Third Party Payments,EGA,01/03/2019,12-10094,"8,521.51",Upton Crickets Day Nursery
Nottinghamshire County Council,1111/1001,Children and Young People,CYP,Third Party Payments,EGA,01/03/2019,12-10095,"5,922.42",Rushcliffe Pre-School (Nottingham)
Nottinghamshire County Council,1111/1001,Children and Young People,CYP,Third Party Payments,EGA,01/03/2019,12-10238,707.85,[Redacted]
Nottinghamshire County Council,1111/1001,Children and Young People,CYP,Third Party Payments,EGA,01/03/2019,12-10240,"15,774.94",Little Nippers Pre-School
Nottinghamshire County Council,1111/1001,Children and Young People,CYP,Third Party Payments,EGA,01/03/2019,12-10241,7059.44,Lowater Street Play & Pre School
Nottinghamshire County Council,1111/1001,Children and Young People,CYP,Third Party Payments,EGA,01/03/2019,12-10242,839.43,Belvoir House Childminding
Nottinghamshire County Council,1111/1001,Children and Young People,CYP,Third Party Payments,EGA,01/03/2019,12-16694,19520,Bryn Melyn Care Ltd
Nottinghamshire County Council,1111/1001,Children and Young People,CYP,Third Party Payments,EGA,01/03/2019,12-16701,921.1,Ambito Care (East Midlands Communit
Nottinghamshire County Council,1111/1001,Children and Young People,CYP,Third Party Payments,EGA,01/03/2019,12-16720,"3,582.71",Five Rivers Child Care Ltd
Nottinghamshire County Council,1111/1001,Children and Young People,CYP,Third Party Payments,EGA,01/03/2019,12-16722,3582.71,Five Rivers Child Care Ltd
Nottinghamshire County Council,1111/1001,Children and Young People,CYP,Third Party Payments,EGA,01/03/2019,12-16728,21392.98,Treehouse Care Fostering Solutions
Nottinghamshire County Council,1111/1001,Children and Young People,CYP,Third Party Payments,EGA,01/03/2019,12-16729,17714.33,Grace Care Ltd
Nottinghamshire County Council,1111/1001,Children and Young People,CYP,Third Party Payments,EGA,01/03/2019,12-16734,"5,659.92",Jani Homes Nottingham Ltd
Nottinghamshire County Council,1111/1001,Children and Young People,CYP,Third Party Payments,EGA,04/03/2019,12-10243,871.53,[Redacted]
Nottinghamshire County Council,1111/1001,Children and Young People,CYP,Third Party Payments,EGA,04/03/2019,12-10251,605.48,[Redacted]
Nottinghamshire County Council,1111/1001,Children and Young People,CYP,Third Party Payments,EGA,04/03/2019,12-10252,620.4,[Redacted]
Nottinghamshire County Council,1111/1001,Children and Young People,CYP,Third Party Payments,EGA,04/03/2019,12-10254,"1,170.84",[Redacted]
Nottinghamshire County Council,1111/1001,Children and Young People,CYP,Third Party Payments,EGA,04/03/2019,12-10264,965.58,[Redacted]
Nottinghamshire County Council,1111/1001,Children and Young People,CYP,Third Party Payments,EGA,04/03/2019,12-10592,550.44,R Durr Rose Lodge Childminding
Nottinghamshire County Council,1111/1001,Children and Young People,CYP,Third Party Payments,EGA,04/03/2019,12-10767,981.62,[Redacted]
Nottinghamshire County Council,1111/1001,Children and Young People,CYP,Third Party Payments,EGA,04/03/2019,12-10768,8188.95,Tiny Teddies Day Nursery
Nottinghamshire County Council,1111/1001,Children and Young People,CYP,Third Party Payments,EGA,04/03/2019,12-10769,1170.84,[Redacted]
Nottinghamshire County Council,1111/1001,Children and Young People,CYP,Third Party Payments,EGA,04/03/2019,12-10770,"25,352.28",Wollaton Village Day Nurseries Ltd
Nottinghamshire County Council,1111/1001,Children and Young People,CYP,Third Party Payments,EGA,04/03/2019,12-10771,12395.2,Carlton Preschool Playgroup
Nottinghamshire County Council,1111/1001,Children and Young People,CYP,Third Party Payments,EGA,04/03/2019,12-10772,550.44,[Redacted]
Nottinghamshire County Council,1111/1001,Children and Young People,CYP,Third Party Payments,EGA,04/03/2019,12-16739,4422.5,Colourful Hands Dolby Ltd
Nottinghamshire County Council,1111/1001,Children and Young People,CYP,Third Party Payments,EGA,04/03/2019,12-16740,16354.67,Integrated Services Programme
Nottinghamshire County Council,1111/1001,Children and Young People,CYP,Third Party Payments,EGA,05/03/2019,12-10773,"34,040.50",The Orchard Day Nursery
Nottinghamshire County Council,1111/1001,Children and Young People,CYP,Third Party Payments,EGA,05/03/2019,12-10774,"8,300.04",Mulberry Bush Day Nursery
Nottinghamshire County Council,1111/1001,Children and Young People,CYP,Third Party Payments,EGA,05/03/2019,12-10775,532.09,Littlebear Childcare
Nottinghamshire County Council,1111/1001,Children and Young People,CYP,Third Party Payments,EGA,05/03/2019,12-10780,565.36,[Redacted]
Nottinghamshire County Council,1111/1001,Children and Young People,CYP,Third Party Payments,EGA,05/03/2019,12-10781,"4,585.88",Prebend Pre-School Playgroup
Nottinghamshire County Council,1111/1001,Children and Young People,CYP,Third Party Payments,EGA,05/03/2019,12-10782,11169.18,Woodborough Village Pre School
Nottinghamshire County Council,1111/1001,Children and Young People,CYP,Third Party Payments,EGA,05/03/2019,12-10789,"17,539.53",Scottswood Pdn Ltd
Nottinghamshire County Council,1111/1001,Children and Young People,CYP,Third Party Payments,EGA,05/03/2019,12-10790,"5,118.73",North Leverton Pre-School Playgroup
Nottinghamshire County Council,1111/1001,Children and Young People,CYP,Third Party Payments,EGA,05/03/2019,12-10792,4587.66,[Redacted]
Nottinghamshire County Council,1111/1001,Children and Young People,CYP,Third Party Payments,EGA,05/03/2019,12-10793,"1,655.94",[Redacted]
Nottinghamshire County Council,1111/1001,Children and Young People,CYP,Third Party Payments,EGA,05/03/2019,12-11776,15485.05,Whitehouse Day Nursery
Nottinghamshire County Council,1111/1001,Children and Young People,CYP,Third Party Payments,EGA,05/03/2019,12-16797,1608,Her Majestys Prison & Probation Ser
Nottinghamshire County Council,1111/1001,Children and Young People,CYP,Third Party Payments,EGA,05/03/2019,12-16798,1608,Her Majestys Prison & Probation Ser
Nottinghamshire County Council,1111/1001,Children and Young People,CYP,Third Party Payments,EGA,05/03/2019,12-16799,1608,Her Majestys Prison & Probation Ser
Nottinghamshire County Council,1111/1001,Children and Young People,CYP,Third Party Payments,EGA,05/03/2019,12-16800,"1,608.00",Her Majestys Prison & Probation Ser
Nottinghamshire County Council,1111/1001,Children and Young People,CYP,Third Party Payments,EGA,05/03/2019,12-16801,1608,Her Majestys Prison & Probation Ser
Nottinghamshire County Council,1111/1001,Children and Young People,CYP,Third Party Payments,EGA,05/03/2019,12-16802,"1,608.00",Her Majestys Prison & Probation Ser
Nottinghamshire County Council,1111/1001,Children and Young People,CYP,Third Party Payments,EGA,05/03/2019,12-16803,1608,Her Majestys Prison & Probation Ser
Nottinghamshire County Council,1111/1001,Children and Young People,CYP,Third Party Payments,EGA,05/03/2019,12-16804,1608,Her Majestys Prison & Probation Ser
Nottinghamshire County Council,1111/1001,Children and Young People,CYP,Third Party Payments,EGA,05/03/2019,12-16805,"1,608.00",Her Majestys Prison & Probation Ser
Nottinghamshire County Council,1111/1001,Children and Young People,CYP,Third Party Payments,EGA,05/03/2019,12-16806,"1,608.00",Her Majestys Prison & Probation Ser
Nottinghamshire County Council,1111/1001,Children and Young People,CYP,Third Party Payments,EGA,05/03/2019,12-16807,1608,Her Majestys Prison & Probation Ser
Nottinghamshire County Council,1111/1001,Children and Young People,CYP,Third Party Payments,EGA,05/03/2019,12-16808,1608,Her Majestys Prison & Probation Ser
Nottinghamshire County Council,1111/1001,Children and Young People,CYP,Third Party Payments,EGA,05/03/2019,12-16809,"1,608.00",Her Majestys Prison & Probation Ser
Nottinghamshire County Council,1111/1001,Children and Young People,CYP,Third Party Payments,EGA,05/03/2019,12-16812,"16,250.00",Blue Mountain Homes Ltd
Nottinghamshire County Council,1111/1001,Children and Young People,CYP,Third Party Payments,EGA,06/03/2019,12-11779,"5,849.58",Chetwynd Little Troopers Nursery &
Nottinghamshire County Council,1111/1001,Children and Young People,CYP,Third Party Payments,EGA,06/03/2019,12-16837,"1,608.00",Her Majestys Prison & Probation Ser
Nottinghamshire County Council,1111/1001,Children and Young People,CYP,Third Party Payments,EGA,06/03/2019,12-16841,"1,608.00",Her Majestys Prison & Probation Ser
Nottinghamshire County Council,1111/1001,Children and Young People,CYP,Third Party Payments,EGA,06/03/2019,12-16842,19042.85,Exceptional Care Ltd
Nottinghamshire County Council,1111/1001,Children and Young People,CYP,Third Party Payments,EGA,06/03/2019,12-16849,1608,Her Majestys Prison & Probation Ser
Nottinghamshire County Council,1111/1001,Children and Young People,CYP,Third Party Payments,EGA,06/03/2019,12-16850,"1,608.00",Her Majestys Prison & Probation Ser
Nottinghamshire County Council,1111/1001,Children and Young People,CYP,Third Party Payments,EGA,06/03/2019,12-16851,14171.34,Cambian Childcare Ltd
Nottinghamshire County Council,1111/1001,Children and Young People,CYP,Third Party Payments,EGA,06/03/2019,12-16852,14171.34,Cambian Childcare Ltd
Nottinghamshire County Council,1111/1001,Children and Young People,CYP,Third Party Payments,EGA,06/03/2019,12-16853,37004.41,Teen Support Services Ltd
Nottinghamshire County Council,1111/1001,Children and Young People,CYP,Third Party Payments,EGA,06/03/2019,12-16854,39248.11,Fostering Solutions Ltd
Nottinghamshire County Council,1111/1001,Children and Young People,CYP,Third Party Payments,EGA,06/03/2019,12-16855,17492.99,Care 4 Children Residential Service
Nottinghamshire County Council,1111/1001,Children and Young People,CYP,Third Party Payments,EGA,06/03/2019,12-16856,17492.99,Care 4 Children Residential Service
Nottinghamshire County Council,1111/1001,Children and Young People,CYP,Third Party Payments,EGA,06/03/2019,12-16859,1608,Her Majestys Prison & Probation Ser
Nottinghamshire County Council,1111/1001,Children and Young People,CYP,Third Party Payments,EGA,06/03/2019,12-16860,"1,608.00",Her Majestys Prison & Probation Ser
Nottinghamshire County Council,1111/1001,Children and Young People,CYP,Third Party Payments,EGA,06/03/2019,12-16878,861741,Nottinghamshire Healthcare Nhs F Tr
Nottinghamshire County Council,1111/1001,Children and Young People,CYP,Third Party Payments,EGA,07/03/2019,12-11919,8394.95,Pea Pod Day Nursery Ltd
Nottinghamshire County Council,1111/1001,Children and Young People,CYP,Third Party Payments,EGA,07/03/2019,12-11920,"11,130.40",St Johns Playgroup
Nottinghamshire County Council,1111/1001,Children and Young People,CYP,Third Party Payments,EGA,07/03/2019,12-11924,550.44,[Redacted]
Nottinghamshire County Council,1111/1001,Children and Young People,CYP,Third Party Payments,EGA,07/03/2019,12-16886,"13,728.58",East Midlands Care Matters (Head Of
Nottinghamshire County Council,1111/1001,Children and Young People,CYP,Third Party Payments,EGA,07/03/2019,12-16887,14171.65,East Midlands Care Matters (Head Of
Nottinghamshire County Council,1111/1001,Children and Young People,CYP,Third Party Payments,EGA,07/03/2019,12-16900,14171.34,Cambian Childcare Ltd
Nottinghamshire County Council,1111/1001,Children and Young People,CYP,Third Party Payments,EGA,07/03/2019,12-16901,"14,171.34",Cambian Childcare Ltd
Nottinghamshire County Council,1111/1001,Children and Young People,CYP,Third Party Payments,EGA,07/03/2019,12-16902,"14,171.34",Cambian Childcare Ltd
Nottinghamshire County Council,1111/1001,Children and Young People,CYP,Third Party Payments,EGA,07/03/2019,12-16906,"14,171.34",Cambian Childcare Ltd
Nottinghamshire County Council,1111/1001,Children and Young People,CYP,Third Party Payments,EGA,07/03/2019,12-16911,"12,832.00",Crystal Care Solutions Ltd
Nottinghamshire County Council,1111/1001,Children and Young People,CYP,Third Party Payments,EGA,07/03/2019,12-16917,"14,171.34",Cambian Childcare Ltd
Nottinghamshire County Council,1111/1001,Children and Young People,CYP,Third Party Payments,EGA,07/03/2019,12-16918,14171.34,Cambian Childcare Ltd
Nottinghamshire County Council,1111/1001,Children and Young People,CYP,Third Party Payments,EGA,07/03/2019,12-16919,14171.34,Cambian Childcare Ltd
Nottinghamshire County Council,1111/1001,Children and Young People,CYP,Third Party Payments,EGA,07/03/2019,12-16923,"9,200.00",Unique Care Homes Support Ltd
Nottinghamshire County Council,1111/1001,Children and Young People,CYP,Third Party Payments,EGA,07/03/2019,12-16926,688.18,Longdale Nursery School
Nottinghamshire County Council,1111/1001,Children and Young People,CYP,Third Party Payments,EGA,07/03/2019,12-16938,17492.99,Care 4 Children Residential Service
Nottinghamshire County Council,1111/1001,Children and Young People,CYP,Third Party Payments,EGA,07/03/2019,12-16939,"12,400.00",Horizon Care & Education Group Ltd
Nottinghamshire County Council,1111/1001,Children and Young People,CYP,Third Party Payments,EGA,07/03/2019,12-16940,"20,559.84",Sunrise Homes Services Ltd
Nottinghamshire County Council,1111/1001,Children and Young People,CYP,Third Party Payments,EGA,07/03/2019,12-16942,4400,Maze Independent Care Ltd
Nottinghamshire County Council,1111/1001,Children and Young People,CYP,Third Party Payments,EGA,07/03/2019,12-16943,"4,400.00",Maze Independent Care Ltd
Nottinghamshire County Council,1111/1001,Children and Young People,CYP,Third Party Payments,EGA,07/03/2019,12-16944,"4,400.00",Maze Independent Care Ltd
Nottinghamshire County Council,1111/1001,Children and Young People,CYP,Third Party Payments,EGA,07/03/2019,12-16946,"5,356.12",Parallel Parents
Nottinghamshire County Council,1111/1001,Children and Young People,CYP,Third Party Payments,EGA,07/03/2019,12-16947,5356.12,Parallel Parents
Nottinghamshire County Council,1111/1001,Children and Young People,CYP,Third Party Payments,EGA,07/03/2019,12-16948,"5,356.12",Parallel Parents
Nottinghamshire County Council,1111/1001,Children and Young People,CYP,Third Party Payments,EGA,07/03/2019,12-16949,"3,356.08",Parallel Parents
Nottinghamshire County Council,1111/1001,Children and Young People,CYP,Third Party Payments,EGA,07/03/2019,12-16950,"3,356.08",Parallel Parents
Nottinghamshire County Council,1111/1001,Children and Young People,CYP,Third Party Payments,EGA,08/03/2019,12-11941,"7,639.29",Pretty Windows Ltd
Nottinghamshire County Council,1111/1001,Children and Young People,CYP,Third Party Payments,EGA,08/03/2019,12-11942,"10,630.38",Highfields School & Nursery
Nottinghamshire County Council,1111/1001,Children and Young People,CYP,Third Party Payments,EGA,08/03/2019,12-11943,1376.1,[Redacted]
Nottinghamshire County Council,1111/1001,Children and Young People,CYP,Third Party Payments,EGA,08/03/2019,12-12073,12474.99,Treetops Nursery (Clipstone)
Nottinghamshire County Council,1111/1001,Children and Young People,CYP,Third Party Payments,EGA,11/03/2019,12-12167,550.44,Mornington Childcare Services
Nottinghamshire County Council,1111/1001,Children and Young People,CYP,Third Party Payments,EGA,11/03/2019,12-12183,550.44,Ladybird Childminding
Nottinghamshire County Council,1111/1001,Children and Young People,CYP,Third Party Payments,EGA,11/03/2019,12-12184,1183.44,[Redacted]
Nottinghamshire County Council,1111/1001,Children and Young People,CYP,Third Party Payments,EGA,11/03/2019,12-17006,"20,559.84",Sunrise Homes Services Ltd
Nottinghamshire County Council,1111/1001,Children and Young People,CYP,Third Party Payments,EGA,11/03/2019,12-17034,1608,Her Majestys Prison & Probation Ser
Nottinghamshire County Council,1111/1001,Children and Young People,CYP,Third Party Payments,EGA,11/03/2019,12-17035,1608,Her Majestys Prison & Probation Ser
Nottinghamshire County Council,1111/1001,Children and Young People,CYP,Third Party Payments,EGA,12/03/2019,12-12440,825.66,Almond Tree Childminding
Nottinghamshire County Council,1111/1001,Children and Young People,CYP,Third Party Payments,EGA,12/03/2019,12-12441,8978.06,Portland Place Pre-School
Nottinghamshire County Council,1111/1001,Children and Young People,CYP,Third Party Payments,EGA,12/03/2019,12-12507,6927.4,Thrumpton Kids Clubs
Nottinghamshire County Council,1111/1001,Children and Young People,CYP,Third Party Payments,EGA,12/03/2019,12-12508,2136.42,Jubilee House Christian School
Nottinghamshire County Council,1111/1001,Children and Young People,CYP,Third Party Payments,EGA,12/03/2019,12-17043,7242.72,Teen Support Services Ltd
Nottinghamshire County Council,1111/1001,Children and Young People,CYP,Third Party Payments,EGA,12/03/2019,12-17059,6521.26,VP Forensic Ltd
Nottinghamshire County Council,1111/1001,Children and Young People,CYP,Third Party Payments,EGA,12/03/2019,12-17060,7700.28,VP Forensic Ltd
Nottinghamshire County Council,1111/1001,Children and Young People,CYP,Third Party Payments,EGA,12/03/2019,12-17075,14171.34,Cambian Childcare Ltd
Nottinghamshire County Council,1111/1001,Children and Young People,CYP,Third Party Payments,EGA,12/03/2019,12-17076,"14,171.34",Cambian Childcare Ltd
Nottinghamshire County Council,1111/1001,Children and Young People,CYP,Third Party Payments,EGA,12/03/2019,12-17077,"14,171.34",Cambian Childcare Ltd
Nottinghamshire County Council,1111/1001,Children and Young People,CYP,Third Party Payments,EGA,12/03/2019,12-17078,"14,171.34",Cambian Childcare Ltd
Nottinghamshire County Council,1111/1001,Children and Young People,CYP,Third Party Payments,EGA,13/03/2019,12-17091,39220.24,Team Fostering
Nottinghamshire County Council,1111/1001,Children and Young People,CYP,Third Party Payments,EGA,13/03/2019,12-17096,"216,938.20",Homes 2 Inspire Ltd
Nottinghamshire County Council,1111/1001,Children and Young People,CYP,Third Party Payments,EGA,13/03/2019,12-17111,"2,638.68",Amg Nursing & Care Services Ltd
Nottinghamshire County Council,1111/1001,Children and Young People,CYP,Third Party Payments,EGA,13/03/2019,12-17112,"52,637.52",By The Bridge Ltd
Nottinghamshire County Council,1111/1001,Children and Young People,CYP,Third Party Payments,EGA,13/03/2019,12-17124,17645.31,Capstone Foster Care Ltd
Nottinghamshire County Council,1111/1001,Children and Young People,CYP,Third Party Payments,EGA,13/03/2019,12-17125,"9,200.24",Regional Foster Placements Ltd
Nottinghamshire County Council,1111/1001,Children and Young People,CYP,Third Party Payments,EGA,13/03/2019,12-17145,674.1,Integrated Services Programme
Nottinghamshire County Council,1111/1001,Children and Young People,CYP,Third Party Payments,EGA,13/03/2019,12-17161,"23,368.42","Culture, Learning & Libraries (Midl"
Nottinghamshire County Council,1111/1001,Children and Young People,CYP,Third Party Payments,EGA,14/03/2019,12-12619,23825.85,Carlton & Gedling Day Nursery
Nottinghamshire County Council,1111/1001,Children and Young People,CYP,Third Party Payments,EGA,14/03/2019,12-12620,18873.36,Stapleford Day Nursery
Nottinghamshire County Council,1111/1001,Children and Young People,CYP,Third Party Payments,EGA,14/03/2019,12-12621,"23,549.63",Little Oaks Nursery
Nottinghamshire County Council,1111/1001,Children and Young People,CYP,Third Party Payments,EGA,14/03/2019,12-12625,"3,741.32",Wellow House School
Nottinghamshire County Council,1111/1001,Children and Young People,CYP,Third Party Payments,EGA,14/03/2019,12-12626,620.4,[Redacted]
Nottinghamshire County Council,1111/1001,Children and Young People,CYP,Third Party Payments,EGA,14/03/2019,12-17184,"46,069.03",The National Fostering Agency
Nottinghamshire County Council,1111/1001,Children and Young People,CYP,Third Party Payments,EGA,14/03/2019,12-17201,4473,Voyage Ltd
Nottinghamshire County Council,1111/1001,Children and Young People,CYP,Third Party Payments,EGA,14/03/2019,12-17202,5964,Voyage Ltd
Nottinghamshire County Council,1111/1001,Children and Young People,CYP,Third Party Payments,EGA,14/03/2019,12-17203,5964,Voyage Ltd
Nottinghamshire County Council,1111/1001,Children and Young People,CYP,Third Party Payments,EGA,14/03/2019,12-17209,11630.82,Fosterplus Ltd
Nottinghamshire County Council,1111/1001,Children and Young People,CYP,Third Party Payments,EGA,14/03/2019,12-17223,"12,600.00",Sixteen Plus Ltd
Nottinghamshire County Council,1111/1001,Children and Young People,CYP,Third Party Payments,EGA,14/03/2019,12-17229,2651.8,Newark Emmaus Trust
Nottinghamshire County Council,1111/1001,Children and Young People,CYP,Third Party Payments,EGA,15/03/2019,12-15206,659.61,Butterflies Nursery (West Notts Col
Nottinghamshire County Council,1111/1001,Children and Young People,CYP,Third Party Payments,EGA,15/03/2019,12-17234,19428.56,Cornerstone Childrens Home Ltd
Nottinghamshire County Council,1111/1001,Children and Young People,CYP,Third Party Payments,EGA,15/03/2019,12-17237,"46,069.03",The National Fostering Agency
Nottinghamshire County Council,1111/1001,Children and Young People,CYP,Third Party Payments,EGA,15/03/2019,12-17238,"16,354.67",Integrated Services Programme
Nottinghamshire County Council,1111/1001,Children and Young People,CYP,Third Party Payments,EGA,15/03/2019,12-17244,17957.99,Care Today
Nottinghamshire County Council,1111/1001,Children and Young People,CYP,Third Party Payments,EGA,15/03/2019,12-17251,2280,Truly Care Services Ltd
Nottinghamshire County Council,1111/1001,Children and Young People,CYP,Third Party Payments,EGA,15/03/2019,12-17255,"7,894.41",VP Forensic Ltd
Nottinghamshire County Council,1111/1001,Children and Young People,CYP,Third Party Payments,EGA,15/03/2019,12-17259,1854.88,The Appropriate Adult Service Ltd
Nottinghamshire County Council,1111/1001,Children and Young People,CYP,Third Party Payments,EGA,18/03/2019,12-15289,615,Carlton Preschool Playgroup
Nottinghamshire County Council,1111/1001,Children and Young People,CYP,Third Party Payments,EGA,18/03/2019,12-15290,2413.95,Country Kids Day Nursery - Newark
Nottinghamshire County Council,1111/1001,Children and Young People,CYP,Third Party Payments,EGA,18/03/2019,12-15291,4702.8,Country Kids Nursery - Rainworth
Nottinghamshire County Council,1111/1001,Children and Young People,CYP,Third Party Payments,EGA,18/03/2019,12-15292,541.27,Dean Hole Out of School Club
Nottinghamshire County Council,1111/1001,Children and Young People,CYP,Third Party Payments,EGA,18/03/2019,12-15293,615,Discovery Day Nursery
Nottinghamshire County Council,1111/1001,Children and Young People,CYP,Third Party Payments,EGA,18/03/2019,12-15294,615,[Redacted]
Nottinghamshire County Council,1111/1001,Children and Young People,CYP,Third Party Payments,EGA,18/03/2019,12-15295,"1,237.20",Laura's Childminding
Nottinghamshire County Council,1111/1001,Children and Young People,CYP,Third Party Payments,EGA,18/03/2019,12-15296,615,Little Kites Playgroup
Nottinghamshire County Council,1111/1001,Children and Young People,CYP,Third Party Payments,EGA,18/03/2019,12-15297,1230,Luan's Little People Ltd
Nottinghamshire County Council,1111/1001,Children and Young People,CYP,Third Party Payments,EGA,18/03/2019,12-15298,615,Netherfield Pre School Ltd
Nottinghamshire County Council,1111/1001,Children and Young People,CYP,Third Party Payments,EGA,18/03/2019,12-15299,615,Railway Children Playgroup
Nottinghamshire County Council,1111/1001,Children and Young People,CYP,Third Party Payments,EGA,18/03/2019,12-15300,615,[Redacted]
Nottinghamshire County Council,1111/1001,Children and Young People,CYP,Third Party Payments,EGA,18/03/2019,12-15301,615,Safe Haven Day Nursery
Nottinghamshire County Council,1111/1001,Children and Young People,CYP,Third Party Payments,EGA,18/03/2019,12-15302,615,Serendipity's Day Nursery
Nottinghamshire County Council,1111/1001,Children and Young People,CYP,Third Party Payments,EGA,18/03/2019,12-15303,615,Staunton Montessori Nursery School
Nottinghamshire County Council,1111/1001,Children and Young People,CYP,Third Party Payments,EGA,18/03/2019,12-15304,550.44,[Redacted]
Nottinghamshire County Council,1111/1001,Children and Young People,CYP,Third Party Payments,EGA,18/03/2019,12-15305,615,The Lime Trees Group CIC (HO)
Nottinghamshire County Council,1111/1001,Children and Young People,CYP,Third Party Payments,EGA,18/03/2019,12-15306,615,Toddlers University (Bee)
Nottinghamshire County Council,1111/1001,Children and Young People,CYP,Third Party Payments,EGA,19/03/2019,12-15566,"1,096.20",Radcliffe On Trent Day Nursery
Nottinghamshire County Council,1111/1001,Children and Young People,CYP,Third Party Payments,EGA,19/03/2019,12-15567,11731.86,Radcliffe On Trent Day Nursery
Nottinghamshire County Council,1111/1001,Children and Young People,CYP,Third Party Payments,EGA,19/03/2019,12-15568,12489.84,Radcliffe On Trent Day Nursery
Nottinghamshire County Council,1111/1001,Children and Young People,CYP,Third Party Payments,EGA,19/03/2019,12-15569,12489.84,Radcliffe On Trent Day Nursery
Nottinghamshire County Council,1111/1001,Children and Young People,CYP,Third Party Payments,EGA,19/03/2019,12-15570,13900.92,Radcliffe On Trent Day Nursery
Nottinghamshire County Council,1111/1001,Children and Young People,CYP,Third Party Payments,EGA,19/03/2019,12-15571,"3,494.40",Radcliffe On Trent Day Nursery
Nottinghamshire County Council,1111/1001,Children and Young People,CYP,Third Party Payments,EGA,19/03/2019,12-15572,4215.54,Radcliffe On Trent Day Nursery
Nottinghamshire County Council,1111/1001,Children and Young People,CYP,Third Party Payments,EGA,19/03/2019,12-15573,"4,215.54",Radcliffe On Trent Day Nursery
Nottinghamshire County Council,1111/1001,Children and Young People,CYP,Third Party Payments,EGA,19/03/2019,12-15574,13934.74,Ruddington Nursery & Pre-School
Nottinghamshire County Council,1111/1001,Children and Young People,CYP,Third Party Payments,EGA,19/03/2019,12-15575,18248.02,Ruddington Nursery & Pre-School
Nottinghamshire County Council,1111/1001,Children and Young People,CYP,Third Party Payments,EGA,19/03/2019,12-15576,"4,867.20",Ruddington Nursery & Pre-School
Nottinghamshire County Council,1111/1001,Children and Young People,CYP,Third Party Payments,EGA,19/03/2019,12-15577,"5,241.60",Ruddington Nursery & Pre-School
Nottinghamshire County Council,1111/1001,Children and Young People,CYP,Third Party Payments,EGA,19/03/2019,12-15578,7262.97,Ryan House Day Nursery
Nottinghamshire County Council,1111/1001,Children and Young People,CYP,Third Party Payments,EGA,19/03/2019,12-15579,585.42,Little Steps Childcare
Nottinghamshire County Council,1111/1001,Children and Young People,CYP,Third Party Payments,EGA,19/03/2019,12-16768,"4,998.00",Hope Fostering Services Ltd
Nottinghamshire County Council,1111/1001,Children and Young People,CYP,Third Party Payments,EGA,22/03/2019,12-16824,"20,801.71",Innova House Care Home
Nottinghamshire County Council,1111/1001,Children and Young People,CYP,Third Party Payments,EGA,22/03/2019,12-17090,568.8,Innova House Care Home
Nottinghamshire County Council,1111/1001,Children and Young People,CYP,Third Party Payments,EGA,26/03/2019,12-16468,875.7,[Redacted]
Nottinghamshire County Council,1111/1001,Children and Young People,CYP,Third Party Payments,EGA,26/03/2019,12-16469,963.3,All Aboard Nursery Ltd
Nottinghamshire County Council,1111/1001,Children and Young People,CYP,Third Party Payments,EGA,26/03/2019,12-16470,698.9,All Saints C Of E Primary School
Nottinghamshire County Council,1111/1001,Children and Young People,CYP,Third Party Payments,EGA,26/03/2019,12-16471,826.65,Alphabet House Day Nursery WB
Nottinghamshire County Council,1111/1001,Children and Young People,CYP,Third Party Payments,EGA,26/03/2019,12-16472,788.85,Alphabet House Nursery
Nottinghamshire County Council,1111/1001,Children and Young People,CYP,Third Party Payments,EGA,26/03/2019,12-16473,580.65,Arnold House Day Nursery
Nottinghamshire County Council,1111/1001,Children and Young People,CYP,Third Party Payments,EGA,26/03/2019,12-16474,1058.25,Arnold St Mary's Pre-School
Nottinghamshire County Council,1111/1001,Children and Young People,CYP,Third Party Payments,EGA,26/03/2019,12-16475,579.6,Awsworth Schoolhouse Day Nursery
Nottinghamshire County Council,1111/1001,Children and Young People,CYP,Third Party Payments,EGA,26/03/2019,12-16476,1564.2,Bizzy Kidz
Nottinghamshire County Council,1111/1001,Children and Young People,CYP,Third Party Payments,EGA,26/03/2019,12-16477,1251,Bright Sparks Day Nursery
Nottinghamshire County Council,1111/1001,Children and Young People,CYP,Third Party Payments,EGA,26/03/2019,12-16478,3298.23,Bullpit Road Nursery
Nottinghamshire County Council,1111/1001,Children and Young People,CYP,Third Party Payments,EGA,26/03/2019,12-16479,640.09,Busy Bees (Daybrook)
Nottinghamshire County Council,1111/1001,Children and Young People,CYP,Third Party Payments,EGA,26/03/2019,12-16480,549.15,[Redacted]
Nottinghamshire County Council,1111/1001,Children and Young People,CYP,Third Party Payments,EGA,26/03/2019,12-16481,688.05,Cared 4 Ltd T/A Brookhill House Day
Nottinghamshire County Council,1111/1001,Children and Young People,CYP,Third Party Payments,EGA,26/03/2019,12-16482,5515.95,Kingfisher Day Nursery
Nottinghamshire County Council,1111/1001,Children and Young People,CYP,Third Party Payments,EGA,26/03/2019,12-16483,556.55,Leahurst Road Pre-School
Nottinghamshire County Council,1111/1001,Children and Young People,CYP,Third Party Payments,EGA,26/03/2019,12-16484,544.92,Learning Ladder Childcare Ltd
Nottinghamshire County Council,1111/1001,Children and Young People,CYP,Third Party Payments,EGA,26/03/2019,12-16485,642.18,Kays Childminding
Nottinghamshire County Council,1111/1001,Children and Young People,CYP,Third Party Payments,EGA,26/03/2019,12-16487,768.58,Woodthorpe Day Nursery Ltd
Nottinghamshire County Council,1111/1001,Children and Young People,CYP,Third Party Payments,EGA,26/03/2019,12-16488,500.95,Woodthorpe Day Nursery Ltd
Nottinghamshire County Council,1111/1001,Children and Young People,CYP,Third Party Payments,EGA,26/03/2019,12-16489,549.9,Wolds Childcare Ltd
Nottinghamshire County Council,1111/1001,Children and Young People,CYP,Third Party Payments,EGA,26/03/2019,12-16490,571.02,Windmill Kindergarten Playgroup
Nottinghamshire County Council,1111/1001,Children and Young People,CYP,Third Party Payments,EGA,26/03/2019,12-16491,972.01,West Street Pre-School
Nottinghamshire County Council,1111/1001,Children and Young People,CYP,Third Party Payments,EGA,26/03/2019,12-16492,"8,196.48",Treetops Nursery
Nottinghamshire County Council,1111/1001,Children and Young People,CYP,Third Party Payments,EGA,26/03/2019,12-16493,"4,478.10",Treetops Nursery (Clipstone)
Nottinghamshire County Council,1111/1001,Children and Young People,CYP,Third Party Payments,EGA,26/03/2019,12-16494,1647.45,Townrow Tiny Tots Day Nursery Ltd
Nottinghamshire County Council,1111/1001,Children and Young People,CYP,Third Party Payments,EGA,26/03/2019,12-16495,1114.54,Tollerton Playgroup
Nottinghamshire County Council,1111/1001,Children and Young People,CYP,Third Party Payments,EGA,26/03/2019,12-16496,"1,793.31",Collingham & District Pre-School
Nottinghamshire County Council,1111/1001,Children and Young People,CYP,Third Party Payments,EGA,26/03/2019,12-16497,4304.25,Creative Hands Childcare
Nottinghamshire County Council,1111/1001,Children and Young People,CYP,Third Party Payments,EGA,26/03/2019,12-16498,996.9,Tiny World Mansfield
Nottinghamshire County Council,1111/1001,Children and Young People,CYP,Third Party Payments,EGA,26/03/2019,12-16499,"1,550.40",Early Learners Centre Day Nursery
Nottinghamshire County Council,1111/1001,Children and Young People,CYP,Third Party Payments,EGA,26/03/2019,12-16500,"1,315.77",Tiny Tots Playgroup
Nottinghamshire County Council,1111/1001,Children and Young People,CYP,Third Party Payments,EGA,26/03/2019,12-16501,833.49,Fun Farm Day Nursery
Nottinghamshire County Council,1111/1001,Children and Young People,CYP,Third Party Payments,EGA,26/03/2019,12-16502,771.94,Haywood Road Pre-School Playgroup
Nottinghamshire County Council,1111/1001,Children and Young People,CYP,Third Party Payments,EGA,26/03/2019,12-16503,"1,411.05",Tiny Teddies Day Nursery
Nottinghamshire County Council,1111/1001,Children and Young People,CYP,Third Party Payments,EGA,26/03/2019,12-16504,"1,176.75",Tiny Talkers Day Nursery
Nottinghamshire County Council,1111/1001,Children and Young People,CYP,Third Party Payments,EGA,26/03/2019,12-16505,919.49,Christchurch Hall Pre-School Playgr
Nottinghamshire County Council,1111/1001,Children and Young People,CYP,Third Party Payments,EGA,26/03/2019,12-16506,662.82,Children 1st @ Breedon House (Toton
Nottinghamshire County Council,1111/1001,Children and Young People,CYP,Third Party Payments,EGA,26/03/2019,12-16507,862.95,The Secret Garden Private Day Nurse
Nottinghamshire County Council,1111/1001,Children and Young People,CYP,Third Party Payments,EGA,26/03/2019,12-16508,862.95,Hermitage Pre-School
Nottinghamshire County Council,1111/1001,Children and Young People,CYP,Third Party Payments,EGA,26/03/2019,12-16509,958.32,Horsendale Playgroup
Nottinghamshire County Council,1111/1001,Children and Young People,CYP,Third Party Payments,EGA,26/03/2019,12-16510,868.8,The Rocking Horse Child Care Centre
Nottinghamshire County Council,1111/1001,Children and Young People,CYP,Third Party Payments,EGA,26/03/2019,12-16511,537.64,The Rocking Horse Child Care Centre
Nottinghamshire County Council,1111/1001,Children and Young People,CYP,Third Party Payments,EGA,26/03/2019,12-16512,2985.96,The Orange Tree Day Nursery
Nottinghamshire County Council,1111/1001,Children and Young People,CYP,Third Party Payments,EGA,26/03/2019,12-16513,862.95,The Lime Trees Group CIC (HO)
Nottinghamshire County Council,1111/1001,Children and Young People,CYP,Third Party Payments,EGA,26/03/2019,12-16514,744.75,Pretty Windows Ltd
Nottinghamshire County Council,1111/1001,Children and Young People,CYP,Third Party Payments,EGA,26/03/2019,12-16515,877.5,The Learning Tree Nursery
Nottinghamshire County Council,1111/1001,Children and Young People,CYP,Third Party Payments,EGA,26/03/2019,12-16516,"1,059.60",Safe Haven Day Nursery
Nottinghamshire County Council,1111/1001,Children and Young People,CYP,Third Party Payments,EGA,26/03/2019,12-16517,688.05,[Redacted]
Nottinghamshire County Council,1111/1001,Children and Young People,CYP,Third Party Payments,EGA,26/03/2019,12-16518,1081.5,The Learning Tree Day Nursery 2
Nottinghamshire County Council,1111/1001,Children and Young People,CYP,Third Party Payments,EGA,26/03/2019,12-16519,994.8,Townrow Tiny Tots Day Nursery Ltd
Nottinghamshire County Council,1111/1001,Children and Young People,CYP,Third Party Payments,EGA,26/03/2019,12-16520,2413.95,Westbourne House Nursery School
Nottinghamshire County Council,1111/1001,Children and Young People,CYP,Third Party Payments,EGA,26/03/2019,12-16521,534.6,Windmill Kindergarten Playgroup
Nottinghamshire County Council,1111/1001,Children and Young People,CYP,Third Party Payments,EGA,26/03/2019,12-16522,931.62,Woodborough Village Pre School
Nottinghamshire County Council,1111/1001,Children and Young People,CYP,Third Party Payments,EGA,26/03/2019,12-16523,1018.8,Aunty Sue's Day Care Ltd
Nottinghamshire County Council,1111/1001,Children and Young People,CYP,Third Party Payments,EGA,26/03/2019,12-16524,2526.03,Balderton Pre-School
Nottinghamshire County Council,1111/1001,Children and Young People,CYP,Third Party Payments,EGA,26/03/2019,12-16525,688.05,Bramcote Pre-School Playgroup
Nottinghamshire County Council,1111/1001,Children and Young People,CYP,Third Party Payments,EGA,26/03/2019,12-16526,627.6,Carousel Under 5'S Playgroup
Nottinghamshire County Council,1111/1001,Children and Young People,CYP,Third Party Payments,EGA,26/03/2019,12-16527,"1,380.00",Lime Trees Day Nursery Ltd (Carlton
Nottinghamshire County Council,1111/1001,Children and Young People,CYP,Third Party Payments,EGA,26/03/2019,12-16528,875.7,Small People Ltd
Nottinghamshire County Council,1111/1001,Children and Young People,CYP,Third Party Payments,EGA,26/03/2019,12-16529,786.6,Shaping Futures Day Nursery
Nottinghamshire County Council,1111/1001,Children and Young People,CYP,Third Party Payments,EGA,26/03/2019,12-16530,4857.33,Serendipity's Day Nursery
Nottinghamshire County Council,1111/1001,Children and Young People,CYP,Third Party Payments,EGA,26/03/2019,12-16531,"3,027.42",Serendipity's Day Nursery
Nottinghamshire County Council,1111/1001,Children and Young People,CYP,Third Party Payments,EGA,26/03/2019,12-16532,"1,304.70",Rocking Horse Nursery Butlers Hill
Nottinghamshire County Council,1111/1001,Children and Young People,CYP,Third Party Payments,EGA,26/03/2019,12-16533,"1,593.45",Rainbows Day Nursery
Nottinghamshire County Council,1111/1001,Children and Young People,CYP,Third Party Payments,EGA,26/03/2019,12-16535,1107.37,Radcliffe On Trent Pre School Playg
Nottinghamshire County Council,1111/1001,Children and Young People,CYP,Third Party Payments,EGA,26/03/2019,12-16536,"1,069.20",Secret Garden Childcare Ltd
Nottinghamshire County Council,1111/1001,Children and Young People,CYP,Third Party Payments,EGA,26/03/2019,12-16537,1346.85,Scotts Wood Private Day Nursery
Nottinghamshire County Council,1111/1001,Children and Young People,CYP,Third Party Payments,EGA,26/03/2019,12-16538,"1,581.38",Cherubs Childcare Centre Ladybrook
Nottinghamshire County Council,1111/1001,Children and Young People,CYP,Third Party Payments,EGA,26/03/2019,12-16539,1058.64,Carlton Preschool Playgroup
Nottinghamshire County Council,1111/1001,Children and Young People,CYP,Third Party Payments,EGA,26/03/2019,12-16540,688.05,[Redacted]
Nottinghamshire County Council,1111/1001,Children and Young People,CYP,Third Party Payments,EGA,26/03/2019,12-16541,"3,251.88",Cherubs Day Nursery
Nottinghamshire County Council,1111/1001,Children and Young People,CYP,Third Party Payments,EGA,26/03/2019,12-16542,549.15,Kidzgrove
Nottinghamshire County Council,1111/1001,Children and Young People,CYP,Third Party Payments,EGA,26/03/2019,12-16543,1676.1,Jesters Childcare Ltd
Nottinghamshire County Council,1111/1001,Children and Young People,CYP,Third Party Payments,EGA,26/03/2019,12-16544,510.83,Jelly Beans Day Nursery Ltd
Nottinghamshire County Council,1111/1001,Children and Young People,CYP,Third Party Payments,EGA,26/03/2019,12-16545,2052.6,Hucknall Day Nursery
Nottinghamshire County Council,1111/1001,Children and Young People,CYP,Third Party Payments,EGA,26/03/2019,12-16546,813.15,Gognas Day Nursery Ltd
Nottinghamshire County Council,1111/1001,Children and Young People,CYP,Third Party Payments,EGA,26/03/2019,12-16547,1063.35,Ryan House Day Nursery
Nottinghamshire County Council,1111/1001,Children and Young People,CYP,Third Party Payments,EGA,26/03/2019,12-16548,688.05,Happy Days Childcare Services Ltd
Nottinghamshire County Council,1111/1001,Children and Young People,CYP,Third Party Payments,EGA,26/03/2019,12-16549,511.8,Granby House Nursery
Nottinghamshire County Council,1111/1001,Children and Young People,CYP,Third Party Payments,EGA,26/03/2019,12-16550,612.75,Radcliffe On Trent Day Nursery
Nottinghamshire County Council,1111/1001,Children and Young People,CYP,Third Party Payments,EGA,26/03/2019,12-16551,905.85,Quinton Day Nurseries T/A Honey Bee
Nottinghamshire County Council,1111/1001,Children and Young People,CYP,Third Party Payments,EGA,26/03/2019,12-16552,688.35,Papermoon Day Nursery Sutton In Ash
Nottinghamshire County Council,1111/1001,Children and Young People,CYP,Third Party Payments,EGA,26/03/2019,12-16553,"1,050.00",Papermoon Day Nursery Sutton In Ash
Nottinghamshire County Council,1111/1001,Children and Young People,CYP,Third Party Payments,EGA,26/03/2019,12-16554,"1,064.40",Papermoon Day Nursery
Nottinghamshire County Council,1111/1001,Children and Young People,CYP,Third Party Payments,EGA,26/03/2019,12-16555,1928.64,PSLA Newstead Childcare (HO)
Nottinghamshire County Council,1111/1001,Children and Young People,CYP,Third Party Payments,EGA,26/03/2019,12-16556,606.81,Childrens House Childcare Ltd
Nottinghamshire County Council,1111/1001,Children and Young People,CYP,Third Party Payments,EGA,26/03/2019,12-16557,"3,482.02",Claremont Early Years Ltd
Nottinghamshire County Council,1111/1001,Children and Young People,CYP,Third Party Payments,EGA,26/03/2019,12-16558,1098.3,[Redacted]
Nottinghamshire County Council,1111/1001,Children and Young People,CYP,Third Party Payments,EGA,26/03/2019,12-16559,1118.85,Discovery Day Nursery
Nottinghamshire County Council,1111/1001,Children and Young People,CYP,Third Party Payments,EGA,26/03/2019,12-16560,550.44,East Leake Day Nursery & Pre-School
Nottinghamshire County Council,1111/1001,Children and Young People,CYP,Third Party Payments,EGA,26/03/2019,12-16561,1027.2,East Leake Pre-School Playgroup
Nottinghamshire County Council,1111/1001,Children and Young People,CYP,Third Party Payments,EGA,26/03/2019,12-16562,549.15,Play Days Cottage
Nottinghamshire County Council,1111/1001,Children and Young People,CYP,Third Party Payments,EGA,26/03/2019,12-16563,694.31,Pippins Pre-School
Nottinghamshire County Council,1111/1001,Children and Young People,CYP,Third Party Payments,EGA,26/03/2019,12-16564,527.1,PSLA Newstead Childcare (HO)
Nottinghamshire County Council,1111/1001,Children and Young People,CYP,Third Party Payments,EGA,27/03/2019,12-11918,"17,505.18",Dragonflies Day Nursery ltd
Nottinghamshire County Council,1111/1001,Children and Young People,CYP,Third Party Payments,EGA,27/03/2019,12-12511,5114.94,Sherwood East Childrens Centre (RNN
Nottinghamshire County Council,1111/1001,Children and Young People,CYP,Third Party Payments,EGA,27/03/2019,12-16565,570.96,Cherubs Day Nursery
Nottinghamshire County Council,1111/1001,Children and Young People,CYP,Third Party Payments,EGA,27/03/2019,12-16569,"1,025.00",Arnold House Day Nursery
Nottinghamshire County Council,1111/1001,Children and Young People,CYP,Third Party Payments,EGA,27/03/2019,12-16570,812,Cherubs Childrens Centre Wynndale
Nottinghamshire County Council,1111/1001,Children and Young People,CYP,Third Party Payments,EGA,27/03/2019,12-16571,542,Country Kids Day Nursery
Nottinghamshire County Council,1111/1001,Children and Young People,CYP,Third Party Payments,EGA,27/03/2019,12-16572,542,Learning Ladder Childcare Ltd
Nottinghamshire County Council,1111/1001,Children and Young People,CYP,Third Party Payments,EGA,27/03/2019,12-16573,542,Leen Mills Pre School Playgroup
Nottinghamshire County Council,1111/1001,Children and Young People,CYP,Third Party Payments,EGA,27/03/2019,12-16574,812,Papermoon Day Nursery
Nottinghamshire County Council,1111/1001,Children and Young People,CYP,Third Party Payments,EGA,27/03/2019,12-16575,948,Papermoon Day Nursery Sutton In Ash
Nottinghamshire County Council,1111/1001,Children and Young People,CYP,Third Party Payments,EGA,27/03/2019,12-16576,542,Safe Haven Day Nursery
Nottinghamshire County Council,1111/1001,Children and Young People,CYP,Third Party Payments,EGA,27/03/2019,12-16577,808.98,Little Millers Day Nursery
Nottinghamshire County Council,1111/1001,Children and Young People,CYP,Third Party Payments,EGA,27/03/2019,12-16578,"2,719.52",Leen Mills Pre School Playgroup
Nottinghamshire County Council,1111/1001,Children and Young People,CYP,Third Party Payments,EGA,27/03/2019,12-16579,586.55,Leo's Childrens Nurseries Ltd
Nottinghamshire County Council,1111/1001,Children and Young People,CYP,Third Party Payments,EGA,27/03/2019,12-16580,550.44,North Leverton Pre-School Playgroup
Nottinghamshire County Council,1111/1001,Children and Young People,CYP,Third Party Payments,EGA,27/03/2019,12-16581,862.95,Little Oaks Nursery
Nottinghamshire County Council,1111/1001,Children and Young People,CYP,Third Party Payments,EGA,27/03/2019,12-16582,942.43,Lowater Street Play & Pre School
Nottinghamshire County Council,1111/1001,Children and Young People,CYP,Third Party Payments,EGA,27/03/2019,12-16583,"2,855.58",Luan's Little People
Nottinghamshire County Council,1111/1001,Children and Young People,CYP,Third Party Payments,EGA,27/03/2019,12-16584,688.05,[Redacted]
Nottinghamshire County Council,1111/1001,Children and Young People,CYP,Third Party Payments,EGA,27/03/2019,12-16585,862.95,[Redacted]
Nottinghamshire County Council,1111/1001,Children and Young People,CYP,Third Party Payments,EGA,27/03/2019,12-16586,663.83,Misson Pre-School
Nottinghamshire County Council,1111/1001,Children and Young People,CYP,Third Party Payments,EGA,27/03/2019,12-16587,2360.52,PSLA Newstead Childcare (HO)
Nottinghamshire County Council,1111/1001,Children and Young People,CYP,Third Party Payments,EGA,27/03/2019,12-16588,610.26,Noahs Ark Playgroup
Nottinghamshire County Council,1111/1001,Children and Young People,CYP,Third Party Payments,EGA,27/03/2019,12-16590,812,Carnarvon Pre-School
Nottinghamshire County Council,1111/1001,Children and Young People,CYP,Third Party Payments,EGA,27/03/2019,12-16913,14171.34,Cambian Childcare Ltd
Nottinghamshire County Council,1111/1001,Children and Young People,CYP,Third Party Payments,EGA,27/03/2019,12-17101,1608,Her Majestys Prison & Probation Ser
Nottinghamshire County Council,1111/1001,Children and Young People,CYP,Third Party Payments,EGA,27/03/2019,12-17102,"1,608.00",Her Majestys Prison & Probation Ser
Nottinghamshire County Council,1111/1001,Children and Young People,CYP,Third Party Payments,EGA,27/03/2019,12-17103,"1,608.00",Her Majestys Prison & Probation Ser
Nottinghamshire County Council,1111/1001,Children and Young People,CYP,Third Party Payments,EGA,27/03/2019,12-17165,"1,608.00",Her Majestys Prison & Probation Ser
Nottinghamshire County Council,1111/1001,Children and Young People,CYP,Third Party Payments,EGA,27/03/2019,12-17166,"1,608.00",Her Majestys Prison & Probation Ser
Nottinghamshire County Council,1111/1001,Children and Young People,CYP,Third Party Payments,EGA,27/03/2019,12-17167,"1,608.00",Her Majestys Prison & Probation Ser
Nottinghamshire County Council,1111/1001,Children and Young People,CYP,Third Party Payments,EGA,27/03/2019,12-17168,1608,Her Majestys Prison & Probation Ser
Nottinghamshire County Council,1111/1001,Children and Young People,CYP,Third Party Payments,EGA,27/03/2019,12-17169,1608,Her Majestys Prison & Probation Ser
Nottinghamshire County Council,1111/1001,Children and Young People,CYP,Third Party Payments,EGA,27/03/2019,12-17170,"1,608.00",Her Majestys Prison & Probation Ser
Nottinghamshire County Council,1111/1001,Children and Young People,CYP,Third Party Payments,EGA,28/03/2019,12-16604,594,The Learning Tree Nursery
Nottinghamshire County Council,1111/1001,Children and Young People,CYP,Third Party Payments,EGA,28/03/2019,12-16605,5084.77,Sconce Hills Pre-School Playgroup
Nottinghamshire County Council,1111/1001,Children and Young People,CYP,Third Party Payments,EGA,28/03/2019,12-16606,688.05,Pre-School 345
Nottinghamshire County Council,1111/1001,Children and Young People,CYP,Third Party Payments,EGA,28/03/2019,12-16622,615,Cherubs Childcare Centre (Mansfield
Nottinghamshire County Council,1111/1001,Children and Young People,CYP,Third Party Payments,EGA,28/03/2019,12-16623,615,Learning Ladder Childcare Ltd
Nottinghamshire County Council,1111/1001,Children and Young People,CYP,Third Party Payments,EGA,28/03/2019,12-16624,2113.95,Crocodile Rock Day Care Ltd
Nottinghamshire County Council,1111/1001,Children and Young People,CYP,Third Party Payments,EGA,28/03/2019,12-16625,20827.95,PSLA Newstead Childcare (HO)
Nottinghamshire County Council,1111/1001,Children and Young People,CYP,Third Party Payments,EGA,28/03/2019,12-16626,955.8,Little Kites Playgroup
Nottinghamshire County Council,1111/1001,Children and Young People,CYP,Third Party Payments,EGA,28/03/2019,12-16627,549.15,Inham Park Pre School Playgroup
Nottinghamshire County Council,1111/1001,Children and Young People,CYP,Third Party Payments,EGA,28/03/2019,12-16628,1553.45,Hollies Day Nursery (Loughborough R
Nottinghamshire County Council,1111/1001,Children and Young People,CYP,Third Party Payments,EGA,28/03/2019,12-16629,1138.41,Grosvenor House Day Nursery
Nottinghamshire County Council,1111/1001,Children and Young People,CYP,Third Party Payments,EGA,28/03/2019,12-16630,615,Pea Pod Day Nursery Ltd
Nottinghamshire County Council,1111/1001,Children and Young People,CYP,Third Party Payments,EGA,28/03/2019,12-16631,615,The Lime Trees Group CIC (HO)
Nottinghamshire County Council,1111/1001,Children and Young People,CYP,Third Party Payments,EGA,28/03/2019,12-16632,745.35,Railway Children Playgroup
Nottinghamshire County Council,1111/1001,Children and Young People,CYP,Third Party Payments,EGA,28/03/2019,12-16633,615,Little Beans Childcare Ltd
Nottinghamshire County Council,1111/1001,Children and Young People,CYP,Third Party Payments,EGA,28/03/2019,12-16634,8193.83,Windmills Childcare
Nottinghamshire County Council,1111/1001,Children and Young People,CYP,Third Party Payments,EGA,28/03/2019,12-16635,11376.6,Butterflies Nursery (West Notts Col
Nottinghamshire County Council,1111/1001,Children and Young People,CYP,Third Party Payments,EGA,28/03/2019,12-16636,11613.17,Windmills Childcare
Nottinghamshire County Council,1111/1001,Children and Young People,CYP,Third Party Payments,EGA,28/03/2019,12-16637,1109.7,Country Kids Day Nursery
Nottinghamshire County Council,1111/1001,Children and Young People,CYP,Third Party Payments,EGA,28/03/2019,12-16638,615,PSLA Newstead Childcare (HO)
Nottinghamshire County Council,1111/1001,Children and Young People,CYP,Third Party Payments,EGA,28/03/2019,12-16904,"14,171.34",Cambian Childcare Ltd
Nottinghamshire County Council,1111/1001,Children and Young People,CYP,Third Party Payments,EGA,28/03/2019,12-16905,"14,171.34",Cambian Childcare Ltd
Nottinghamshire County Council,1111/1001,Children and Young People,CYP,Third Party Payments,EGA,28/03/2019,12-16912,14171.34,Cambian Childcare Ltd
Nottinghamshire County Council,1111/1001,Children and Young People,CYP,Third Party Payments,EGA,28/03/2019,12-16914,14171.34,Cambian Childcare Ltd
Nottinghamshire County Council,1111/1001,Children and Young People,CYP,Third Party Payments,EGA,28/03/2019,12-16915,"14,171.34",Cambian Childcare Ltd
Nottinghamshire County Council,1111/1001,Children and Young People,CYP,Third Party Payments,EGA,28/03/2019,12-16916,"14,171.34",Cambian Childcare Ltd
Nottinghamshire County Council,1111/1001,Children and Young People,CYP,Third Party Payments,EGA,28/03/2019,12-16976,6959.43,Voyage Ltd
Nottinghamshire County Council,1111/1001,Children and Young People,CYP,Third Party Payments,EGA,28/03/2019,12-17284,"1,383.75",VP Forensic Ltd
Nottinghamshire County Council,1111/1001,Children and Young People,CYP,Third Party Payments,EGA,29/03/2019,12-16657,2570.85,Little Baths Ltd T/A Little PLums D
Nottinghamshire County Council,1111/1001,Children and Young People,CYP,Third Party Payments,EGA,29/03/2019,12-16757,21611.43,Bryn Melyn Care Ltd
Nottinghamshire County Council,1111/1001,Children and Young People,CYP,Third Party Payments,EGA,29/03/2019,12-16872,"2,366.66",SOVA
Nottinghamshire County Council,1111/1001,Children and Young People,CYP,Third Party Payments,EGA,29/03/2019,12-16875,18580,Holibrook House Ltd
Nottinghamshire County Council,1111/1001,Children and Young People,CYP,Third Party Payments,EGA,29/03/2019,12-16880,"107,811.01",Fusion Fostering Ltd
Nottinghamshire County Council,1111/1001,Children and Young People,CYP,Third Party Payments,EGA,29/03/2019,12-16927,12400,Horizon Care & Education Group Ltd
Nottinghamshire County Council,1111/1001,Children and Young People,CYP,Third Party Payments,EGA,29/03/2019,12-16928,12400,Horizon Care & Education Group Ltd
Nottinghamshire County Council,1111/1001,Children and Young People,CYP,Third Party Payments,EGA,29/03/2019,12-16934,15979.88,Absolute Children�s Services Ltd
Nottinghamshire County Council,1111/1001,Children and Young People,CYP,Third Party Payments,EGA,29/03/2019,12-16941,"14,570.00",Platform Childcare Ltd
Nottinghamshire County Council,1111/1001,Children and Young People,CYP,Third Party Payments,EGA,29/03/2019,12-16953,"2,985.62",Affinity Fostering Service Ltd
Nottinghamshire County Council,1111/1001,Children and Young People,CYP,Third Party Payments,EGA,29/03/2019,12-16973,3236,Five Rivers Child Care Ltd
Nottinghamshire County Council,1111/1001,Children and Young People,CYP,Third Party Payments,EGA,29/03/2019,12-16974,3236,Five Rivers Child Care Ltd
Nottinghamshire County Council,1111/1001,Children and Young People,CYP,Third Party Payments,EGA,29/03/2019,12-17046,18821.34,Soteria House (Inmind Childrens Ser
Nottinghamshire County Council,1111/1001,Children and Young People,CYP,Third Party Payments,EGA,29/03/2019,12-17089,12400,Horizon Care & Education Group Ltd
Nottinghamshire County Council,1111/1001,Children and Young People,CYP,Third Party Payments,EGA,29/03/2019,12-17094,59217.5,Acacia Hall (Kisimul)
Nottinghamshire County Council,1111/1001,Children and Young People,CYP,Third Party Payments,EGA,29/03/2019,12-17108,3154.67,Nottm Community Housing Assoc
Nottinghamshire County Council,1111/1001,Children and Young People,CYP,Third Party Payments,EGA,29/03/2019,12-17164,"1,832.10",Affinity Fostering Service Ltd
Nottinghamshire County Council,1111/1001,Children and Young People,CYP,Third Party Payments,EGA,29/03/2019,12-17210,17252.2,Orange Grove Fostercare Ltd
Nottinghamshire County Council,1111/1001,Children and Young People,CYP,Third Party Payments,EGA,29/03/2019,12-17225,"11,657.24",Chrysalis Consortium Ltd
Nottinghamshire County Council,1111/1001,Children and Young People,CYP,Third Party Payments,EGA,29/03/2019,12-17246,996.6,Ambito Care (East Midlands Communit
Nottinghamshire County Council,1111/1001,Children and Young People,CYP,Third Party Payments,EGA,29/03/2019,12-17269,216938.2,Homes 2 Inspire Ltd
Nottinghamshire County Council,1111/1001,Children and Young People,CYP,Third Party Payments,EHA,13/03/2019,12-12618,2500,Fostering Liaison & Advisory Group
Nottinghamshire County Council,1111/1001,Children and Young People,CYP,Third Party Payments,EHA,29/03/2019,12-16873,"7,272.50",The Childrens Society
Nottinghamshire County Council,1111/1001,Children and Young People,CYP,Third Party Payments,EHA,29/03/2019,12-17109,"31,000.00",Faith In Families
Nottinghamshire County Council,1111/1001,Children and Young People,CYP,Transfer Payments,GAA,05/03/2019,12-10776,7054.73,East Midlands Council-Nottm City Co
Nottinghamshire County Council,1111/1001,Children and Young People,CYP,Transfer Payments,GAA,08/03/2019,12-16795,1760,[Redacted]
Nottinghamshire County Council,1111/1001,Children and Young People,CYP,Transfer Payments,GAA,08/03/2019,12-16884,1200,[Redacted]
Nottinghamshire County Council,1111/1001,Children and Young People,CYP,Transfer Payments,GAA,08/03/2019,12-16956,"2,800.00",R.Y.A.N. Education Academy
Nottinghamshire County Council,1111/1001,Children and Young People,CYP,Transfer Payments,GAA,14/03/2019,12-17074,"1,540.00",[Redacted]
Nottinghamshire County Council,1111/1001,Children and Young People,CYP,Transfer Payments,GAA,14/03/2019,12-17141,660,[Redacted]
Nottinghamshire County Council,1111/1001,Children and Young People,CYP,Transfer Payments,GAA,14/03/2019,12-17162,"1,210.00",[Redacted]
Nottinghamshire County Council,1111/1001,Children and Young People,CYP,Transfer Payments,GAA,15/03/2019,12-17045,1210,Omega Solutions
Nottinghamshire County Council,1111/1001,Children and Young People,CYP,Transfer Payments,GAA,29/03/2019,12-16658,8948.93,The Jamie Smith Trust
Nottinghamshire County Council,1111/1001,Children and Young People,CYP,Transfer Payments,GAA,29/03/2019,12-16767,1210,Ann Lugering Education Services
Nottinghamshire County Council,1111/1001,Children and Young People,CYP,Support Services,HAA,04/03/2019,12-10482,600,Nottingham Minibuses & Coaches
Nottinghamshire County Council,1111/1001,Children and Young People,CYP,Support Services,HAA,08/03/2019,12-12060,540,Shiny Sky Ltd T/A A2b Cars
Nottinghamshire County Council,1111/1001,Children and Young People,CYP,Support Services,HAA,08/03/2019,12-12068,"2,700.00",CT4N Ltd
Nottinghamshire County Council,1111/1001,Children and Young People,CYP,Support Services,HAA,08/03/2019,12-12099,874.65,Nunns Taxis Ltd
Nottinghamshire County Council,1111/1001,Children and Young People,CYP,Support Services,HAA,12/03/2019,12-12564,"4,109.30",Stagecoach Services Ltd
Nottinghamshire County Council,1111/1001,Children and Young People,CYP,Support Services,HAA,15/03/2019,12-15267,"1,867.50",Nottingham Coaches
Nottinghamshire County Council,1111/1001,Children and Young People,CYP,Support Services,HAA,20/03/2019,12-15704,"1,706.86",Dunn Motor Traction Ltd
Nottinghamshire County Council,1111/1001,Children and Young People,CYP,Income,JHA,27/03/2019,12-10031,1808,[Redacted]
Nottinghamshire County Council,1111/1001,Adult Social Care and Health,ASCH,Premises Related,BAA,01/03/2019,12-10058,505,Futures Greenscape Ltd
Nottinghamshire County Council,1111/1001,Adult Social Care and Health,ASCH,Premises Related,BAA,04/03/2019,12-10255,707.5,Heating & Process Eng Serv Ltd
Nottinghamshire County Council,1111/1001,Adult Social Care and Health,ASCH,Premises Related,BAA,11/03/2019,12-12186,"5,117.71",ARC Property Services Partnership L
Nottinghamshire County Council,1111/1001,Adult Social Care and Health,ASCH,Premises Related,BAA,12/03/2019,12-12444,1052.5,Futures Greenscape Ltd
Nottinghamshire County Council,1111/1001,Adult Social Care and Health,ASCH,Premises Related,BAA,12/03/2019,12-12445,712.5,Futures Greenscape Ltd
Nottinghamshire County Council,1111/1001,Adult Social Care and Health,ASCH,Premises Related,BAA,12/03/2019,12-12446,558,Harveys Home & Garden Maintenance
Nottinghamshire County Council,1111/1001,Adult Social Care and Health,ASCH,Premises Related,BAA,12/03/2019,12-12447,1033.5,C Tupling Joinery
Nottinghamshire County Council,1111/1001,Adult Social Care and Health,ASCH,Premises Related,BAA,18/03/2019,12-15286,523,[Redacted]
Nottinghamshire County Council,1111/1001,Adult Social Care and Health,ASCH,Premises Related,BAA,20/03/2019,12-15667,2557.22,ARC Property Services Partnership L
